{"text_format":"1","workbook":"xlsx","n_sheets":13,"sheets":["Part_I","Part1_Data","Standard","Submerged","LLS_Worksheet","Streams","Stream_Type","DATA_1","Habitat_Types","Upland_Preservation","WOSW_Preservation","TimeLag_Risk","Summary"],"not_rendered":{"charts":1,"images":1,"macros":1,"external_links":0,"defined_names":17,"comments":0,"pivot_tables":0},"unopened":[],"bounds":{"document_bytes":16777216,"sheet_cells":100000,"rows_first":2000,"rows_last":500,"rows_between":2000,"halvings":0,"cell_chars":16384,"cell_head_chars":4096},"cells_cut":0,"cells_raw":0,"read":"whole","date_system":"1900"}

{"sheet":"Part_I","index":0,"n_rows":70,"n_cols":20,"rows_kept":70,"cut":false,"hidden":false,"merged":[[43,11,43,20],[44,11,54,20],[42,11,42,20],[26,3,26,5],[27,11,39,20],[26,11,26,15],[33,3,33,9],[36,3,36,9],[7,15,7,20],[6,15,6,20],[1,3,2,13],[6,3,6,7],[7,3,7,7],[6,9,6,13],[7,9,7,13],[1,17,1,21],[9,3,9,7],[10,3,10,7],[9,9,9,13],[10,9,10,13],[9,15,9,20],[69,3,83,20],[57,3,57,13],[67,3,68,20],[62,15,65,20],[58,8,59,20],[62,3,64,13],[43,4,43,5],[43,7,43,8],[13,19,14,20],[12,3,12,7],[13,3,13,7],[14,3,14,7],[17,10,17,12],[12,9,12,13],[13,9,13,13],[16,3,16,7],[19,9,20,13],[16,9,16,13],[21,10,21,12],[52,3,52,9],[46,3,46,9],[49,3,49,9],[40,3,40,10],[24,3,24,10],[27,4,27,5],[27,7,27,8],[30,3,30,9]]}
[]
[null,null,null,"Site and Reference Condition Information",null,null,null,null,null,null,null,null,null,null,null,null,null,"DRAFT DOCUMENT"]
[null,null,null,null,null,null,null,null,null,null,null,null,null,null,null,null,null,null,null,"2016-07-01"]
[null,null,null,"Part I - Qualitative Characterization (Section 62-345.400 F.A.C.)"]
[]
[]
[null,null,null,"Site/Project Name",null,null,null,null,null,"Application Number",null,null,null,null,null,"Assessment Area Name/Designation"]
[null,null,null,"(Project Name)",null,null,null,null,null,"(Application Number)",null,null,null,null,null,"(Assement Area)"]
[]
[null,null,null,"Name of Person Conducting Assessment",null,null,null,null,null,"Date of Assessment (MM/DD/YYYY)",null,null,null,null,null,"Project Activity Type"]
[null,null,null,"(Name)",null,null,null,null,null,"2016-07-01"]
[]
[null,null,null,"Basin/Watershed Name/Number",null,null,null,null,null,"Based on Mitigation Plan Dated (MM/DD/YYYY)"]
[null,null,null,"(Basin I.D.)",null,null,null,null,null,"2016-07-01",null,null,null,null,null,null,null,null,null,{"$f":"IF(Part1_Data!D5=3,\"Current Condition Scores       Set to Zero\",IF(Part1_Data!D5=1,\"With Project Scores        Set to Zero\",\" \"))","v":" "}]
[null,null,null,"See, Section 10.2.8, ERP Applicant's Handbook, Volume I"]
[]
[null,null,null,"Assessment Type",null,null,null,null,null,"Is this a Mitigation Bank or ROMA?"]
[null,null,null,null,null,null,null,null,null,null,"No"]
[]
[null,null,null,null,null,null,null,null,null,{"$f":"IF(OR(Part1_Data!O13=1,Part1_Data!O13=2),\"Areal Extent of Assessment Area (acres)\",IF(Part1_Data!O13=3,\"Stream Length (feet)\",\"?\"))","v":"Stream Length (feet)"}]
[]
[null,null,null,null,null,null,null,null,null,null,100]
[]
[]
[null,null,null,"What is the curent community type or land use for this assessment area?"]
[]
[null,null,null,"Choose Classification Scheme",null,null,null,null,null,null,null,"Current Condition Description (Optional)"]
[null,null,null,null,null,null,null,null,null,null,null,"(Current condition notes)"]
[]
[]
[null,null,null,"1000  Terrestrial"]
[]
[]
[null,null,null,"100  Urban and Built-Up"]
[]
[]
[null,null,null,"(Type Here)"]
[]
[]
[]
[null,null,null,"What is the reference community type for this assessment area?"]
[]
[null,null,null,"Choose Classification Scheme",null,null,null,null,null,null,null,"Selected Reference Community Type"]
[null,null,null,null,null,null,null,null,null,null,null,{"$f":"IF(Part1_Data!B27=1,D47,IF(Part1_Data!B27=2,D50,IF(Part1_Data!B27=3, D53, \" \")))","v":"(Type Here)"}]
[null,null,null,null,null,null,null,null,null,null,null,"The ecological indicators expected for this community type when present at the geographic location of the assessment area, and when exhibiting an optimal condition, will serve as the framework and basis for scores assigned in this worksheet."]
[]
[null,null,null,"1000  Terrestrial"]
[]
[]
[null,null,null,"100  Urban and Built-Up"]
[]
[]
[null,null,null,"(Type Here)"]
[]
[]
[]
[]
[null,null,null,"Is the above Reference Community Type an Upland or a Wetland or Other Surface Water?"]
[null,null,null,null,null,null,null,null,{"$f":"IF(SUM(Part1_Data!N19:R19)>0,Part1_Data!N20,\" \")","v":" "}]
[]
[]
[]
[null,null,null,"NOTE: As per Section 62-345.500 (2) F.A.C., functions provided by uplands shall be based on benefits provided to the fish and wildlife of the associated wetlands or other surface waters.  "]
[]
[]
[]
[]
[null,null,null,"Please use the space below to provide additional detail or comments pertinent to this assessment area.  Additional information may include, but is not limited to the landuse history of the site, the occurrence of listed species within the area, or any special classification or protection status assigned to the location.  (Optional)"]
[]
[null,null,null,"(Type Here)"]

{"sheet":"Part1_Data","index":1,"n_rows":286,"n_cols":25,"rows_kept":286,"cut":false,"hidden":true,"merged":[]}
[]
[]
[]
[]
[null,"Activity_Type",null,4,{"$f":"LOOKUP(D5,A6:B11)","v":"Mitigation Assessment (Enhancement)"}]
[1,"Impact (Full)",null,null,null,null,null,null,null,null,"What native natural community type is most analogous in function to this assessment area's current vegetative composition, wildlife utilization, and hydrology? "]
[2,"Impact (Partial/Secondary)",null,null,null,"Current Condition Scores Have Been Set to Zero",null,null,null,null,"What native natural community type is the target or goal of the proposed mitigation activity?"]
[3,"Mitigation Assessment (Creation)"]
[4,"Mitigation Assessment (Enhancement)"]
[5,"Mitigation Assessment (Restoration)"]
[6,"Mitigation Assessment (Preservation)",null,null,null,null,null,null,null,null,null,null,null,null,null,null,null,null,null,null,null,"COL Labels"]
[null,null,null,null,null,null,null,null,null,null,null,"COMPLETE",null,null,"ASSESSMENT_TYPE",null,null,null,null,null,"Current","Current","w/out Preservation"]
[null,"Scope_Type",null,null,null,null,null,null,null,null,null,1,null,null,3,null,null,null,null,null,"With","w/ Mitigation","w/ Preservation",null,"w/ Impact"]
[null,"Partial Degradation of Current Natural Community",null,null,null,null,null,null,null,null,null,null,null,null,null,null,null,null,null,null,"Choice",{"$f":"IF(D5<6, V12,IF(D5>=6,W12,\"?\"))","v":"Current"}]
[null,"Complete Removal of Current Natural Community",null,null,null,null,"With Project Scores have been set to zero. ",null,null,null,null,null,null,null,null,null,null,null,null,null,null,{"$f":"IF(D5<=2, Y13, IF(AND(D5>=3,D5<6), V13,IF(D5>=6,W13,\"?\")))","v":"w/ Mitigation"}]
[]
[null,"Mit_Bank",{"$f":"Part_I!K18","v":"No"}]
[null,"Yes",null,null,null,null,null,null,null,null,null,null,null,"C1","C2","C3","C4","C5"]
[null,"No",null,null,null,null,null,null,null,null,null,null,null,{"$f":"IF(AND(D5=3,I20=2),1,0)","v":0},{"$f":"IF(AND(D5=6,I20=2),1,0)","v":0},{"$f":"IF(AND(D5=7,I20=1),1,0)","v":0},{"$f":"IF(AND(D5<=2,I20=2),1,0)","v":0}]
[null,null,null,null,null,null,"WOSW_Type",null,1,{"$f":"IF(I20=1,G21,IF(I20=2,G22,\"?\"))","v":"Wetland or Other Surface Water"},null,null,null,"Please verify the Project Activity Type and designation as an upland or surface water!"]
[null,null,null,null,null,null,"Wetland or Other Surface Water",null,null,null,null,null,null,"This selection indicates an Impact to Uplands - "]
[null,"Unit_Type",null,null,null,null,"Upland"]
[null,"Areal Extent of Assessment Area (acres)"]
[null,"Length of Assessed Stream Segment (feet)"]
[]
[null,"Community_Lookup",null,null,"Current Type"]
[null,3,null,null,1]
[]
[null,"FLUCCS","FWC",null,null,null,"FWC_LONG",null,null,null,null,"FWC2","FLUCCS",null,null,null,null,"FWC14",null,null,null,null,"FLUCCS_L"]
[null,"3100  Herbaceous (Dry Prairie)","1831  Rural Open",null,null,null,"1100  Hardwood Forested Uplands",null,null,null,null,"1110  Upland Hardwood Forest","4200  Upland Hardwood Forests",null,null,null,null,{"$f":"CONCATENATE(S30,\"  \",T30)","v":"1000  Terrestrial"},1000,"Terrestrial",null,null,"100  Urban and Built-Up"]
[null,"3200  Upland Shrub and Brushland","1500  Shrub and Brushland",null,null,null,"1110  Upland Hardwood Forest",null,null,null,null,"1112  Mixed Hardwoods","4300  Upland Mixed Forests",null,null,null,null,{"$f":"CONCATENATE(S31,\"  \",T31)","v":"1100  Hardwood Forested Uplands"},1100,"Hardwood Forested Uplands",null,null,"110  Residential low density"]
[null,"3210  Palmetto Prairies","1340  Palmetto Prairie",null,null,null,"1111  Dry Upland Hardwood Forest",null,null,null,null,"1123  Live Oak","4270  Live Oak",null,null,null,null,{"$f":"CONCATENATE(S32,\"  \",T32)","v":"1110  Upland Hardwood Forest"},1110,"Upland Hardwood Forest",null,null,"111  Fixed single family units"]
[null,"3220  Coastal Shrub","1214  Coastal Scrub",null,null,null,"1112  Mixed Hardwoods",null,null,null,null,"1124  Pine - Mesic Oak","4140  Pine - Mesic Oak",null,null,null,null,{"$f":"CONCATENATE(S33,\"  \",T33)","v":"1111  Dry Upland Hardwood Forest"},1111,"Dry Upland Hardwood Forest",null,null,"113  Mixed units (fixed and mobile home units)"]
[null,"4100  Upland Coniferous Forests","1230  Upland Coniferous",null,null,null,"1120  Mesic Hammock",null,null,null,null,"1125  Cabbage Palm","4280  Cabbage Palm",null,null,null,null,{"$f":"CONCATENATE(S34,\"  \",T34)","v":"1112  Mixed Hardwoods"},1112,"Mixed Hardwoods",null,null,"119  Low density under construction"]
[null,"4110  Pine Flatwoods","1300  Pine Flatwoods and Dry Prairie",null,null,null,"1121  Evergreen Levee Hammock",null,null,null,null,"1211  Oak Scrub","4210  Xeric Oak",null,null,null,null,{"$f":"CONCATENATE(S35,\"  \",T35)","v":"1120  Mesic Hammock"},1120,"Mesic Hammock",null,null,"120  Residential medium density"]
[null,"4120  Longleaf Pine - Xeric Oak","1240  Sandhill",null,null,null,"1122  Prairie Mesic Hammock",null,null,null,null,"1213  Sand Pine Scrub","4130  Sand Pine",null,null,null,null,{"$f":"CONCATENATE(S36,\"  \",T36)","v":"1121  Evergreen Levee Hammock"},1121,"Evergreen Levee Hammock",null,null,"121  Fixed single family units"]
[null,"4130  Sand Pine","1213  Sand Pine Scrub",null,null,null,"1123  Live Oak",null,null,null,null,"1214  Coastal Scrub","3220  Coastal Shrub",null,null,null,null,{"$f":"CONCATENATE(S37,\"  \",T37)","v":"1122  Prairie Mesic Hammock"},1122,"Prairie Mesic Hammock",null,null,"123  Mixed units (fixed and mobile home units)"]
[null,"4140  Pine - Mesic Oak","1124  Pine - Mesic Oak",null,null,null,"1124  Pine - Mesic Oak",null,null,null,null,"1220  Upland Mixed Woodland","4340  Upland Mixed Coniferous / Hardwood",null,null,null,null,{"$f":"CONCATENATE(S38,\"  \",T38)","v":"1123  Live Oak"},1123,"Live Oak",null,null,"129  Medium density under construction"]
[null,"4200  Upland Hardwood Forests","1110  Upland Hardwood Forest",null,null,null,"1125  Cabbage Palm",null,null,null,null,"1230  Upland Coniferous","4100  Upland Coniferous Forests",null,null,null,null,{"$f":"CONCATENATE(S39,\"  \",T39)","v":"1124  Pine - Mesic Oak"},1124,"Pine - Mesic Oak",null,null,"130  Residential high density"]
[null,"4210  Xeric Oak","1211  Oak Scrub",null,null,null,"1130  Rockland Hammock",null,null,null,null,"1240  Sandhill","4120  Longleaf Pine - Xeric Oak",null,null,null,null,{"$f":"CONCATENATE(S40,\"  \",T40)","v":"1125  Cabbage Palm"},1125,"Cabbage Palm",null,null,"131  Fixed single family units"]
[null,"4270  Live Oak","1123  Live Oak",null,null,null,"1131  Thorn Scrub",null,null,null,null,"1300  Pine Flatwoods and Dry Prairie","4110  Pine Flatwoods",null,null,null,null,{"$f":"CONCATENATE(S41,\"  \",T41)","v":"1130  Rockland Hammock"},1130,"Rockland Hammock",null,null,"133  Multiple dwelling units low rise"]
[null,"4271  Oak - Cabbage Palm Forests","183111  Oak - Cabbage Palm Forests",null,null,null,"1140  Slope Forest",null,null,null,null,"1340  Palmetto Prairie","3210  Palmetto Prairies",null,null,null,null,{"$f":"CONCATENATE(S42,\"  \",T42)","v":"1131  Thorn Scrub"},1131,"Thorn Scrub",null,null,"134  Multiple dwelling units high rise"]
[null,"4280  Cabbage Palm","1125  Cabbage Palm",null,null,null,"1150  Xeric Hammock",null,null,null,null,"1500  Shrub and Brushland","3200  Upland Shrub and Brushland",null,null,null,null,{"$f":"CONCATENATE(S43,\"  \",T43)","v":"1140  Slope Forest"},1140,"Slope Forest",null,null,"135  Mixed units (fixed and mobile home units)"]
[null,"4300  Upland Mixed Forests","1112  Mixed Hardwoods",null,null,null,"1200  High Pine and Scrub",null,null,null,null,"1610  Beach Dune","7200  Sand Other Than Beaches",null,null,null,null,{"$f":"CONCATENATE(S44,\"  \",T44)","v":"1150  Xeric Hammock"},1150,"Xeric Hammock",null,null,"139  High density under construction"]
[null,"4340  Upland Mixed Coniferous / Hardwood","1220  Upland Mixed Woodland",null,null,null,"1210  Scrub",null,null,null,null,"1670  Sand Beach (Dry)","7100  Beaches Other Than Swimming Beaches",null,null,null,null,{"$f":"CONCATENATE(S45,\"  \",T45)","v":"1200  High Pine and Scrub"},1200,"High Pine and Scrub",null,null,"140  Commercial and services"]
[null,"5110  Natural River, Stream, Waterway","4000  Riverine",null,null,null,"1211  Oak Scrub",null,null,null,null,"1760  Exposed Rock","7300  Exposed Rock",null,null,null,null,{"$f":"CONCATENATE(S46,\"  \",T46)","v":"1210  Scrub"},1210,"Scrub",null,null,"141  Retail sales and services"]
[null,"5200  Lakes","3000  Lacustrine",null,null,null,"1212  Rosemary Scrub",null,null,null,null,"1831  Rural Open","3100  Herbaceous (Dry Prairie)",null,null,null,null,{"$f":"CONCATENATE(S47,\"  \",T47)","v":"1211  Oak Scrub"},1211,"Oak Scrub",null,null,"142  Wholesale sales and services"]
[null,"5400  Bays and Estuaries","5000  Estuarine",null,null,null,"1213  Sand Pine Scrub",null,null,null,null,"183111  Oak - Cabbage Palm Forests","4271  Oak - Cabbage Palm Forests",null,null,null,null,{"$f":"CONCATENATE(S48,\"  \",T48)","v":"1212  Rosemary Scrub"},1212,"Rosemary Scrub",null,null,"143  Professional services"]
[null,"5410  Embayments Opening Directly to Gulf or Ocean","5000  Estuarine",null,null,null,"1214  Coastal Scrub",null,null,null,null,"2100  Freshwater Non-Forested Wetlands","6400  Vegetated Non-Forested Wetlands",null,null,null,null,{"$f":"CONCATENATE(S49,\"  \",T49)","v":"1213  Sand Pine Scrub"},1213,"Sand Pine Scrub",null,null,"144  Cultural and entertainment"]
[null,"5420  Embayments Not Opening Directly to Gulf or Ocean","5000  Estuarine",null,null,null,"1220  Upland Mixed Woodland",null,null,null,null,"2111  Wet Prairie","6430  Wet Prairies",null,null,null,null,{"$f":"CONCATENATE(S50,\"  \",T50)","v":"1214  Coastal Scrub"},1214,"Coastal Scrub",null,null,"145  Tourist services"]
[null,"5430  Saltwater Ponds","5240  Saltwater Marsh",null,null,null,"1230  Upland Coniferous",null,null,null,null,"2112  Mixed Scrub-Shrub Wetland","6460  Mixed Scrub-Shrub Wetland",null,null,null,null,{"$f":"CONCATENATE(S51,\"  \",T51)","v":"1220  Upland Mixed Woodland"},1220,"Upland Mixed Woodland",null,null,"146  Oil and gas storage"]
[null,"5500  Major Springs","4140  Seepage Stream",null,null,null,"1231  Upland Pine",null,null,null,null,"21121  Shrub Bog","6172  Mixed Shrubs",null,null,null,null,{"$f":"CONCATENATE(S52,\"  \",T52)","v":"1230  Upland Coniferous"},1230,"Upland Coniferous",null,null,"147  Mixed commercial services"]
[null,"5600  Slough Waters","2141  Slough",null,null,null,"1240  Sandhill",null,null,null,null,"2120  Marshes","6410  Freshwater Marshes / Graminoid Prairie - Marsh",null,null,null,null,{"$f":"CONCATENATE(S53,\"  \",T53)","v":"1231  Upland Pine"},1231,"Upland Pine",null,null,"148  Cemeteries"]
[null,"5700  Ocean and Gulf","6000  Marine",null,null,null,"1300  Pine Flatwoods and Dry Prairie",null,null,null,null,"2131  Sawgrass","6411  Freshwater Marshes - Sawgrass",null,null,null,null,{"$f":"CONCATENATE(S54,\"  \",T54)","v":"1240  Sandhill"},1240,"Sandhill",null,null,"149  Commercial and services under construction"]
[null,"5710  Atlantic Ocean","6000  Marine",null,null,null,"1310  Dry Flatwoods",null,null,null,null,"2140  Floating/Emergent Aquatic Vegetation","6440  Emergent Aquatic Vegetation",null,null,null,null,{"$f":"CONCATENATE(S55,\"  \",T55)","v":"1300  Pine Flatwoods and Dry Prairie"},1300,"Pine Flatwoods and Dry Prairie",null,null,"150  Industrial"]
[null,"5720  Gulf of Mexico","6000  Marine",null,null,null,"1311  Mesic Flatwoods",null,null,null,null,"2141  Slough","5600  Slough Waters",null,null,null,null,{"$f":"CONCATENATE(S56,\"  \",T56)","v":"1310  Dry Flatwoods"},1310,"Dry Flatwoods",null,null,"151  Food processing"]
[null,"6100  Wetland Hardwood Forests","2230  Other Hardwood Wetlands",null,null,null,"1312  Scrubby Flatwoods",null,null,null,null,"2210  Cypress/Tupelo(incl Cy/Tu mixed)","6216  Cypress - Mixed Hardwoods",null,null,null,null,{"$f":"CONCATENATE(S57,\"  \",T57)","v":"1311  Mesic Flatwoods"},1311,"Mesic Flatwoods",null,null,"152  Timber processing"]
[null,"6110  Bay Swamps","22311  Bay Swamp",null,null,null,"1320  Pine Rockland",null,null,null,null,"2211  Cypress","6210  Cypress",null,null,null,null,{"$f":"CONCATENATE(S58,\"  \",T58)","v":"1312  Scrubby Flatwoods"},1312,"Scrubby Flatwoods",null,null,"153  Mineral processing"]
[null,"6111  Bayhead","22312  South Florida Bayhead",null,null,null,"1330  Dry Prairie",null,null,null,null,"2213  Isolated Freshwater Swamp","6215  Cypress- Domes/Heads",null,null,null,null,{"$f":"CONCATENATE(S59,\"  \",T59)","v":"1320  Pine Rockland"},1320,"Pine Rockland",null,null,"154  Oil and gas processing"]
[null,"6120  Mangrove Swamp","5250  Mangrove Swamp",null,null,null,"1340  Palmetto Prairie",null,null,null,null,"22132  Basin Swamp","6130  Gum Swamps",null,null,null,null,{"$f":"CONCATENATE(S60,\"  \",T60)","v":"1330  Dry Prairie"},1330,"Dry Prairie",null,null,"155  Other light industrial"]
[null,"6130  Gum Swamps","22132  Basin Swamp",null,null,null,"1400  Mixed Hardwood-Coniferous",null,null,null,null,"22211  Hydric Pine Flatwoods","6250  Wet Pinelands Hydric Pine",null,null,null,null,{"$f":"CONCATENATE(S61,\"  \",T61)","v":"1340  Palmetto Prairie"},1340,"Palmetto Prairie",null,null,"156  Other heavy industrial"]
[null,"6140  Titi Swamps","2234  Titi Swamp",null,null,null,"1500  Shrub and Brushland",null,null,null,null,"22212  Hydric Pine Savanna","6260  Pine Savannah",null,null,null,null,{"$f":"CONCATENATE(S62,\"  \",T62)","v":"1400  Mixed Hardwood-Coniferous"},1400,"Mixed Hardwood-Coniferous",null,null,"159  Industrial under construction"]
[null,"6150  Stream And Lake Swamps (Bottomland)","22331  Bottomland Forest",null,null,null,"1600  Coastal Uplands",null,null,null,null,"2222  Pond Pine ","6220  Pond Pine",null,null,null,null,{"$f":"CONCATENATE(S63,\"  \",T63)","v":"1410  Successional Hardwood Forest"},1410,"Successional Hardwood Forest",null,null,"160  Extractive"]
[null,"6170  Mixed Wetland Hardwoods","2233  Mixed Wetland Hardwoods ",null,null,null,"1610  Beach Dune",null,null,null,null,"2223  Atlantic White Cedar","6230  Atlantic White Cedar",null,null,null,null,{"$f":"CONCATENATE(S64,\"  \",T64)","v":"1500  Shrub and Brushland"},1500,"Shrub and Brushland",null,null,"161  Strip mines"]
[null,"6172  Mixed Shrubs","21121  Shrub Bog",null,null,null,"1620  Coastal Berm",null,null,null,null,"2230  Other Hardwood Wetlands","6100  Wetland Hardwood Forests",null,null,null,null,{"$f":"CONCATENATE(S65,\"  \",T65)","v":"1510  Other Shrubs & Brush"},1510,"Other Shrubs & Brush",null,null,"162  Sand and gravel pits"]
[null,"6180  Cabbage Palm Wetland","2230  Other Hardwood Wetlands",null,null,null,"1630  Coastal Grassland",null,null,null,null,"2230  Other Hardwood Wetlands","6180  Cabbage Palm Wetland",null,null,null,null,{"$f":"CONCATENATE(S66,\"  \",T66)","v":"1600  Coastal Uplands"},1600,"Coastal Uplands",null,null,"163  Rock quarries"]
[null,"6181  Cabbage Palm Hammock","22323  Cabbage Palm Hammock",null,null,null,"1640  Coastal Strand",null,null,null,null,"2230  Other Hardwood Wetlands","6182  Cabbage Palm Savannah",null,null,null,null,{"$f":"CONCATENATE(S67,\"  \",T67)","v":"1610  Beach Dune"},1610,"Beach Dune",null,null,"164  Oil and gas fields"]
[null,"6182  Cabbage Palm Savannah","2230  Other Hardwood Wetlands",null,null,null,"1650  Maritime Hammock",null,null,null,null,"22311  Bay Swamp","6110  Bay Swamps",null,null,null,null,{"$f":"CONCATENATE(S68,\"  \",T68)","v":"1620  Coastal Berm"},1620,"Coastal Berm",null,null,"165  Reclaimed land"]
[null,"6210  Cypress","2211  Cypress",null,null,null,"1660  Shell Mound",null,null,null,null,"22312  South Florida Bayhead","6111  Bayhead",null,null,null,null,{"$f":"CONCATENATE(S69,\"  \",T69)","v":"1630  Coastal Grassland"},1630,"Coastal Grassland",null,null,"166  Holding ponds"]
[null,"6215  Cypress- Domes/Heads","2213  Isolated Freshwater Swamp",null,null,null,"1670  Sand Beach (Dry)",null,null,null,null,"22323  Cabbage Palm Hammock","6181  Cabbage Palm Hammock",null,null,null,null,{"$f":"CONCATENATE(S70,\"  \",T70)","v":"1640  Coastal Strand"},1640,"Coastal Strand",null,null,"170  Institutional"]
[null,"6216  Cypress - Mixed Hardwoods","2210  Cypress/Tupelo(incl Cy/Tu mixed)",null,null,"(Selection)","1700  Barren and Outcrop Communities",null,null,null,null,"2233  Mixed Wetland Hardwoods ","6170  Mixed Wetland Hardwoods",null,null,null,null,{"$f":"CONCATENATE(S71,\"  \",T71)","v":"1650  Maritime Hammock"},1650,"Maritime Hammock",null,null,"171  Educational facilities"]
[null,"6220  Pond Pine","2222  Pond Pine ",null,null,null,"1710  Sinkhole",null,null,null,null,"22331  Bottomland Forest","6150  Stream And Lake Swamps (Bottomland)",null,null,null,null,{"$f":"CONCATENATE(S72,\"  \",T72)","v":"1660  Shell Mound"},1660,"Shell Mound",null,null,"172  Religious"]
[null,"6230  Atlantic White Cedar","2223  Atlantic White Cedar",null,null,null,"1720  Upland Glade",null,null,null,null,"2234  Titi Swamp","6140  Titi Swamps",null,null,null,null,{"$f":"CONCATENATE(S73,\"  \",T73)","v":"1670  Sand Beach (Dry)"},1670,"Sand Beach (Dry)",null,null,"173  Military"]
[null,"6240  Cypress - Pine - Cabbage Palm","2242  Cypress/Pine/Cabbage Palm",null,null,null,"1730  Limestone Outcrop",null,null,null,null,"2240  Other Wetland Forested Mixed ","6300  Wetland Forested Mixed",null,null,null,null,{"$f":"CONCATENATE(S74,\"  \",T74)","v":"1700  Barren and Outcrop Communities"},1700,"Barren and Outcrop Communities",null,null,"174  Medical and health care"]
[null,"6250  Wet Pinelands Hydric Pine","22211  Hydric Pine Flatwoods",null,null,null,"1740  Keys Cactus Barren",null,null,null,null,"2242  Cypress/Pine/Cabbage Palm","6240  Cypress - Pine - Cabbage Palm",null,null,null,null,{"$f":"CONCATENATE(S75,\"  \",T75)","v":"1710  Sinkhole"},1710,"Sinkhole",null,null,"175  Governmental"]
[null,"6260  Pine Savannah","22212  Hydric Pine Savanna",null,null,null,"1760  Exposed Rock",null,null,null,null,"2300  Non-vegetated Wetland","6500  Non-Vegetated Wetland",null,null,null,null,{"$f":"CONCATENATE(S76,\"  \",T76)","v":"1720  Upland Glade"},1720,"Upland Glade",null,null,"176  Correctional"]
[null,"6300  Wetland Forested Mixed","2240  Other Wetland Forested Mixed ",null,null,null,"1761  Exposed Rock w/ Marsh Grasses",null,null,null,null,"2300  Non-vegetated Wetland","6520  Shorelines",null,null,null,null,{"$f":"CONCATENATE(S77,\"  \",T77)","v":"1730  Limestone Outcrop"},1730,"Limestone Outcrop",null,null,"177  Other institutional"]
[null,"6400  Vegetated Non-Forested Wetlands","2100  Freshwater Non-Forested Wetlands",null,null,null,"183111  Oak - Cabbage Palm Forests",null,null,null,null,"2300  Non-vegetated Wetland","6530  Intermittent Ponds",null,null,null,null,{"$f":"CONCATENATE(S78,\"  \",T78)","v":"1740  Keys Cactus Barren"},1740,"Keys Cactus Barren",null,null,"178  Commercial child care"]
[null,"6410  Freshwater Marshes / Graminoid Prairie - Marsh","2120  Marshes",null,null,null,"2100  Freshwater Non-Forested Wetlands",null,null,null,null,"3000  Lacustrine","5200  Lakes",null,null,null,null,{"$f":"CONCATENATE(S79,\"  \",T79)","v":"1750  Bare Soil"},1750,"Bare Soil",null,null,"179  Institutional under construction"]
[null,"6411  Freshwater Marshes - Sawgrass","2131  Sawgrass",null,null,null,"2110  Prairies and Bogs",null,null,null,null,"4000  Riverine","5110  Natural River, Stream, Waterway",null,null,null,null,{"$f":"CONCATENATE(S80,\"  \",T80)","v":"1760  Exposed Rock"},1760,"Exposed Rock",null,null,"180  Recreational"]
[null,"6420  Saltwater Marshes / Halophytic Herbaceous Prairie","5240  Saltwater Marsh",null,null,null,"2111  Wet Prairie",null,null,null,null,"4140  Seepage Stream","5500  Major Springs",null,null,null,null,{"$f":"CONCATENATE(S81,\"  \",T81)","v":"1761  Exposed Rock w/ Marsh Grasses"},1761,"Exposed Rock w/ Marsh Grasses",null,null,"181  Swimming beach"]
[null,"6430  Wet Prairies","2111  Wet Prairie",null,null,null,"21111  Wiregrass Savanna",null,null,null,null,"5000  Estuarine","5400  Bays and Estuaries",null,null,null,null,{"$f":"CONCATENATE(S82,\"  \",T82)","v":"1800  Cultural"},1800,"Cultural",null,null,"182  Golf courses"]
[null,"6440  Emergent Aquatic Vegetation","2140  Floating/Emergent Aquatic Vegetation",null,null,null,"21112  Cutthroat Seep",null,null,null,null,"5000  Estuarine","5410  Embayments Opening Directly to Gulf or Ocean",null,null,null,null,{"$f":"CONCATENATE(S83,\"  \",T83)","v":"1810  Mowed Grass"},1810,"Mowed Grass",null,null,"183  Race tracks"]
[null,"6460  Mixed Scrub-Shrub Wetland","2112  Mixed Scrub-Shrub Wetland",null,null,null,"21113  Calcareous Wet Prairie",null,null,null,null,"5000  Estuarine","5420  Embayments Not Opening Directly to Gulf or Ocean",null,null,null,null,{"$f":"CONCATENATE(S84,\"  \",T84)","v":"1811  Vegetative Berm"},1811,"Vegetative Berm",null,null,"184  Marinas and fish camps"]
[null,"6500  Non-Vegetated Wetland","2300  Non-vegetated Wetland",null,null,null,"21114  Pitcherplant Prairie",null,null,null,null,"5220  Tidal Flat","6510  Tidal Flats",null,null,null,null,{"$f":"CONCATENATE(S85,\"  \",T85)","v":"1812  Highway Rights of Way"},1812,"Highway Rights of Way",null,null,"185  Parks and zoos"]
[null,"6510  Tidal Flats","5220  Tidal Flat",null,null,null,"2112  Mixed Scrub-Shrub Wetland",null,null,null,null,"5220  Tidal Flat","6600  Salt Flats",null,null,null,null,{"$f":"CONCATENATE(S86,\"  \",T86)","v":"1820  Urban"},1820,"Urban",null,null,"186  Community recreational facilities"]
[null,"6520  Shorelines","2300  Non-vegetated Wetland",null,null,null,"21121  Shrub Bog",null,null,null,null,"5230  Oyster Bar","6540  Oyster Bars",null,null,null,null,{"$f":"CONCATENATE(S87,\"  \",T87)","v":"1821  Low Structure Density"},1821,"Low Structure Density",null,null,"187  Stadiums"]
[null,"6530  Intermittent Ponds","2300  Non-vegetated Wetland",null,null,null,"2113  Marl Prairie",null,null,null,null,"5240  Saltwater Marsh","5430  Saltwater Ponds",null,null,null,null,{"$f":"CONCATENATE(S88,\"  \",T88)","v":"1822  High Structure Density"},1822,"High Structure Density",null,null,"188  Historical sites"]
[null,"6540  Oyster Bars","5230  Oyster Bar",null,null,null,"2114  Seepage Slope",null,null,null,null,"5240  Saltwater Marsh","6420  Saltwater Marshes / Halophytic Herbaceous Prairie",null,null,null,null,{"$f":"CONCATENATE(S89,\"  \",T89)","v":"1830  Rural"},1830,"Rural",null,null,"189  Other recreational"]
[null,"6600  Salt Flats","5220  Tidal Flat",null,null,null,"2120  Marshes",null,null,null,null,"5250  Mangrove Swamp","6120  Mangrove Swamp",null,null,null,null,{"$f":"CONCATENATE(S90,\"  \",T90)","v":"1831  Rural Open"},1831,"Rural Open",null,null,"190  Open land"]
[null,"7100  Beaches Other Than Swimming Beaches","1670  Sand Beach (Dry)",null,null,null,"21211  Depression Marsh",null,null,null,null,"6000  Marine","5700  Ocean and Gulf",null,null,null,null,{"$f":"CONCATENATE(S91,\"  \",T91)","v":"1832  Agriculture"},1832,"Agriculture",null,null,"191  Undeveloped land within urban areas"]
[null,"7200  Sand Other Than Beaches","1610  Beach Dune",null,null,null,"21212  Basin Marsh",null,null,null,null,"6000  Marine","5710  Atlantic Ocean",null,null,null,null,{"$f":"CONCATENATE(S92,\"  \",T92)","v":"1840  Transportation"},1840,"Transportation",null,null,"192  Inactive land with street pattern"]
[null,"7300  Exposed Rock","1760  Exposed Rock",null,null,null,"2122  Coastal Interdunal Swale",null,null,null,null,"6000  Marine","5720  Gulf of Mexico",null,null,null,null,{"$f":"CONCATENATE(S93,\"  \",T93)","v":"1841  Roads"},1841,"Roads",null,null,"193  Urban land in transition"]
[null,null,null,null,null,null,"2123  Floodplain Marsh",null,null,null,null,null,null,null,null,null,null,{"$f":"CONCATENATE(S94,\"  \",T94)","v":"1842  Rails"},1842,"Rails",null,null,"194  Other open land"]
[null,null,null,null,null,null,"21231  Freshwater Tidal Marsh",null,null,null,null,null,null,null,null,null,null,{"$f":"CONCATENATE(S95,\"  \",T95)","v":"1850  Communication"},1850,"Communication",null,null,"200  Agriculture"]
[null,null,null,null,null,null,"2124  Slough Marsh",null,null,null,null,null,null,null,null,null,null,{"$f":"CONCATENATE(S96,\"  \",T96)","v":"1860  Utilities"},1860,"Utilities",null,null,"210  Cropland and Pastureland"]
[null,null,null,null,null,null,"2125  Glades Marsh",null,null,null,null,null,null,null,null,null,null,{"$f":"CONCATENATE(S97,\"  \",T97)","v":"1870  Extractive"},1870,"Extractive",null,null,"211  Improved pastures"]
[null,null,null,null,null,null,"21251  Keys Freshwater Marsh",null,null,null,null,null,null,null,null,null,null,{"$f":"CONCATENATE(S98,\"  \",T98)","v":"1871  Strip Mines"},1871,"Strip Mines",null,null,"212  Unimproved pastures"]
[null,null,null,null,null,null,"2131  Sawgrass",null,null,null,null,null,null,null,null,null,null,{"$f":"CONCATENATE(S99,\"  \",T99)","v":"1872  Sand & Gravel Pits"},1872,"Sand & Gravel Pits",null,null,"213  Woodland pastures"]
[null,null,null,null,null,null,"2132  Cattail",null,null,null,null,null,null,null,null,null,null,{"$f":"CONCATENATE(S100,\"  \",T100)","v":"1873  Rock Quarries"},1873,"Rock Quarries",null,null,"214  Row crops"]
[null,null,null,null,null,null,"2133  Spike Rush",null,null,null,null,null,null,null,null,null,null,{"$f":"CONCATENATE(S101,\"  \",T101)","v":"1874  Oil & Gas Fields"},1874,"Oil & Gas Fields",null,null,"215  Field crops"]
[null,null,null,null,null,null,"2134  Maidencane",null,null,null,null,null,null,null,null,null,null,{"$f":"CONCATENATE(S102,\"  \",T102)","v":"1875  Reclaimed Lands"},1875,"Reclaimed Lands",null,null,"220  Tree Crops"]
[null,null,null,null,null,null,"2135  Dog Fennel & Low Marsh Grasses",null,null,null,null,null,null,null,null,null,null,{"$f":"CONCATENATE(S103,\"  \",T103)","v":"1876  Abandoned Mining Lands"},1876,"Abandoned Mining Lands",null,null,"221  Citrus groves"]
[null,null,null,null,null,null,"2135  Arrowroot",null,null,null,null,null,null,null,null,null,null,{"$f":"CONCATENATE(S104,\"  \",T104)","v":"1880  Bare Soil/Clear Cut"},1880,"Bare Soil/Clear Cut",null,null,"222  Fruit orchards"]
[null,null,null,null,null,null,"2137  Giant Cutgrass",null,null,null,null,null,null,null,null,null,null,{"$f":"CONCATENATE(S105,\"  \",T105)","v":"2000  Palustrine"},2000,"Palustrine",null,null,"223  Other groves"]
[null,null,null,null,null,null,"2138  Buttonbush",null,null,null,null,null,null,null,null,null,null,{"$f":"CONCATENATE(S106,\"  \",T106)","v":"2100  Freshwater Non-Forested Wetlands"},2100,"Freshwater Non-Forested Wetlands",null,null,"230  Feeding operations"]
[null,null,null,null,null,null,"2141  Slough",null,null,null,null,null,null,null,null,null,null,{"$f":"CONCATENATE(S107,\"  \",T107)","v":"2110  Prairies and Bogs"},2110,"Prairies and Bogs",null,null,"231  Cattle feeding operations"]
[null,null,null,null,null,null,"21411  Pond Apple Slough",null,null,null,null,null,null,null,null,null,null,{"$f":"CONCATENATE(S108,\"  \",T108)","v":"2111  Wet Prairie/Seepage Slope"},2111,"Wet Prairie/Seepage Slope",null,null,"232  Poultry feeding operations"]
[null,null,null,null,null,null,"2150  Submergent Aquatic Vegetation",null,null,null,null,null,null,null,null,null,null,{"$f":"CONCATENATE(S109,\"  \",T109)","v":"2112  Mixed Scrub-Shrub Wetland"},2112,"Mixed Scrub-Shrub Wetland",null,null,"233  Swine feeding operations"]
[null,null,null,null,null,null,"2200  Freshwater Forested Wetlands",null,null,null,null,null,null,null,null,null,null,{"$f":"CONCATENATE(S110,\"  \",T110)","v":"2113  Marl Prairie"},2113,"Marl Prairie",null,null,"240  Nurseries and Vineyards"]
[null,null,null,null,null,null,"2210  Cypress/Tupelo(incl Cy/Tu mixed)",null,null,null,null,null,null,null,null,null,null,{"$f":"CONCATENATE(S111,\"  \",T111)","v":"2120  Marshes"},2120,"Marshes",null,null,"241  Tree nurseries"]
[null,null,null,null,null,null,"2211  Cypress",null,null,null,null,null,null,null,null,null,null,{"$f":"CONCATENATE(S112,\"  \",T112)","v":"2121  Depression Marsh"},2121,"Depression Marsh",null,null,"242  Sod farms"]
[null,null,null,null,null,null,"2212  Tupelo",null,null,null,null,null,null,null,null,null,null,{"$f":"CONCATENATE(S113,\"  \",T113)","v":"2122  Basin Marsh"},2122,"Basin Marsh",null,null,"243  Ornamentals"]
[null,null,null,null,null,null,"22131  Dome Swamp",null,null,null,null,null,null,null,null,null,null,{"$f":"CONCATENATE(S114,\"  \",T114)","v":"2123  Coastal Interdunal Swale"},2123,"Coastal Interdunal Swale",null,null,"244  Vineyards"]
[null,null,null,null,null,null,"221311  Stringer Swamp",null,null,null,null,null,null,null,null,null,null,{"$f":"CONCATENATE(S115,\"  \",T115)","v":"2124  Floodplain Marsh"},2124,"Floodplain Marsh",null,null,"245  Floriculture"]
[null,null,null,null,null,null,"221312  Gum Pond",null,null,null,null,null,null,null,null,null,null,{"$f":"CONCATENATE(S116,\"  \",T116)","v":"2125  Slough Marsh"},2125,"Slough Marsh",null,null,"246  Timber nursery"]
[null,null,null,null,null,null,"22132  Basin Swamp",null,null,null,null,null,null,null,null,null,null,{"$f":"CONCATENATE(S117,\"  \",T117)","v":"2126  Glades Marsh"},2126,"Glades Marsh",null,null,"250  Specialty farms"]
[null,null,null,null,null,null,"2214  Strand Swamp",null,null,null,null,null,null,null,null,null,null,{"$f":"CONCATENATE(S118,\"  \",T118)","v":"2130  Marshes (Continued)"},2130,"Marshes (Continued)",null,null,"251  Horse farms"]
[null,null,null,null,null,null,"2215  Floodplain Swamp",null,null,null,null,null,null,null,null,null,null,{"$f":"CONCATENATE(S119,\"  \",T119)","v":"2131  Sawgrass"},2131,"Sawgrass",null,null,"252  Dairies"]
[null,null,null,null,null,null,"22151  Freshwater Tidal Swamp",null,null,null,null,null,null,null,null,null,null,{"$f":"CONCATENATE(S120,\"  \",T120)","v":"2132  Cattail"},2132,"Cattail",null,null,"253  Kennels"]
[null,null,null,null,null,null,"2220  Other Coniferous Wetlands",null,null,null,null,null,null,null,null,null,null,{"$f":"CONCATENATE(S121,\"  \",T121)","v":"2133  Spike Rush"},2133,"Spike Rush",null,null,"254  Aquaculture"]
[null,null,null,null,null,null,"2221  Wet Flatwoods",null,null,null,null,null,null,null,null,null,null,{"$f":"CONCATENATE(S122,\"  \",T122)","v":"2134  Maidencane"},2134,"Maidencane",null,null,"259  Other"]
[null,null,null,null,null,null,"22211  Hydric Pine Flatwoods",null,null,null,null,null,null,null,null,null,null,{"$f":"CONCATENATE(S123,\"  \",T123)","v":"2135  Dog Fennel & Low Marsh Grasses"},2135,"Dog Fennel & Low Marsh Grasses",null,null,"260  Other open lands (rural)"]
[null,null,null,null,null,null,"222111  Cutthroat Grass Flatwoods",null,null,null,null,null,null,null,null,null,null,{"$f":"CONCATENATE(S124,\"  \",T124)","v":"2135  Arrowroot"},2135,"Arrowroot",null,null,"261  Fallow crop land"]
[null,null,null,null,null,null,"222112  Cabbage Palm Flatwoods",null,null,null,null,null,null,null,null,null,null,{"$f":"CONCATENATE(S125,\"  \",T125)","v":"2137  Giant Cutgrass"},2137,"Giant Cutgrass",null,null,"300  Rangeland"]
[null,null,null,null,null,null,"22212  Hydric Pine Savanna",null,null,null,null,null,null,null,null,null,null,{"$f":"CONCATENATE(S126,\"  \",T126)","v":"2138  Buttonbush"},2138,"Buttonbush",null,null,"310  Herbaceous"]
[null,null,null,null,null,null,"2222  Pond Pine",null,null,null,null,null,null,null,null,null,null,{"$f":"CONCATENATE(S127,\"  \",T127)","v":"2139  Other spp."},2139,"Other spp.",null,null,"320  Shrub and brushland"]
[null,null,null,null,null,null,"2223  Atlantic White Cedar",null,null,null,null,null,null,null,null,null,null,{"$f":"CONCATENATE(S128,\"  \",T128)","v":"2140  Floating/Emergent Aquatic Vegetation"},2140,"Floating/Emergent Aquatic Vegetation",null,null,"321  Palmetto prairies"]
[null,null,null,null,null,null,"2224  Slash Pine Swamp Forest",null,null,null,null,null,null,null,null,null,null,{"$f":"CONCATENATE(S129,\"  \",T129)","v":"2141  Slough"},2141,"Slough",null,null,"322  Coastal scrub"]
[null,null,null,null,null,null,"2230  Other Hardwood Wetlands",null,null,null,null,null,null,null,null,null,null,{"$f":"CONCATENATE(S130,\"  \",T130)","v":"2142  Water Lettuce"},2142,"Water Lettuce",null,null,"329  Other shrubs and brush"]
[null,null,null,null,null,null,"2231  Baygall",null,null,null,null,null,null,null,null,null,null,{"$f":"CONCATENATE(S131,\"  \",T131)","v":"2143  Spatterdock"},2143,"Spatterdock",null,null,"330  Mixed rangeland"]
[null,null,null,null,null,null,"22311  Bay Swamp",null,null,null,null,null,null,null,null,null,null,{"$f":"CONCATENATE(S132,\"  \",T132)","v":"2144  Water Hyacinth"},2144,"Water Hyacinth",null,null,"400  Upland forests"]
[null,null,null,null,null,null,"22312  South Florida Bayhead",null,null,null,null,null,null,null,null,null,null,{"$f":"CONCATENATE(S133,\"  \",T133)","v":"2145  Duck Weed"},2145,"Duck Weed",null,null,"410  Upland coniferous forests"]
[null,null,null,null,null,null,"2232  Hydric Hammock",null,null,null,null,null,null,null,null,null,null,{"$f":"CONCATENATE(S134,\"  \",T134)","v":"2146  Water Lily"},2146,"Water Lily",null,null,"411  Pine flatwoods"]
[null,null,null,null,null,null,"22321  Coastal Hydric Hammock",null,null,null,null,null,null,null,null,null,null,{"$f":"CONCATENATE(S135,\"  \",T135)","v":"2147  Other spp."},2147,"Other spp.",null,null,"412  Longleaf pine - xeric oak"]
[null,null,null,null,null,null,"22322  Prairie Hydric Hammock",null,null,null,null,null,null,null,null,null,null,{"$f":"CONCATENATE(S136,\"  \",T136)","v":"2150  Submergent Aquatic Vegetation"},2150,"Submergent Aquatic Vegetation",null,null,"413  Sand pine"]
[null,null,null,null,null,null,"22323  Cabbage Palm Hammock",null,null,null,null,null,null,null,null,null,null,{"$f":"CONCATENATE(S137,\"  \",T137)","v":"2200  Freshwater Forested Wetlands"},2200,"Freshwater Forested Wetlands",null,null,"414  Pine - mesic oak"]
[null,null,null,null,null,null,"2233  Mixed Wetland Hardwoods",null,null,null,null,null,null,null,null,null,null,{"$f":"CONCATENATE(S138,\"  \",T138)","v":"2210  Cypress/Tupelo(incl Cy/Tu mixed)"},2210,"Cypress/Tupelo(incl Cy/Tu mixed)",null,null,"419  Other pines"]
[null,null,null,null,null,null,"22331  Bottomland Forest",null,null,null,null,null,null,null,null,null,null,{"$f":"CONCATENATE(S139,\"  \",T139)","v":"2211  Cypress"},2211,"Cypress",null,null,"420  Upland Hardwood Forests"]
[null,null,null,null,null,null,"22332  Alluvial Forest",null,null,null,null,null,null,null,null,null,null,{"$f":"CONCATENATE(S140,\"  \",T140)","v":"2212  Tupelo"},2212,"Tupelo",null,null,"421  Xeric oak"]
[null,null,null,null,null,null,"2234  Titi Swamp",null,null,null,null,null,null,null,null,null,null,{"$f":"CONCATENATE(S141,\"  \",T141)","v":"2213  Dome Swamp"},2213,"Dome Swamp",null,null,"422  Brazilian pepper"]
[null,null,null,null,null,null,"2240  Other Wetland Forested Mixed",null,null,null,null,null,null,null,null,null,null,{"$f":"CONCATENATE(S142,\"  \",T142)","v":"2214  Basin Swamp"},2214,"Basin Swamp",null,null,"423  Oak - pine - hickory"]
[null,null,null,null,null,null,"2241  Cypress/Hardwood Swamps ",null,null,null,null,null,null,null,null,null,null,{"$f":"CONCATENATE(S143,\"  \",T143)","v":"2215  Strand Swamp"},2215,"Strand Swamp",null,null,"424  Melaleuca"]
[null,null,null,null,null,null,"2242  Cypress/Pine/Cabbage Palm",null,null,null,null,null,null,null,null,null,null,{"$f":"CONCATENATE(S144,\"  \",T144)","v":"2216  Floodplain Swamp"},2216,"Floodplain Swamp",null,null,"425  Temperate hardwood"]
[null,null,null,null,null,null,"2300  Non-vegetated Wetland",null,null,null,null,null,null,null,null,null,null,{"$f":"CONCATENATE(S145,\"  \",T145)","v":"2220  Other Coniferous Wetlands"},2220,"Other Coniferous Wetlands",null,null,"426  Tropical hardwoods"]
[null,null,null,null,null,null,"3000  Lacustrine",null,null,null,null,null,null,null,null,null,null,{"$f":"CONCATENATE(S146,\"  \",T146)","v":"2221  Wet Flatwoods"},2221,"Wet Flatwoods",null,null,"427  Live oak"]
[null,null,null,null,null,null,"3100  Natural Lakes and Ponds",null,null,null,null,null,null,null,null,null,null,{"$f":"CONCATENATE(S147,\"  \",T147)","v":"2222  Pond Pine "},2222,"Pond Pine ",null,null,"428  Cabbage palm"]
[null,null,null,null,null,null,"3110  Limnetic",null,null,null,null,null,null,null,null,null,null,{"$f":"CONCATENATE(S148,\"  \",T148)","v":"2223  Atlantic White Cedar"},2223,"Atlantic White Cedar",null,null,"429  Wax myrtle - willow"]
[null,null,null,null,null,null,"3111  Clastic Upland Lake",null,null,null,null,null,null,null,null,null,null,{"$f":"CONCATENATE(S149,\"  \",T149)","v":"2224  Slash Pine Swamp Forest"},2224,"Slash Pine Swamp Forest",null,null,"430  Upland Hardwood Forests - Continued"]
[null,null,null,null,null,null,"3112  Coastal Dune Lake",null,null,null,null,null,null,null,null,null,null,{"$f":"CONCATENATE(S150,\"  \",T150)","v":"2230  Other Hardwood Wetlands"},2230,"Other Hardwood Wetlands",null,null,"431  Beach - magnolia"]
[null,null,null,null,null,null,"3113  Flatwoods/Prairie/Marsh Lake",null,null,null,null,null,null,null,null,null,null,{"$f":"CONCATENATE(S151,\"  \",T151)","v":"2231  Baygall"},2231,"Baygall",null,null,"432  Sand live oak"]
[null,null,null,null,null,null,"3114  River Floodplain Lake/Swamp Lake",null,null,null,null,null,null,null,null,null,null,{"$f":"CONCATENATE(S152,\"  \",T152)","v":"2232  Hydric Hammock"},2232,"Hydric Hammock",null,null,"433  Western Everglades hardwoods"]
[null,null,null,null,null,null,"3115  Sinkhole Lake",null,null,null,null,null,null,null,null,null,null,{"$f":"CONCATENATE(S153,\"  \",T153)","v":"2233  Mixed Wetland Hardwoods "},2233,"Mixed Wetland Hardwoods ",null,null,"434  Hardwood conifer mixed"]
[null,null,null,null,null,null,"3116  Coastal Rockland Lake",null,null,null,null,null,null,null,null,null,null,{"$f":"CONCATENATE(S154,\"  \",T154)","v":"2234  Titi Swamp"},2234,"Titi Swamp",null,null,"435  Dead trees"]
[null,null,null,null,null,null,"3117  Sandhill Lake",null,null,null,null,null,null,null,null,null,null,{"$f":"CONCATENATE(S155,\"  \",T155)","v":"2240  Other Wetland Forested Mixed "},2240,"Other Wetland Forested Mixed ",null,null,"437  Australian Pine"]
[null,null,null,null,null,null,"3118  Major Springs",null,null,null,null,null,null,null,null,null,null,{"$f":"CONCATENATE(S156,\"  \",T156)","v":"2241  Cypress/Hardwood Swamps "},2241,"Cypress/Hardwood Swamps ",null,null,"438  Mixed hardwoods"]
[null,null,null,null,null,null,"4000  Riverine",null,null,null,null,null,null,null,null,null,null,{"$f":"CONCATENATE(S157,\"  \",T157)","v":"2242  Cypress/Pine/Cabbage Palm"},2242,"Cypress/Pine/Cabbage Palm",null,null,"439  Other hardwoods"]
[null,null,null,null,null,null,"4100  Natural Rivers and Streams",null,null,null,null,null,null,null,null,null,null,{"$f":"CONCATENATE(S158,\"  \",T158)","v":"2300  Non-vegetated Wetland"},2300,"Non-vegetated Wetland",null,null,"440  Tree plantations"]
[null,null,null,null,null,null,"4110  Alluvial Stream",null,null,null,null,null,null,null,null,null,null,{"$f":"CONCATENATE(S159,\"  \",T159)","v":"2400  Cultural"},2400,"Cultural",null,null,"441  Coniferous plantations"]
[null,null,null,null,null,null,"4120  Blackwater Stream",null,null,null,null,null,null,null,null,null,null,{"$f":"CONCATENATE(S160,\"  \",T160)","v":"2410  Impounded Marsh"},2410,"Impounded Marsh",null,null,"442  Hardwood plantations"]
[null,null,null,null,null,null,"4130  Spring-run Stream",null,null,null,null,null,null,null,null,null,null,{"$f":"CONCATENATE(S161,\"  \",T161)","v":"2420  Impounded Swamp"},2420,"Impounded Swamp",null,null,"443  Forest regeneration areas"]
[null,null,null,null,null,null,"4140  Seepage Stream",null,null,null,null,null,null,null,null,null,null,{"$f":"CONCATENATE(S162,\"  \",T162)","v":"2430  Grazed Wetlands"},2430,"Grazed Wetlands",null,null,"444  Experimental tree plots"]
[null,null,null,null,null,null,"4150  Calcareous Stream",null,null,null,null,null,null,null,null,null,null,{"$f":"CONCATENATE(S163,\"  \",T163)","v":"2440  Clearcut Wetland"},2440,"Clearcut Wetland",null,null,"445  Seed plantations"]
[null,null,null,null,null,null,"4160  Tidally-influenced Stream",null,null,null,null,null,null,null,null,null,null,{"$f":"CONCATENATE(S164,\"  \",T164)","v":"3000  Lacustrine"},3000,"Lacustrine",null,null,"500  Water"]
[null,null,null,null,null,null,"4170  Riverine Sandbar",null,null,null,null,null,null,null,null,null,null,{"$f":"CONCATENATE(S165,\"  \",T165)","v":"3100  Natural"},3100,"Natural",null,null,"510  Streams and Waterways"]
[null,null,null,null,null,null,"5000  Estuarine",null,null,null,null,null,null,null,null,null,null,{"$f":"CONCATENATE(S166,\"  \",T166)","v":"3110  Limnetic"},3110,"Limnetic",null,null,"520  Lakes"]
[null,null,null,null,null,null,"5100  Subtidal",null,null,null,null,null,null,null,null,null,null,{"$f":"CONCATENATE(S167,\"  \",T167)","v":"3111  Clastic Upland Lake"},3111,"Clastic Upland Lake",null,null,"521  Lakes larger than 500 acres"]
[null,null,null,null,null,null,"5200  Intertidal",null,null,null,null,null,null,null,null,null,null,{"$f":"CONCATENATE(S168,\"  \",T168)","v":"3112  Coastal Dune Lake"},3112,"Coastal Dune Lake",null,null,"522  Lakes larger than 100 acres - less than 500 acres"]
[null,null,null,null,null,null,"5210  Exposed Limestone",null,null,null,null,null,null,null,null,null,null,{"$f":"CONCATENATE(S169,\"  \",T169)","v":"3113  Flatwoods/Prairie/Marsh Lake"},3113,"Flatwoods/Prairie/Marsh Lake",null,null,"523  Lakes larger than 10 acres - less than 100 acres"]
[null,null,null,null,null,null,"52111  Keys Tidal Rock Barren",null,null,null,null,null,null,null,null,null,null,{"$f":"CONCATENATE(S170,\"  \",T170)","v":"3114  River Floodplain Lake/Swamp Lake"},3114,"River Floodplain Lake/Swamp Lake",null,null,"524  Lakes less than 10 acres"]
[null,null,null,null,null,null,"5220  Tidal Flat",null,null,null,null,null,null,null,null,null,null,{"$f":"CONCATENATE(S171,\"  \",T171)","v":"3115  Sinkhole Lake"},3115,"Sinkhole Lake",null,null,"530  Reservoirs"]
[null,null,null,null,null,null,"5221  Mud",null,null,null,null,null,null,null,null,null,null,{"$f":"CONCATENATE(S172,\"  \",T172)","v":"3116  Coastal Rockland Lake"},3116,"Coastal Rockland Lake",null,null,"531  Reservoir larger than 500 acres"]
[null,null,null,null,null,null,"5222  Sand",null,null,null,null,null,null,null,null,null,null,{"$f":"CONCATENATE(S173,\"  \",T173)","v":"3117  Sandhill Lake"},3117,"Sandhill Lake",null,null,"532  Reservoirs larger than 100 acres - less than 500 acres"]
[null,null,null,null,null,null,"5230  Oyster Bar",null,null,null,null,null,null,null,null,null,null,{"$f":"CONCATENATE(S174,\"  \",T174)","v":"3120  Littoral"},3120,"Littoral",null,null,"533  Reservoirs larger than 10 acres - less than 100 acres"]
[null,null,null,null,null,null,"5240  Salt Marsh",null,null,null,null,null,null,null,null,null,null,{"$f":"CONCATENATE(S175,\"  \",T175)","v":"3200  Cultural"},3200,"Cultural",null,null,"534  Reservoirs less than 10 acres"]
[null,null,null,null,null,null,"5241  Salt Flat",null,null,null,null,null,null,null,null,null,null,{"$f":"CONCATENATE(S176,\"  \",T176)","v":"3210  Artificial/Farm Pond"},3210,"Artificial/Farm Pond",null,null,"540  Bays and Estuaries"]
[null,null,null,null,null,null,"5242  Cordgrass",null,null,null,null,null,null,null,null,null,null,{"$f":"CONCATENATE(S177,\"  \",T177)","v":"3211  Aquacultural Ponds"},3211,"Aquacultural Ponds",null,null,"541  Embayments opening"]
[null,null,null,null,null,null,"5243  Needlerush",null,null,null,null,null,null,null,null,null,null,{"$f":"CONCATENATE(S178,\"  \",T178)","v":"3220  Artificial Impoundment/Reservoir"},3220,"Artificial Impoundment/Reservoir",null,null,"542  Embayments not opening"]
[null,null,null,null,null,null,"5250  Mangrove Swamp",null,null,null,null,null,null,null,null,null,null,{"$f":"CONCATENATE(S179,\"  \",T179)","v":"3230  Quarry Pond"},3230,"Quarry Pond",null,null,"550  Major Spring"]
[null,null,null,null,null,null,"5251  Buttonwood Forest",null,null,null,null,null,null,null,null,null,null,{"$f":"CONCATENATE(S180,\"  \",T180)","v":"3240  Sewage Treatment Pond"},3240,"Sewage Treatment Pond",null,null,"560  Slough Water"]
[null,null,null,null,null,null,"5252  Scrub Mangrove",null,null,null,null,null,null,null,null,null,null,{"$f":"CONCATENATE(S181,\"  \",T181)","v":"3250  Stormwater Treatment Areas"},3250,"Stormwater Treatment Areas",null,null,"600  Wetlands"]
[null,null,null,null,null,null,"6100  Surf Zone",null,null,null,null,null,null,null,null,null,null,{"$f":"CONCATENATE(S182,\"  \",T182)","v":"3260  Industrial Cooling Pond"},3260,"Industrial Cooling Pond",null,null,"610  Wetland Hardwood Forests"]
[null,null,null,null,null,null,"8000  Open Water",null,null,null,null,null,null,null,null,null,null,{"$f":"CONCATENATE(S183,\"  \",T183)","v":"4000  Riverine"},4000,"Riverine",null,null,"611  Bay Swamps"]
[null,null,null,null,null,null,"9000  Other (Please use Manual Entry Option)",null,null,null,null,null,null,null,null,null,null,{"$f":"CONCATENATE(S184,\"  \",T184)","v":"4100  Natural"},4100,"Natural",null,null,"612  Mangrove swamps"]
[null,null,null,null,null,null,"9100  Unconsolidated Substrate",null,null,null,null,null,null,null,null,null,null,{"$f":"CONCATENATE(S185,\"  \",T185)","v":"4110  Alluvial"},4110,"Alluvial",null,null,"613  Gum swamps"]
[null,null,null,null,null,null,null,null,null,null,null,null,null,null,null,null,null,{"$f":"CONCATENATE(S186,\"  \",T186)","v":"4120  Blackwater"},4120,"Blackwater",null,null,"614  Titi swamps"]
[null,null,null,null,null,null,null,null,null,null,null,null,null,null,null,null,null,{"$f":"CONCATENATE(S187,\"  \",T187)","v":"4130  Spring Run"},4130,"Spring Run",null,null,"615  Stream and lake swamps (bottomland)"]
[null,null,null,null,null,null,null,null,null,null,null,null,null,null,null,null,null,{"$f":"CONCATENATE(S188,\"  \",T188)","v":"4140  Seepage Stream"},4140,"Seepage Stream",null,null,"616  Inland ponds and sloughs"]
[null,null,null,null,null,null,null,null,null,null,null,null,null,null,null,null,null,{"$f":"CONCATENATE(S189,\"  \",T189)","v":"4150  Calcareous"},4150,"Calcareous",null,null,"617  Mixed wetland hardwoods"]
[null,null,null,null,null,null,null,null,null,null,null,null,null,null,null,null,null,{"$f":"CONCATENATE(S190,\"  \",T190)","v":"4160  Tidally-influenced"},4160,"Tidally-influenced",null,null,"620  Wetland Coniferous Forests"]
[null,null,null,null,null,null,null,null,null,null,null,null,null,null,null,null,null,{"$f":"CONCATENATE(S191,\"  \",T191)","v":"4200  Cultural"},4200,"Cultural",null,null,"621  Cypress"]
[null,null,null,null,null,null,null,null,null,null,null,null,null,null,null,null,null,{"$f":"CONCATENATE(S192,\"  \",T192)","v":"4210  Canal"},4210,"Canal",null,null,"622  Pond pine"]
[null,null,null,null,null,null,null,null,null,null,null,null,null,null,null,null,null,{"$f":"CONCATENATE(S193,\"  \",T193)","v":"4220  Ditch/Artificial Intermittent Stream"},4220,"Ditch/Artificial Intermittent Stream",null,null,"623  Atlantic white cedar"]
[null,null,null,null,null,null,null,null,null,null,null,null,null,null,null,null,null,{"$f":"CONCATENATE(S194,\"  \",T194)","v":"4230  Industrial Effluent Stream"},4230,"Industrial Effluent Stream",null,null,"624  Cypress - pine - cabbage palm"]
[null,null,null,null,null,null,null,null,null,null,null,null,null,null,null,null,null,{"$f":"CONCATENATE(S195,\"  \",T195)","v":"5000  Estuarine"},5000,"Estuarine",null,null,"630  Wetland forested mixed"]
[null,null,null,null,null,null,null,null,null,null,null,null,null,null,null,null,null,{"$f":"CONCATENATE(S196,\"  \",T196)","v":"5100  Subtidal"},5100,"Subtidal",null,null,"640  Vegetated Non-forested wetlands"]
[null,null,null,null,null,null,null,null,null,null,null,null,null,null,null,null,null,{"$f":"CONCATENATE(S197,\"  \",T197)","v":"5200  Intertidal"},5200,"Intertidal",null,null,"641  Freshwater marshes"]
[null,null,null,null,null,null,null,null,null,null,null,null,null,null,null,null,null,{"$f":"CONCATENATE(S198,\"  \",T198)","v":"5210  Exposed Limestone"},5210,"Exposed Limestone",null,null,"642  Saltwater marshes"]
[null,null,null,null,null,null,null,null,null,null,null,null,null,null,null,null,null,{"$f":"CONCATENATE(S199,\"  \",T199)","v":"5211  Vegetated"},5211,"Vegetated",null,null,"643  Wet prairies"]
[null,null,null,null,null,null,null,null,null,null,null,null,null,null,null,null,null,{"$f":"CONCATENATE(S200,\"  \",T200)","v":"5212  Non-vegetated"},5212,"Non-vegetated",null,null,"644  Emergent aquatic vegetations"]
[null,null,null,null,null,null,null,null,null,null,null,null,null,null,null,null,null,{"$f":"CONCATENATE(S201,\"  \",T201)","v":"5220  Tidal Flat"},5220,"Tidal Flat",null,null,"645  Submergent aquatic vegetation"]
[null,null,null,null,null,null,null,null,null,null,null,null,null,null,null,null,null,{"$f":"CONCATENATE(S202,\"  \",T202)","v":"5221  Mud"},5221,"Mud",null,null,"650  Non-vegetated"]
[null,null,null,null,null,null,null,null,null,null,null,null,null,null,null,null,null,{"$f":"CONCATENATE(S203,\"  \",T203)","v":"5222  Sand"},5222,"Sand",null,null,"651  Tidal flats"]
[null,null,null,null,null,null,null,null,null,null,null,null,null,null,null,null,null,{"$f":"CONCATENATE(S204,\"  \",T204)","v":"5230  Oyster Bar"},5230,"Oyster Bar",null,null,"652  Shorelines"]
[null,null,null,null,null,null,null,null,null,null,null,null,null,null,null,null,null,{"$f":"CONCATENATE(S205,\"  \",T205)","v":"5240  Saltwater Marsh"},5240,"Saltwater Marsh",null,null,"653  Intermittent ponds"]
[null,null,null,null,null,null,null,null,null,null,null,null,null,null,null,null,null,{"$f":"CONCATENATE(S206,\"  \",T206)","v":"5241  Saltwater Marsh Barren"},5241,"Saltwater Marsh Barren",null,null,"654  Oyster bars"]
[null,null,null,null,null,null,null,null,null,null,null,null,null,null,null,null,null,{"$f":"CONCATENATE(S207,\"  \",T207)","v":"5242  Cordgrass"},5242,"Cordgrass",null,null,"700  Barren land"]
[null,null,null,null,null,null,null,null,null,null,null,null,null,null,null,null,null,{"$f":"CONCATENATE(S208,\"  \",T208)","v":"5243  Needlerush"},5243,"Needlerush",null,null,"710  Beaches other than swimming beaches"]
[null,null,null,null,null,null,null,null,null,null,null,null,null,null,null,null,null,{"$f":"CONCATENATE(S209,\"  \",T209)","v":"5250  Mangrove Swamp"},5250,"Mangrove Swamp",null,null,"720  Sand other than beaches"]
[null,null,null,null,null,null,null,null,null,null,null,null,null,null,null,null,null,{"$f":"CONCATENATE(S210,\"  \",T210)","v":"5300  Cultural"},5300,"Cultural",null,null,"730  Exposed rock"]
[null,null,null,null,null,null,null,null,null,null,null,null,null,null,null,null,null,{"$f":"CONCATENATE(S211,\"  \",T211)","v":"5310  Estuarine Ditch/Channel"},5310,"Estuarine Ditch/Channel",null,null,"731  Exposed rock with marsh grasses"]
[null,null,null,null,null,null,null,null,null,null,null,null,null,null,null,null,null,{"$f":"CONCATENATE(S212,\"  \",T212)","v":"5320  Estuarine Artificial Impoundment"},5320,"Estuarine Artificial Impoundment",null,null,"740  Disturbed lands"]
[null,null,null,null,null,null,null,null,null,null,null,null,null,null,null,null,null,{"$f":"CONCATENATE(S213,\"  \",T213)","v":"5330  Aquaculture"},5330,"Aquaculture",null,null,"741  Rural land in transition"]
[null,null,null,null,null,null,null,null,null,null,null,null,null,null,null,null,null,{"$f":"CONCATENATE(S214,\"  \",T214)","v":"6000  Marine"},6000,"Marine",null,null,"742  Borrow areas"]
[null,null,null,null,null,null,null,null,null,null,null,null,null,null,null,null,null,{"$f":"CONCATENATE(S215,\"  \",T215)","v":"6100  Surf Zone"},6100,"Surf Zone",null,null,"743  Spoil areas"]
[null,null,null,null,null,null,null,null,null,null,null,null,null,null,null,null,null,{"$f":"CONCATENATE(S216,\"  \",T216)","v":"7000  Exotic Plants"},7000,"Exotic Plants",null,null,"744  Fill areas (highways-railways)"]
[null,null,null,null,null,null,null,null,null,null,null,null,null,null,null,null,null,{"$f":"CONCATENATE(S217,\"  \",T217)","v":"7100  Australian Pine"},7100,"Australian Pine",null,null,"745  Burned areas"]
[null,null,null,null,null,null,null,null,null,null,null,null,null,null,null,null,null,{"$f":"CONCATENATE(S218,\"  \",T218)","v":"7200  Melaleuca"},7200,"Melaleuca",null,null,"800  Transportation"]
[null,null,null,null,null,null,null,null,null,null,null,null,null,null,null,null,null,{"$f":"CONCATENATE(S219,\"  \",T219)","v":"7300  Brazilian Pepper"},7300,"Brazilian Pepper",null,null,"810  Transportation"]
[null,null,null,null,null,null,null,null,null,null,null,null,null,null,null,null,null,{"$f":"CONCATENATE(S220,\"  \",T220)","v":"7400  Exotic Wetland Hardwoods"},7400,"Exotic Wetland Hardwoods",null,null,"811  Airports"]
[null,null,null,null,null,null,null,null,null,null,null,null,null,null,null,null,null,{"$f":"CONCATENATE(S221,\"  \",T221)","v":"18211  Urban Open Land"},18211,"Urban Open Land",null,null,"812  Railroads"]
[null,null,null,null,null,null,null,null,null,null,null,null,null,null,null,null,null,{"$f":"CONCATENATE(S222,\"  \",T222)","v":"18212  Structures"},18212,"Structures",null,null,"813  Bus and truck terminals"]
[null,null,null,null,null,null,null,null,null,null,null,null,null,null,null,null,null,{"$f":"CONCATENATE(S223,\"  \",T223)","v":"18213  Grass"},18213,"Grass",null,null,"814  Roads and highways"]
[null,null,null,null,null,null,null,null,null,null,null,null,null,null,null,null,null,{"$f":"CONCATENATE(S224,\"  \",T224)","v":"18214  Trees"},18214,"Trees",null,null,"815  Port facilities"]
[null,null,null,null,null,null,null,null,null,null,null,null,null,null,null,null,null,{"$f":"CONCATENATE(S225,\"  \",T225)","v":"18221  Residential, Med. Density - 2-5 Dwelling Units/AC"},18221,"Residential, Med. Density - 2-5 Dwelling Units/AC",null,null,"816  Canals and locks"]
[null,null,null,null,null,null,null,null,null,null,null,null,null,null,null,null,null,{"$f":"CONCATENATE(S226,\"  \",T226)","v":"18222  Residential, High Density > 5 Dwelling Units/AC"},18222,"Residential, High Density > 5 Dwelling Units/AC",null,null,"817  Oil"]
[null,null,null,null,null,null,null,null,null,null,null,null,null,null,null,null,null,{"$f":"CONCATENATE(S227,\"  \",T227)","v":"18223  Commercial & Services"},18223,"Commercial & Services",null,null,"818  Auto parking facilities"]
[null,null,null,null,null,null,null,null,null,null,null,null,null,null,null,null,null,{"$f":"CONCATENATE(S228,\"  \",T228)","v":"18224  Industrial"},18224,"Industrial",null,null,"819  Transportation facilities under construction"]
[null,null,null,null,null,null,null,null,null,null,null,null,null,null,null,null,null,{"$f":"CONCATENATE(S229,\"  \",T229)","v":"18225  Institutional"},18225,"Institutional",null,null,"820  Communications"]
[null,null,null,null,null,null,null,null,null,null,null,null,null,null,null,null,null,{"$f":"CONCATENATE(S230,\"  \",T230)","v":"18311  Rural Open Forested"},18311,"Rural Open Forested",null,null,"821  Transmission towers"]
[null,null,null,null,null,null,null,null,null,null,null,null,null,null,null,null,null,{"$f":"CONCATENATE(S231,\"  \",T231)","v":"18312  Rural Open Pine"},18312,"Rural Open Pine",null,null,"822  Communication facilities"]
[null,null,null,null,null,null,null,null,null,null,null,null,null,null,null,null,null,{"$f":"CONCATENATE(S232,\"  \",T232)","v":"18321  Cropland/Pasture"},18321,"Cropland/Pasture",null,null,"829  Communication facilities under construction"]
[null,null,null,null,null,null,null,null,null,null,null,null,null,null,null,null,null,{"$f":"CONCATENATE(S233,\"  \",T233)","v":"18322  Orchards/Groves"},18322,"Orchards/Groves",null,null,"830  Utilities"]
[null,null,null,null,null,null,null,null,null,null,null,null,null,null,null,null,null,{"$f":"CONCATENATE(S234,\"  \",T234)","v":"18323  Tree Plantations"},18323,"Tree Plantations",null,null,"831  Electrical power facilities"]
[null,null,null,null,null,null,null,null,null,null,null,null,null,null,null,null,null,{"$f":"CONCATENATE(S235,\"  \",T235)","v":"18324  Vineyard & Nurseries"},18324,"Vineyard & Nurseries",null,null,"832  Electrical power transmission lines"]
[null,null,null,null,null,null,null,null,null,null,null,null,null,null,null,null,null,{"$f":"CONCATENATE(S236,\"  \",T236)","v":"18325  Other Agriculture"},18325,"Other Agriculture",null,null,"833  Water supply plants"]
[null,null,null,null,null,null,null,null,null,null,null,null,null,null,null,null,null,{"$f":"CONCATENATE(S237,\"  \",T237)","v":"21111  Wiregrass Savanna"},21111,"Wiregrass Savanna",null,null,"834  Sewage treatment"]
[null,null,null,null,null,null,null,null,null,null,null,null,null,null,null,null,null,{"$f":"CONCATENATE(S238,\"  \",T238)","v":"21112  Cutthroat Seep"},21112,"Cutthroat Seep",null,null,"835  Solid waste disposal"]
[null,null,null,null,null,null,null,null,null,null,null,null,null,null,null,null,null,{"$f":"CONCATENATE(S239,\"  \",T239)","v":"21113  Calcareous Wet Prairie"},21113,"Calcareous Wet Prairie",null,null,"839  Utilities under construction"]
[null,null,null,null,null,null,null,null,null,null,null,null,null,null,null,null,null,{"$f":"CONCATENATE(S240,\"  \",T240)","v":"21121  Shrub Bog"},21121,"Shrub Bog",null,null,"1411  Retail sales and services - shopping centers"]
[null,null,null,null,null,null,null,null,null,null,null,null,null,null,null,null,null,{"$f":"CONCATENATE(S241,\"  \",T241)","v":"21241  Freshwater Tidal Marsh"},21241,"Freshwater Tidal Marsh",null,null,"1423  Wholesale sales and services - junk yards"]
[null,null,null,null,null,null,null,null,null,null,null,null,null,null,null,null,null,{"$f":"CONCATENATE(S242,\"  \",T242)","v":"21411  Pond Apple Slough"},21411,"Pond Apple Slough",null,null,"2156  Field crops -sugar cane"]
[null,null,null,null,null,null,null,null,null,null,null,null,null,null,null,null,null,{"$f":"CONCATENATE(S243,\"  \",T243)","v":"22131  Stringer Swamp"},22131,"Stringer Swamp",null,null,"4119  Pine flatwoods - melaleuca infested"]
[null,null,null,null,null,null,null,null,null,null,null,null,null,null,null,null,null,{"$f":"CONCATENATE(S244,\"  \",T244)","v":"22132  Gum Pond"},22132,"Gum Pond",null,null,"4289  Cabbage palm - melaleuca infested"]
[null,null,null,null,null,null,null,null,null,null,null,null,null,null,null,null,null,{"$f":"CONCATENATE(S245,\"  \",T245)","v":"22161  Freshwater Tidal Swamp"},22161,"Freshwater Tidal Swamp",null,null,"6171  Mixed wetland hardwoods - willows"]
[null,null,null,null,null,null,null,null,null,null,null,null,null,null,null,null,null,{"$f":"CONCATENATE(S246,\"  \",T246)","v":"22211  Hydric Pine Flatwoods"},22211,"Hydric Pine Flatwoods",null,null,"6172  Mixed wetland hardwoods - mixed shrubs"]
[null,null,null,null,null,null,null,null,null,null,null,null,null,null,null,null,null,{"$f":"CONCATENATE(S247,\"  \",T247)","v":"22212  Hydric Pine Savanna"},22212,"Hydric Pine Savanna",null,null,"6218  Cypress - melaleuca infested"]
[null,null,null,null,null,null,null,null,null,null,null,null,null,null,null,null,null,{"$f":"CONCATENATE(S248,\"  \",T248)","v":"22311  Bay Swamp"},22311,"Bay Swamp",null,null,"6219  Cypress - with wet prairies"]
[null,null,null,null,null,null,null,null,null,null,null,null,null,null,null,null,null,{"$f":"CONCATENATE(S249,\"  \",T249)","v":"22312  South Florida Bayhead"},22312,"South Florida Bayhead",null,null,"6411  Freshwater marshes - sawgrass"]
[null,null,null,null,null,null,null,null,null,null,null,null,null,null,null,null,null,{"$f":"CONCATENATE(S250,\"  \",T250)","v":"22321  Coastal Hydric Hammock"},22321,"Coastal Hydric Hammock",null,null,"6412  Freshwater marshes - cattail"]
[null,null,null,null,null,null,null,null,null,null,null,null,null,null,null,null,null,{"$f":"CONCATENATE(S251,\"  \",T251)","v":"22322  Prairie Hydric Hammock"},22322,"Prairie Hydric Hammock",null,null,"6439  Wet prairies - with pine"]
[null,null,null,null,null,null,null,null,null,null,null,null,null,null,null,null,null,{"$f":"CONCATENATE(S252,\"  \",T252)","v":"22323  Cabbage Palm Hammock"},22323,"Cabbage Palm Hammock"]
[null,null,null,null,null,null,null,null,null,null,null,null,null,null,null,null,null,{"$f":"CONCATENATE(S253,\"  \",T253)","v":"22331  Bottomland Forest"},22331,"Bottomland Forest"]
[null,null,null,null,null,null,null,null,null,null,null,null,null,null,null,null,null,{"$f":"CONCATENATE(S254,\"  \",T254)","v":"22332  Alluvial Forest"},22332,"Alluvial Forest"]
[null,null,null,null,null,null,null,null,null,null,null,null,null,null,null,null,null,{"$f":"CONCATENATE(S255,\"  \",T255)","v":"52111  Keys Tidal Rock Barren"},52111,"Keys Tidal Rock Barren"]
[null,null,null,null,null,null,null,null,null,null,null,null,null,null,null,null,null,{"$f":"CONCATENATE(S256,\"  \",T256)","v":"182111  Urban Open Forested"},182111,"Urban Open Forested"]
[null,null,null,null,null,null,null,null,null,null,null,null,null,null,null,null,null,{"$f":"CONCATENATE(S257,\"  \",T257)","v":"182112  Urban Open Pine"},182112,"Urban Open Pine"]
[null,null,null,null,null,null,null,null,null,null,null,null,null,null,null,null,null,{"$f":"CONCATENATE(S258,\"  \",T258)","v":"182131  Parks"},182131,"Parks"]
[null,null,null,null,null,null,null,null,null,null,null,null,null,null,null,null,null,{"$f":"CONCATENATE(S259,\"  \",T259)","v":"182132  Golf courses"},182132,"Golf courses"]
[null,null,null,null,null,null,null,null,null,null,null,null,null,null,null,null,null,{"$f":"CONCATENATE(S260,\"  \",T260)","v":"182133  Ballfields"},182133,"Ballfields"]
[null,null,null,null,null,null,null,null,null,null,null,null,null,null,null,null,null,{"$f":"CONCATENATE(S261,\"  \",T261)","v":"182134  Zoos"},182134,"Zoos"]
[null,null,null,null,null,null,null,null,null,null,null,null,null,null,null,null,null,{"$f":"CONCATENATE(S262,\"  \",T262)","v":"182135  Cemeteries"},182135,"Cemeteries"]
[null,null,null,null,null,null,null,null,null,null,null,null,null,null,null,null,null,{"$f":"CONCATENATE(S263,\"  \",T263)","v":"182136  Community rec. facilities"},182136,"Community rec. facilities"]
[null,null,null,null,null,null,null,null,null,null,null,null,null,null,null,null,null,{"$f":"CONCATENATE(S264,\"  \",T264)","v":"183111  Oak - Cabbage Palm Forests"},183111,"Oak - Cabbage Palm Forests"]
[null,null,null,null,null,null,null,null,null,null,null,null,null,null,null,null,null,{"$f":"CONCATENATE(S265,\"  \",T265)","v":"183211  Row Crops"},183211,"Row Crops"]
[null,null,null,null,null,null,null,null,null,null,null,null,null,null,null,null,null,{"$f":"CONCATENATE(S266,\"  \",T266)","v":"183212  Field Crops"},183212,"Field Crops"]
[null,null,null,null,null,null,null,null,null,null,null,null,null,null,null,null,null,{"$f":"CONCATENATE(S267,\"  \",T267)","v":"183213  Improved Pasture"},183213,"Improved Pasture"]
[null,null,null,null,null,null,null,null,null,null,null,null,null,null,null,null,null,{"$f":"CONCATENATE(S268,\"  \",T268)","v":"183214  Unimproved/Woodland Pasture"},183214,"Unimproved/Woodland Pasture"]
[null,null,null,null,null,null,null,null,null,null,null,null,null,null,null,null,null,{"$f":"CONCATENATE(S269,\"  \",T269)","v":"183215  Other Open Lands - Rural"},183215,"Other Open Lands - Rural"]
[null,null,null,null,null,null,null,null,null,null,null,null,null,null,null,null,null,{"$f":"CONCATENATE(S270,\"  \",T270)","v":"183221  Citrus"},183221,"Citrus"]
[null,null,null,null,null,null,null,null,null,null,null,null,null,null,null,null,null,{"$f":"CONCATENATE(S271,\"  \",T271)","v":"183222  Fruit Orchards"},183222,"Fruit Orchards"]
[null,null,null,null,null,null,null,null,null,null,null,null,null,null,null,null,null,{"$f":"CONCATENATE(S272,\"  \",T272)","v":"183223  Pecan"},183223,"Pecan"]
[null,null,null,null,null,null,null,null,null,null,null,null,null,null,null,null,null,{"$f":"CONCATENATE(S273,\"  \",T273)","v":"183224  Fallow Orchards"},183224,"Fallow Orchards"]
[null,null,null,null,null,null,null,null,null,null,null,null,null,null,null,null,null,{"$f":"CONCATENATE(S274,\"  \",T274)","v":"183231  Hardwood Plantations"},183231,"Hardwood Plantations"]
[null,null,null,null,null,null,null,null,null,null,null,null,null,null,null,null,null,{"$f":"CONCATENATE(S275,\"  \",T275)","v":"183232  Coniferous Plantations"},183232,"Coniferous Plantations"]
[null,null,null,null,null,null,null,null,null,null,null,null,null,null,null,null,null,{"$f":"CONCATENATE(S276,\"  \",T276)","v":"183241  Tree Nurseries"},183241,"Tree Nurseries"]
[null,null,null,null,null,null,null,null,null,null,null,null,null,null,null,null,null,{"$f":"CONCATENATE(S277,\"  \",T277)","v":"183242  Sod Farms"},183242,"Sod Farms"]
[null,null,null,null,null,null,null,null,null,null,null,null,null,null,null,null,null,{"$f":"CONCATENATE(S278,\"  \",T278)","v":"183243  Ornamentals"},183243,"Ornamentals"]
[null,null,null,null,null,null,null,null,null,null,null,null,null,null,null,null,null,{"$f":"CONCATENATE(S279,\"  \",T279)","v":"183244  Vineyards"},183244,"Vineyards"]
[null,null,null,null,null,null,null,null,null,null,null,null,null,null,null,null,null,{"$f":"CONCATENATE(S280,\"  \",T280)","v":"183245  Floriculture"},183245,"Floriculture"]
[null,null,null,null,null,null,null,null,null,null,null,null,null,null,null,null,null,{"$f":"CONCATENATE(S281,\"  \",T281)","v":"183251  Feeding Operations"},183251,"Feeding Operations"]
[null,null,null,null,null,null,null,null,null,null,null,null,null,null,null,null,null,{"$f":"CONCATENATE(S282,\"  \",T282)","v":"183252  Specialty Farms"},183252,"Specialty Farms"]
[null,null,null,null,null,null,null,null,null,null,null,null,null,null,null,null,null,{"$f":"CONCATENATE(S283,\"  \",T283)","v":"222111  Cutthroat Grass Flatwoods"},222111,"Cutthroat Grass Flatwoods"]
[null,null,null,null,null,null,null,null,null,null,null,null,null,null,null,null,null,{"$f":"CONCATENATE(S284,\"  \",T284)","v":"222112  Cabbage Palm Flatwoods"},222112,"Cabbage Palm Flatwoods"]
[null,null,null,null,null,null,null,null,null,null,null,null,null,null,null,null,null,{"$f":"CONCATENATE(S285,\"  \",T285)","v":"1832121  Sugarcane"},1832121,"Sugarcane"]
[null,null,null,null,null,null,null,null,null,null,null,null,null,null,null,null,null,{"$f":"CONCATENATE(S286,\"  \",T286)","v":"1832151  Fallow Cropland"},1832151,"Fallow Cropland"]

{"sheet":"Standard","index":2,"n_rows":572,"n_cols":27,"rows_kept":572,"cut":false,"hidden":true,"merged":[[227,2,227,3],[229,2,229,3],[227,4,227,18],[227,19,227,26],[229,4,229,18],[229,19,229,26],[86,13,88,26],[81,13,84,26],[76,13,79,26],[71,13,74,26],[73,6,74,6],[73,9,74,9],[120,15,120,25],[96,6,98,6],[96,9,98,9],[137,13,139,26],[133,13,135,26],[129,13,131,26],[126,13,127,26],[105,13,105,26],[102,13,103,26],[91,5,93,26],[109,25,109,27],[98,13,100,26],[94,13,96,26],[337,13,338,26],[329,13,330,26],[379,9,380,9],[379,6,380,6],[262,9,263,9],[262,6,263,6],[59,13,61,26],[52,13,53,26],[54,9,55,9],[54,6,55,6],[55,13,57,26],[192,13,193,26],[189,13,190,26],[286,13,288,26],[282,13,284,26],[278,13,280,26],[275,13,276,26],[266,13,267,26],[185,13,187,26],[182,13,183,26],[174,13,176,26],[170,13,172,26],[263,13,264,26],[260,13,261,26],[383,13,384,26],[380,13,381,26],[368,13,369,26],[365,13,366,26],[362,13,363,26],[359,13,360,26],[346,13,347,26],[343,13,344,26],[340,13,341,26],[377,13,378,26],[351,5,351,26],[352,5,357,26],[552,13,553,26],[555,13,556,26],[558,13,560,26],[525,13,527,26],[529,13,530,26],[536,13,540,26],[532,13,534,26],[515,13,517,26],[512,13,513,26],[543,5,543,26],[544,5,546,26],[333,2,348,2],[314,2,331,2],[291,2,312,2],[270,2,289,2],[252,2,268,2],[233,2,250,2],[548,13,550,26],[508,13,510,26],[505,13,506,26],[495,13,496,26],[492,13,493,26],[489,13,490,26],[486,13,487,26],[476,13,478,26],[472,13,474,26],[468,13,470,26],[465,13,466,26],[456,13,458,26],[453,13,454,26],[449,13,451,26],[445,13,447,26],[433,13,435,26],[415,5,415,26],[416,5,419,26],[564,2,569,2],[568,3,568,4],[361,6,362,6],[564,3,564,4],[565,3,565,4],[543,2,561,2],[550,6,552,6],[550,9,552,9],[415,2,436,2],[461,2,479,2],[481,2,497,2],[361,9,362,9],[507,6,508,6],[507,9,508,9],[527,6,529,6],[527,9,529,9],[467,9,468,9],[488,6,489,6],[488,9,489,9],[399,6,400,6],[399,9,400,9],[373,5,375,26],[390,5,390,26],[391,5,395,26],[179,2,194,2],[196,2,213,2],[215,2,220,2],[124,5,124,26],[132,9,135,9],[147,6,148,6],[147,9,148,9],[201,6,202,6],[215,3,215,4],[216,3,216,4],[217,3,217,4],[219,3,219,4],[132,6,135,6],[202,13,204,26],[199,13,200,26],[142,5,143,26],[142,2,159,2],[166,13,168,26],[163,13,164,26],[156,13,158,26],[210,13,212,26],[206,13,208,26],[216,25,216,27],[152,13,154,26],[68,5,69,26],[27,11,27,17],[20,2,28,2],[1,3,2,17],[3,3,3,17],[5,3,5,4],[5,5,5,16],[34,6,36,6],[34,9,36,9],[46,19,46,23],[5,22,5,24],[5,18,5,20],[8,3,8,4],[9,3,10,4],[1,20,1,22],[2,20,2,22],[1,23,1,27],[2,23,2,27],[24,11,24,15],[63,13,65,26],[6,5,6,16],[10,17,10,18],[8,5,8,16],[20,5,21,26],[573,2,580,26],[571,2,572,26],[179,5,180,26],[351,2,370,2],[372,2,388,2],[390,2,413,2],[438,2,459,2],[224,2,224,15],[161,5,161,26],[500,2,518,2],[520,2,541,2],[196,5,197,26],[161,2,177,2],[566,3,566,4],[447,6,449,6],[447,9,449,9],[467,6,468,6],[423,6,425,6],[423,9,425,9],[165,6,166,6],[165,9,166,9],[184,6,185,6],[184,9,185,9],[565,24,565,26],[108,2,113,2],[30,2,48,2],[50,2,66,2],[68,2,89,2],[118,2,122,2],[124,2,140,2],[109,3,109,4],[110,3,110,4],[112,3,112,4],[108,3,108,4],[7,24,7,25],[8,25,8,28],[9,5,10,16],[47,19,47,23],[50,5,50,26],[6,17,6,18],[7,17,7,18],[10,20,10,22],[30,5,30,26],[14,6,17,26],[14,1,14,5],[19,2,19,15],[23,17,24,22],[32,13,34,26],[43,13,44,26],[40,13,41,26],[36,13,38,26],[323,13,324,26],[128,6,129,6],[128,9,129,9],[314,6,314,27],[315,6,318,27],[322,6,323,6],[322,9,323,9],[333,6,333,27],[320,13,321,26],[309,13,311,26],[305,13,307,26],[301,13,303,26],[297,13,299,26],[245,13,246,26],[242,13,243,26],[239,13,240,26],[291,6,291,27],[292,6,295,27],[299,6,301,6],[299,9,301,9],[257,13,258,26],[248,13,249,26],[148,13,150,26],[145,13,146,26],[118,5,118,26],[121,12,121,14],[117,2,117,15],[115,3,115,26],[91,2,106,2],[201,9,202,9],[372,5,372,26],[233,6,233,27],[234,6,237,27],[241,6,242,6],[241,9,242,9],[252,6,252,27],[253,6,255,27],[259,6,260,6],[259,9,260,9],[270,6,270,27],[271,6,273,27],[277,6,278,6],[277,9,278,9],[334,6,335,27],[339,6,340,6],[339,9,340,9],[225,2,225,15],[326,13,327,26],[386,13,387,26],[461,5,461,26],[462,5,462,26],[481,5,481,26],[482,5,484,26],[500,5,500,26],[501,5,503,26],[520,5,520,26],[521,5,523,26],[438,5,438,26],[439,5,443,26],[429,13,431,26],[425,13,427,26],[421,13,423,26],[409,13,412,26],[404,13,407,26],[400,13,402,26],[397,13,398,26]]}
[]
[null,null,null,"Ecological Assessment",null,null,null,null,null,null,null,null,null,null,null,null,null,null,null,null,"Project:",null,null,{"$f":"Part_I!D8","v":"(Project Name)"}]
[null,null,null,null,null,null,null,null,null,null,null,null,null,null,null,null,null,null,null,null,"Assessment Area:",null,null,{"$f":"Part_I!P8","v":"(Assement Area)"}]
[null,null,null,"Terrestrial Vegetative Habitat (Section 62-345.500 F.A.C.)"]
[]
[null,null,null,"Reference:",null,{"$f":"Part_I!L44","v":"(Type Here)"},null,null,null,null,null,null,null,null,null,null,null,null,"Current Condition",null,null,null,"With Project"]
[null,null,null,null,null,{"$f":"Part1_Data!J20","v":"Wetland or Other Surface Water"},null,null,null,null,null,null,null,null,null,null,null,"L&LS Score:",null,{"$f":"DATA_1!O62","v":10},null,null,"L&LS Score:",{"$f":"DATA_1!P62","v":10}]
[null,null,null,null,null,null,null,null,null,null,null,null,null,null,null,null,null,"WE Score:",null,{"$f":"DATA_1!O63","v":10},null,null,"WE Score:",{"$f":"DATA_1!P63","v":10},"Delta:",null,{"$f":"IF(AND(Part1_Data!D5>=6,Part1_Data!I20=1),Standard!X11-Standard!T11,IF(AND(Part1_Data!D5>=6,Part1_Data!I20=2),Standard!X11-Standard!T11,IF(Part1_Data!I20=1,Standard!X11-Standard!T11,IF(Part1_Data!I20=2,Standard!X11-Standard!T11,\"?\"))))","v":0}]
[null,null,null,"Application#",null,{"$f":"Part_I!J8","v":"(Application Number)"},null,null,null,null,null,null,null,null,null,null,null,null,"CS Score:",{"$f":"DATA_1!O64","v":10},null,null,"CS Score:",{"$f":"DATA_1!P64","v":10},null,{"$f":"IF(Part1_Data!D5=6,\"        Current Value\",\"With Project - Current\")","v":"With Project - Current"}]
[null,null,null,"Activity:",null,{"$f":"Part1_Data!E5","v":"Mitigation Assessment (Enhancement)"}]
[null,null,null,null,null,null,null,null,null,null,null,null,null,null,null,null,null,{"$f":"IF(DATA_1!Q70=1,\"(LLS+WE+CS)/30)\",IF(DATA_1!Q70=2,\"(LLS+CS)/20)\",\"?\"))","v":"(LLS+WE+CS)/30)"},null,{"$f":"DATA_1!O65","v":1},{"$f":"IF(AND(DATA_1!Q70=1,DATA_1!M70<>6),\"(LLS+WE+CS)/30)\",IF(AND(DATA_1!Q70=2,DATA_1!M70<>6),\"(LLS+CS)/20)\",IF(DATA_1!M70=6,\"Preservation\",\"?\")))","v":"(LLS+WE+CS)/30)"},null,null,{"$f":"DATA_1!P65","v":1}]
[]
[]
[]
[null,"INSTRUCTIONS:",null,null,null,null,"For categorical Questions 3 - 15, indicate which provided description best corresponds to the assessment area by placing an A, B, C, or D  in the box labeled \"Selection\" for both the Current and or anticipated W/Project condition as appropriate.  If the provided descriptions do not precisely correspond to project-specific circumstances, the combinations \"AB, BC, or CD\" can be entered into the \"Selection\" box to indicate circumstances intermediate to those described."]
[]
[]
[]
[]
[null,null,"Location and Landscape Support (L&LS)"]
[null,null,"L & LS",1,null,"Please use the \"Location and Landscape Support Worksheet\" to quantify the composition of landuse types and natural habitat adjacent to, and surrounding, the assessment area.  Once completed, scores for \"Edge Composition\" and \"Landscape Composition\" will be automatically populated below. "]
[]
[]
[null,null,null,null,null,null,{"$f":"Part1_Data!$V$14","v":"Current"},null,null,{"$f":"Part1_Data!$V$15","v":"w/ Mitigation"},null,null,null,null,null,null,null,"Click Here to Complete the LLS Worksheet"]
[null,null,null,null,null,null,{"$f":"LLS_Worksheet!R35","v":9},null,null,{"$f":"LLS_Worksheet!S76","v":9},null,"Edge Composition (Auto-filled)"]
[]
[null,null,null,null,null,null,{"$f":"Part1_Data!$V$14","v":"Current"},null,null,{"$f":"Part1_Data!$V$15","v":"w/ Mitigation"}]
[null,null,null,null,null,null,{"$f":"LLS_Worksheet!U35","v":4},null,null,{"$f":"LLS_Worksheet!V76","v":4},null,"Landscape Composition (Auto-filled)"]
[]
[]
[null,null,"Location & Landscape Support",2,null,"Relative to other native natural community types in the landscape, what level of rarity or scarcity is associated with this assessment area's reference community?"]
[]
[null,null,null,null,null,null,{"$f":"Part1_Data!$V$14","v":"Current"},null,null,{"$f":"Part1_Data!$V$15","v":"w/ Mitigation"},null,null,"A","The assessment area's reference community type is listed as either Imperiled or Critically imperiled in the State because of rarity or vulnerability (FNAI Listing of S1 or S2), OR available evidence indicates it is similarly rare or vulnerable within the region."]
[null,null,null,null,null,null,"A",null,null,"A"]
[null,null,null,null,null,null,"(Selection)",null,null,"(Selection)"]
[]
[null,null,null,null,null,null,null,null,null,null,null,null,"B","The assessment area's reference community type is listed as either Very Rare and Local or Found Locally in a Restricted Range or Vulnerable to Extinction from Other Factors. (FNAI Listing of S3), OR available evidence indicates it is similarly rare or vulnerable within the region."]
[null,null,null,null,null,null,{"$f":"LOOKUP(G34,DATA_1!$G$63:$H$72)","v":3},null,null,{"$f":"LOOKUP(J34,DATA_1!$G$63:$H$72)","v":3}]
[]
[]
[null,null,null,null,null,null,null,null,null,null,null,null,"C","The assessment area's reference community type is listed as Apparently Secure in Florida (FNAI Listing of S4), OR available evidence indicates it is apparently secure within the region."]
[]
[]
[null,null,null,null,null,null,null,null,null,null,null,null,"D","The assessment area's reference community type is listed as Demonstrably Secure in Florida (FNAI Listing of S5), OR available evidence indicates it is demonstrably secure within the region."]
[]
[]
[null,null,null,null,null,null,null,null,null,null,null,null,null,null,null,null,null,null,null,"State Listing Look-up Tool",null,null,null,null,null,"State Rank"]
[null,null,null,null,null,null,null,null,null,null,null,null,null,null,null,null,null,null,null,"Alluvial forest",null,null,null,null,null,{"$f":"LOOKUP(T48,DATA_1!K41:L121)","v":"S3"}]
[]
[]
[null,null,"Location & Landscape Support",3,null,"What level of wildlife utilization by wetland dependent listed species is associated with the assessment area and surrounding landscape?"]
[]
[null,null,null,null,null,null,{"$f":"Part1_Data!$V$14","v":"Current"},null,null,{"$f":"Part1_Data!$V$15","v":"w/ Mitigation"},null,null,"A","There is documented evidence that the  assessment area is being utilized by wetland dependent species that are designated as Endangered, Threatened, Imperiled, Species of Special Concern,  or other special protective designation."]
[null,null,null,null,null,null,"A",null,null,"A"]
[null,null,null,null,null,null,"(Selection)",null,null,"(Selection)"]
[null,null,null,null,null,null,null,null,null,null,null,null,"B","There is not documented evidence that the  assessment area is being utilized by wetland dependent species that are designated as Endangered, Threatened, Imperiled, Species of Special Concern,  or other special protective designation; however, use by such species is likely."]
[]
[null,null,null,null,null,null,{"$f":"LOOKUP(G54,DATA_1!$G$63:$H$72)","v":3},null,null,{"$f":"LOOKUP(J54,DATA_1!$G$63:$H$72)","v":3}]
[]
[null,null,null,null,null,null,null,null,null,null,null,null,"C","It is unknown if the assessment area is being utilized by wetland dependent species that are designated as Endangered, Threatened, Imperiled, Species of Special Concern,  or other special protective designation."]
[]
[]
[]
[null,null,null,null,null,null,null,null,null,null,null,null,"D","There is not documented evidence that the  assessment area is being utilized by wetland dependent species that are designated as Endangered, Threatened, Imperiled, Species of Special Concern,  or other special protective designation and use by such species is unlikely or rare."]
[]
[]
[]
[]
[null,null,"Location & Landscape Support",4,null,"Does the assessment area exhibit the same degree of hydrologic connectivity and exchange to downstream, upstream, or other hydrologically dependent areas as would the reference community type at this location?"]
[]
[]
[null,null,null,null,null,null,{"$f":"Part1_Data!$V$14","v":"Current"},null,null,{"$f":"Part1_Data!$V$15","v":"w/ Mitigation"},null,null,"A","The assessment area exhibits the same degree of hydrologic connectivity or exchange as would the reference community type.  whether hydrologically isolated or connected, or an upland, hydrologic benefits are not constrained by distance, hydrologic impediments, land use alterations, or changes to recharge/discharge quantities or area."]
[null,null,null,null,null,null,"A",null,null,"A"]
[null,null,null,null,null,null,"(Selection)",null,null,"(Selection)"]
[]
[]
[null,null,null,null,null,null,{"$f":"LOOKUP(G73,DATA_1!$G$63:$H$72)","v":3},null,null,{"$f":"LOOKUP(J73,DATA_1!$G$63:$H$72)","v":3},null,null,"B","The assessment area exhibits a lesser or greater degree of hydrologic connectivity or exchange than would the reference community type.  Hydrologic benefits are partially constrained by distance, hydrologic impediments, land use alterations, or changes to recharge/discharge quantities or area; however, a minimum of 75% the  of hydrologic benefits remain the same."]
[]
[]
[]
[]
[null,null,null,null,null,null,null,null,null,null,null,null,"C","The assessment area exhibits a lesser or greater degree of hydrologic connectivity or exchange than would the reference community type.  Hydrologic benefits are mostly constrained by distance, hydrologic impediments, land use alterations, or changes to recharge/discharge areas and quantities; however, a minimum of 25% of the hydrologic benefits remain the same."]
[]
[]
[]
[]
[null,null,null,null,null,null,null,null,null,null,null,null,"D","The assessment area exhibits none of the hydrologic connectivity or exchange expected for the reference community type.  Hydrologic benefits associated with the reference community type are not present."]
[]
[]
[]
[]
[null,null,"Location & Landscape Support",5,null,"Is this assessment area connected via a riparian, aquatic, or overland corridor to areas of national, state, or regional ecological significance, such as national or state parks, Outstanding Florida Waters, and other regionally significant ecological resources or habitats, such as lands acquired or to be acquired through governmental or non-profit land acquisition programs for environmental conservation?"]
[]
[]
[null,null,null,null,null,null,{"$f":"Part1_Data!$V$14","v":"Current"},null,null,{"$f":"Part1_Data!$V$15","v":"w/ Mitigation"},null,null,"A","The assessment area exhibits unobstructed connectivity to areas described above.  Connectivity is solely by way of natural landcover and is uninterrupted by paved roads, developed or residential areas, canals, or other anthropogenic landuses."]
[null,null,null,null,null,null,"A",null,null,"A"]
[null,null,null,null,null,null,"(Selection)",null,null,"(Selection)"]
[]
[null,null,null,null,null,null,null,null,null,null,null,null,"B","The assessment area exhibits moderate connectivity to areas described above.  Connectivity is by way of natural landcover, rural areas, silvaculture, agriculture, or rangeland.  Connectivity is uninterrupted by paved roads, developed areas, or other similar landuses."]
[null,null,null,null,null,null,{"$f":"LOOKUP(G96,DATA_1!G63:H70)","v":3},null,null,{"$f":"LOOKUP(J96,DATA_1!$G$63:$H$72)","v":3}]
[]
[]
[null,null,null,null,null,null,null,null,null,null,null,null,"C","The assessment area exhibits minimal connectivity to areas described above.  Connectivity is infrequently interrupted by paved roads (2 lanes or less), developed areas, or similar landuses."]
[]
[]
[null,null,null,null,null,null,null,null,null,null,null,null,"D","The assessment area does not exhibit connectivity to areas described above."]
[]
[]
[null,null,"Summary (L&LS)","L&LS",null,null,"Current",null,null,"W/Project"]
[null,null,null,"Total Points",null,null,{"$f":"SUM(G100,G77,G58,G38,G28,G25)","v":25},null,null,{"$f":"SUM(J100,J77,J58,J38,J28,J25)","v":25},null,null,null,null,null,null,null,null,null,null,null,null,null,null,null,"DRAFT DOCUMENT"]
[null,null,null,"Max Possible",null,null,25,null,null,25]
[]
[null,null,null,"Score",null,null,{"$f":"(G110/G111)*10","v":10},null,null,{"$f":"(J110/J111)*10","v":10}]
[]
[]
[null,null,null,{"$f":"IF(Part1_Data!I20=2,\"***NOTE: Part I of this worksheet indicates that this is an upland assessment area; Water Environment Questions# 6 - 10 are not displayed.\",\" \")","v":" "}]
[]
[null,null,"Water Environment (WE)"]
[null,null," WE",null,null,"This value is imported from the Location and Landscape Support Worksheet.  This value also appears in Question# 1 above."]
[]
[null,null,null,null,null,null,{"$f":"Part1_Data!$V$14","v":"Current"},null,null,{"$f":"Part1_Data!$V$15","v":"w/ Mitigation"}]
[null,null,null,null,null,null,{"$f":"LLS_Worksheet!R35","v":9},null,null,{"$f":"LLS_Worksheet!S76","v":9},null,null,"Edge Composition"]
[]
[]
[null,null,"Water Environment",6,null,"Are indicators of water level, flow, and hydroperiod within this assessment area comparable to those associated with the reference community?"]
[]
[null,null,null,null,null,null,{"$f":"Part1_Data!$V$14","v":"Current"},null,null,{"$f":"Part1_Data!$V$15","v":"w/ Mitigation"},null,null,"A","Prevailing water levels, flows, and hydroperiod within the assessment area are typical for the reference community type and location."]
[null,null,null,null,null,null,"A",null,null,"A"]
[null,null,null,null,null,null,"(Selection)",null,null,"(Selection)"]
[null,null,null,null,null,null,null,null,null,null,null,null,"B","Prevailing water levels, flows, and hydroperiod within the assessment area are atypical for the reference community type and location; however, the community is not anticipated to transition to a different community type."]
[]
[null,null,null,null,null,null,{"$f":"LOOKUP(G128,DATA_1!$G$63:$H$72)","v":3},null,null,{"$f":"LOOKUP(J128,DATA_1!$G$63:$H$72)","v":3}]
[]
[null,null,null,null,null,null,null,null,null,null,null,null,"C","Prevailing water levels, flows, and hydroperiod within the assessment area are atypical for the reference community type and location, and the community is anticipated to transition to a different wetland community type."]
[]
[]
[]
[null,null,null,null,null,null,null,null,null,null,null,null,"D","Prevailing water levels, flows, and hydroperiod within the assessment area are atypical for the reference community type and location, and the community is anticipated to transition to an upland community type  or be subject to a major reduction to ecological benefits."]
[]
[]
[]
[]
[null,null,"Water Environment",7,null,"Are indicators of water quality within the assessment area comparable to those associated with the reference community, or is there evidence of reduced clarity, discoloration, excessive algal growth, or foul smell?"]
[]
[]
[null,null,null,null,null,null,{"$f":"Part1_Data!$V$14","v":"Current"},null,null,{"$f":"Part1_Data!$V$15","v":"w/ Mitigation"},null,null,"A","Prevailing water quality within the assessment area is typical for the reference community type, location, and time period."]
[null,null,null,null,null,null,"A",null,null,"A"]
[null,null,null,null,null,null,"(Selection)",null,null,"(Selection)"]
[null,null,null,null,null,null,null,null,null,null,null,null,"B","Prevailing water quality within the assessment area is atypical for the reference community type, location, or time period; however, no adverse effects or quantifiable reductions to ecological benefits are observed or anticipated."]
[]
[null,null,null,null,null,null,{"$f":"LOOKUP(G147,DATA_1!$G$63:$H$72)","v":3},null,null,{"$f":"LOOKUP(J147,DATA_1!$G$63:$H$72)","v":3}]
[]
[null,null,null,null,null,null,null,null,null,null,null,null,"C","Prevailing water quality within the assessment area is atypical for the reference community type, location, or time period.  Some adverse effects or reductions to ecological benefits are observed or anticipated."]
[]
[]
[]
[null,null,null,null,null,null,null,null,null,null,null,null,"D","Prevailing water quality within the assessment area is atypical for the reference community type, location, or time period and are likely to result in transition to a different community type or be subject to a major reduction to ecological benefits."]
[]
[]
[]
[]
[null,null,"Water Environment",8,null,"Does the composition, zonation, abundance, or physical condition of the assessment area's vegetation exhibit indicators of hydrologic stress?"]
[]
[null,null,null,null,null,null,{"$f":"Part1_Data!$V$14","v":"Current"},null,null,{"$f":"Part1_Data!$V$15","v":"w/ Mitigation"},null,null,"A","Vegetation is typical for the reference community type and location and shows no evidence of hydrologic stress."]
[null,null,null,null,null,null,"A",null,null,"A"]
[null,null,null,null,null,null,"(Selection)",null,null,"(Selection)"]
[null,null,null,null,null,null,null,null,null,null,null,null,"B","Vegetation is atypical for the reference community type and location and shows  evidence of hydrologic stress; however, the community is not expected to transition to a different community type."]
[]
[null,null,null,null,null,null,{"$f":"LOOKUP(G165,DATA_1!$G$63:$H$72)","v":3},null,null,{"$f":"LOOKUP(J165,DATA_1!$G$63:$H$72)","v":3}]
[]
[null,null,null,null,null,null,null,null,null,null,null,null,"C","Vegetation is atypical for the reference community type and location and shows  evidence of hydrologic stress; the community is expected to transition to a different wetland community type."]
[]
[]
[]
[null,null,null,null,null,null,null,null,null,null,null,null,"D","Vegetation is atypical for the reference community type and location and shows  evidence of hydrologic stress; the community is expected to transition to an upland community type  or be subject to a major reduction to ecological benefits."]
[]
[]
[]
[]
[null,null,"Water Environment",9,null,"Do soils within the assessment area exhibit indicators of hydrologic stress, such as desiccation, oxidation, subsidence, or atypical erosional or depositional patterns?"]
[]
[]
[null,null,null,null,null,null,{"$f":"Part1_Data!$V$14","v":"Current"},null,null,{"$f":"Part1_Data!$V$15","v":"w/ Mitigation"},null,null,"A","Soils are typical for the reference community type show no evidence of hydrologic stress."]
[null,null,null,null,null,null,"A",null,null,"A"]
[null,null,null,null,null,null,"(Selection)",null,null,"(Selection)"]
[null,null,null,null,null,null,null,null,null,null,null,null,"B","Soils are atypical for the reference community type and show  evidence of hydrologic stress; however, no adverse effects or quantifiable reductions to ecological benefits are observed or anticipated."]
[]
[null,null,null,null,null,null,{"$f":"LOOKUP(G184,DATA_1!$G$63:$H$72)","v":3},null,null,{"$f":"LOOKUP(J184,DATA_1!$G$63:$H$72)","v":3}]
[]
[null,null,null,null,null,null,null,null,null,null,null,null,"C","Soils are atypical for the reference community type and show  evidence of hydrologic stress.   Some adverse effects or reductions to ecological benefits are observed or anticipated."]
[]
[]
[null,null,null,null,null,null,null,null,null,null,null,null,"D","Soils are atypical for the reference community type and show  evidence of hydrologic stress; it is likely that the community could transition to a different community typeor be subject to a major reduction to ecological benefits."]
[]
[]
[]
[null,null,"Water Environment",10,null,"Are topographic features within and surronding the assessment area comparable to those associated with the reference community type, or is there evidence of alteration to ground or surface water hydrology by excavation, filling, ditches, spoil piles, tree beds and rows, or similar terrestrial disturbance?"]
[]
[]
[null,null,null,null,null,null,{"$f":"Part1_Data!$V$14","v":"Current"},null,null,{"$f":"Part1_Data!$V$15","v":"w/ Mitigation"},null,null,"A","Topographic features are typical for the reference community type."]
[null,null,null,null,null,null,"A",null,null,"A"]
[null,null,null,null,null,null,"(Selection)",null,null,"(Selection)"]
[null,null,null,null,null,null,null,null,null,null,null,null,"B","Topographic features are atypical for the reference community type and evidence of alteration is observed; however, because of the scale or infrequency of alterations, they are not expected to affect ground or surface water hydrology."]
[]
[null,null,null,null,null,null,{"$f":"LOOKUP(G201,DATA_1!$G$63:$H$72)","v":3},null,null,{"$f":"LOOKUP(J201,DATA_1!$G$63:$H$72)","v":3}]
[]
[null,null,null,null,null,null,null,null,null,null,null,null,"C","Topographic features are atypical for the reference community type and there is evidence that alterations to ground or surface water hydrology adversely affect soils, plants, or other components of the community."]
[]
[]
[]
[null,null,null,null,null,null,null,null,null,null,null,null,"D","Topographic features are atypical for the reference community type and there is evidence that alterations to ground or surface water hydrology cause the assessment area to transition to a different community type or be subject to a major reduction to ecological benefits."]
[]
[]
[]
[]
[null,null,"Summary (WE)","WE",null,null,"Current",null,null,"W/Project"]
[null,null,null,"Total Points",null,null,{"$f":"SUM(G205,G188,G169,G151,G132,G122)","v":24},null,null,{"$f":"SUM(J205,J188,J169,J151,J132,J122)","v":24},null,null,null,null,null,null,null,null,null,null,null,null,null,null,null,"DRAFT DOCUMENT"]
[null,null,null,"Max Possible",null,null,24,null,null,24]
[]
[null,null,null,"Score",null,null,{"$f":"(G217/G218)*10","v":10},null,null,{"$f":"(J217/J218)*10","v":10}]
[]
[]
[]
[]
[null,null,"Community Structure (CS)"]
[null,null,"Community Structure (CS)"]
[]
[null,null,null,null,"Is the natural reference plant community type a canopied system?",null,null,null,null,null,null,null,null,null,null,null,null,null,null,{"$f":"IF(DATA_1!C42=1,\" \",DATA_1!C44)","v":" "}]
[]
[null,null,null,null,"Is the natural reference plant community type a pyrogenic system?",null,null,null,null,null,null,null,null,null,null,null,null,null,null,{"$f":"IF(DATA_1!C43=1, \" \",DATA_1!C45)","v":" "}]
[]
[]
[]
[null,null,"CS",11,null,null,"Ecological Concept: Species maturity and development (Canopy Only)"]
[null,null,null,null,null,null,"Please characterize the age and size distribution of the native canopy community, as well as evidence of canopy maturity (i.e. development of cavities, dens, snags, wind throws, and old growth morphology) considering regional and site specific variability for the natural reference plant community. Age classes are distinguished by a minimum DBH difference of 2 inches unless environmental conditions such as limited nutrients or species morphology inhibit or limit growth."]
[]
[]
[]
[]
[null,null,null,null,null,null,{"$f":"Part1_Data!$V$14","v":"Current"},null,null,{"$f":"Part1_Data!$V$15","v":"w/ Mitigation"},null,null,"A","Canopy has five or more age classes. Evidence of maturity is common throughout assessment area. "]
[null,null,null,null,null,null,"A",null,null,"A"]
[null,null,null,null,null,null,"(Selection)",null,null,"(Selection)"]
[null,null,null,null,null,null,null,null,null,null,null,null,"B","Canopy has four age classes. Evidence of maturity is present within the plant community but not fully developed or distributed evenly throughout the assessment area."]
[]
[]
[null,null,null,null,null,null,{"$f":"IF(DATA_1!C42=2,\"NA\",LOOKUP(G241,DATA_1!$G$63:$H$72))","v":3},null,null,{"$f":"IF(DATA_1!C42=2,\"NA\",LOOKUP(J241,DATA_1!$G$63:$H$72))","v":3},null,null,"C","Canopy has three age classes.  Evidence of maturity is minimal or scattered within the plant community. "]
[]
[]
[null,null,null,null,null,null,{"$f":"IF(OR(G246=\"NA\",DATA_1!C42=2),0,3)","v":3},null,null,{"$f":"IF(OR(J246=\"NA\",DATA_1!C42=2),0,3)","v":3},null,null,"D","Canopy has two or fewer age classes. No evidence of maturity is present. "]
[]
[]
[]
[null,null,"Community Structure",12,null,null,"Ecological Concept: Species richness and composition (Canopy Only)"]
[null,null,null,null,null,null,"Please characterize the species richness and composition (i.e., number of species, appropriate species present, endangered, threatened, rare or unique species) of the canopy community in comparison to the natural reference plant community considering regional and site specific variability."]
[]
[]
[]
[null,null,null,null,null,null,{"$f":"Part1_Data!$V$14","v":"Current"},null,null,{"$f":"Part1_Data!$V$15","v":"w/ Mitigation"},null,null,"A","Canopy contains 76-100% of the species expected to occur in the reference plant community type. Endangered, threatened, rare or unique species are generally present. "]
[null,null,null,null,null,null,"A",null,null,"A"]
[null,null,null,null,null,null,"(Selection)",null,null,"(Selection)"]
[null,null,null,null,null,null,null,null,null,null,null,null,"B","Canopy contains 51-75% of the species expected to occur in the reference plant community type considering regional and site specific variability. Endangered, threatened, rare or unique species may be present."]
[]
[null,null,null,null,null,null,{"$f":"IF(DATA_1!C42=2,\"NA\",LOOKUP(G259,DATA_1!$G$63:$H$72))","v":3},null,null,{"$f":"IF(DATA_1!C42=2,\"NA\",LOOKUP(J259,DATA_1!$G$63:$H$72))","v":3}]
[null,null,null,null,null,null,null,null,null,null,null,null,"C","Canopy contains 26-50% of the species expected to occur in the reference plant community type considering regional and site specific variability. Endangered, threatened, rare or unique species are generally not present."]
[]
[]
[null,null,null,null,null,null,{"$f":"IF(OR(G263=\"NA\",DATA_1!C42=2),0,3)","v":3},null,null,{"$f":"IF(OR(J263=\"NA\",DATA_1!C42=2),0,3)","v":3},null,null,"D","Canopy contains 0-25% of the species expected to occur in the reference plant community type considering regional and site specific variability. Endangered, threatened, rare or unique species are not present."]
[]
[]
[]
[null,null,"Community Structure",13,null,null,"Ecological Concept: Species relative abundance (Canopy Only)"]
[null,null,null,null,null,null,"Please characterize the relative abundance of the native species in the canopy community (i.e. the proportion of the community that each species occupies in relation to other species) in comparison to the natural reference plant community (e.g., areal extent of cypress trees in relation to other species in a mixed hardwood swamp versus a cypress dome) considering regional and site specific variability."]
[]
[]
[]
[null,null,null,null,null,null,{"$f":"Part1_Data!$V$14","v":"Current"},null,null,{"$f":"Part1_Data!$V$15","v":"w/ Mitigation"},null,null,"A","Canopy areal extents of each species are  76-100% optimal such that relative proportions of individual species present are fully appropriate and functional for the reference canopy community type "]
[null,null,null,null,null,null,"A",null,null,"A"]
[null,null,null,null,null,null,"(Selection)",null,null,"(Selection)"]
[null,null,null,null,null,null,null,null,null,null,null,null,"B","Canopy areal extents of each species are 51-75% optimally proportional due to minor disturbance beyond natural levels (e.g. selective tree harvesting, minor invasive exotic coverage, minor fire suppression, storm damage, low intensity mechanical disturbance)."]
[]
[null,null,null,null,null,null,{"$f":"IF(DATA_1!C42=2,\"NA\",LOOKUP(G277,DATA_1!$G$63:$H$72))","v":3},null,null,{"$f":"IF(DATA_1!C42=2,\"NA\",LOOKUP(J277,DATA_1!$G$63:$H$72))","v":3}]
[]
[null,null,null,null,null,null,null,null,null,null,null,null,"C","Canopy areal extents of each species are 26-50% optimally proportional due to moderate disturbance beyond natural levels (e.g., moderate silviculture activities, moderate invasive exotic coverage, moderate fire suppression, moderate mechanical disturbance)."]
[null,null,null,null,null,null,{"$f":"IF(OR(G281=\"NA\",DATA_1!C42=2),0,3)","v":3},null,null,{"$f":"IF(OR(J281=\"NA\",DATA_1!C42=2),0,3)","v":3}]
[]
[]
[null,null,null,null,null,null,null,null,null,null,null,null,"D","canopy areal extents of each species are 0-25% optimally proportional due to severe disturbance beyond natural levels (e.g. clear cutting, intensive agriculture or silviculture, dense invasive exotic coverage, long term fire suppression, intensive site clearing or prepping)."]
[]
[]
[]
[]
[null,null,"Community Structure",14,null,null,"Ecological Concept: Species density and spatial distribution (Canopy Only)"]
[null,null,null,null,null,null,"Please characterize the density and spatial distribution of the canopy community (e.g. optimal shade density or light availability, canopy is appropriately absent or sparse or dense, species grouping or clustering, homogenous or heterogeneous interspersion, zonation of species, zonation and gradation of ecotones, appropriate sparseness or density of ecotones) in comparison to the natural reference plant community considering regional and site specific variability and the maturity of the current community"]
[]
[]
[]
[]
[null,null,null,null,null,null,{"$f":"Part1_Data!$V$14","v":"Current"},null,null,{"$f":"Part1_Data!$V$15","v":"w/ Mitigation"},null,null,"A","Density and distribution of canopy species are 76-100% functionally optimal in comparison to the reference canopy community type. Appropriate stems or trees per acre are present throughout the assessment area considering the maturity and type of the plant community."]
[null,null,null,null,null,null,"A",null,null,"A"]
[null,null,null,null,null,null,"(Selection)",null,null,"(Selection)"]
[]
[null,null,null,null,null,null,null,null,null,null,null,null,"B","Density and distribution of canopy species are appropriate but only 51-75% functionally optimal for the reference canopy community type due to minor disturbance beyond natural levels (e.g. selective tree harvesting, minor invasive exotic coverage, minor fire suppression, storm damage, low intensity mechanical disturbance)."]
[null,null,null,null,null,null,{"$f":"IF(DATA_1!C42=2,\"NA\",LOOKUP(G299,DATA_1!$G$63:$H$72))","v":3},null,null,{"$f":"IF(DATA_1!C42=2,\"NA\",LOOKUP(J299,DATA_1!$G$63:$H$72))","v":3}]
[]
[]
[null,null,null,null,null,null,{"$f":"IF(OR(G303=\"NA\",DATA_1!C42=2),0,3)","v":3},null,null,{"$f":"IF(OR(J303=\"NA\",DATA_1!C42=2),0,3)","v":3},null,null,"C","Density and distribution of canopy species are not appropriate but retain moderate function (26-50%) in comparison to the reference canopy community type due to moderate disturbance (e.g., moderate silviculture activities, moderate invasive exotic coverage, moderate fire suppression, moderate mechanical disturbance)"]
[]
[]
[]
[null,null,null,null,null,null,null,null,null,null,null,null,"D","Density and distribution of canopy species retain little to no function (0-25%) in comparison to the reference canopy community type due to severe disturbance (e.g. clear cutting, intensive agriculture or silviculture, dense invasive exotic coverage, long term fire suppression, intensive site clearing or prepping)."]
[]
[]
[]
[]
[null,null,"Community Structure",15,null,null,"Ecological Concept: Species health and vigor (Canopy Only)"]
[null,null,null,null,null,null,"Please characterize the general health or vigor of the canopy community by assessing evidence of poor health such as chlorotic growth, leaf wilting, unnatural leaf drop, unnaturally sparse foliage, insect damage, pathogen infections, mortality, lack of regeneration, dead or dying branches, over competition, and herbicide damage at levels which characterize a degraded community, etc., considering regional and site specific variability and allowing for evidence of normal competition stress given the maturity of the community."]
[]
[]
[]
[]
[null,null,null,null,null,null,{"$f":"Part1_Data!$V$14","v":"Current"},null,null,{"$f":"Part1_Data!$V$15","v":"w/ Mitigation"},null,null,"A","Canopy species exhibit 76-100% of expected optimal health and vigor in relation to the natural reference plant community. Evidence of degraded health is absent or minimal and represents less than 25% of the assessment area"]
[null,null,null,null,null,null,"A",null,null,"A"]
[null,null,null,null,null,null,"(Selection)",null,null,"(Selection)"]
[null,null,null,null,null,null,null,null,null,null,null,null,"B","Canopy species exhibit 51-75% of expected health and vigor in relation to the natural reference plant community. Evidence of degraded health is present but is scattered and represents less than 50% of the assessment area. "]
[null,null,null,null,null,null,{"$f":"IF(DATA_1!C42=2,\"NA\",LOOKUP(G322,DATA_1!$G$63:$H$72))","v":3},null,null,{"$f":"IF(DATA_1!C42=2,\"NA\",LOOKUP(J322,DATA_1!$G$63:$H$72))","v":3}]
[]
[null,null,null,null,null,null,null,null,null,null,null,null,"C","Canopy species exhibit 24-50% of expected health and vigor in relation to the natural reference plant community. Evidence of degraded health is substantial and represents up to 75% of the assessment area."]
[null,null,null,null,null,null,{"$f":"IF(OR(G325=\"NA\",DATA_1!C42=2),0,G325)","v":3},null,null,{"$f":"IF(OR(J325=\"NA\",DATA_1!C42=2),0,J325)","v":3}]
[]
[null,null,null,null,null,null,null,null,null,null,null,null,"D","Canopy species exhibit 0-25% of expected health and vigor in relation to the natural reference plant community. Evidence of degraded health is severe, pervasive, and widespread, representing more than 75% of the assessment area."]
[]
[]
[]
[null,null,"Community Structure",16,null,null,"Ecological Concept: Exotic species (Canopy Only)"]
[null,null,null,null,null,null,"What is the total areal coverage of exotic species in the canopy?"]
[]
[]
[null,null,null,null,null,null,{"$f":"Part1_Data!$V$14","v":"Current"},null,null,{"$f":"Part1_Data!$V$15","v":"w/ Mitigation"},null,null,"A","No exotics are found in the canopy"]
[null,null,null,null,null,null,"A",null,null,"A"]
[null,null,null,null,null,null,"(Selection)",null,null,"(Selection)"]
[null,null,null,null,null,null,null,null,null,null,null,null,"B","1-25% exotic coverage is found in the canopy and is sparse throughout the community. Little to no evidence of reproduction by exotic species is present. Exotics have a relatively mild degrading effect on the native plant community."]
[null,null,null,null,null,null,{"$f":"IF(DATA_1!C42=2,\"NA\",LOOKUP(G339,DATA_1!$G$63:$H$72))","v":3},null,null,{"$f":"IF(DATA_1!C42=2,\"NA\",LOOKUP(J339,DATA_1!$G$63:$H$72))","v":3}]
[]
[null,null,null,null,null,null,null,null,null,null,null,null,"C","Between 26-75% exotic coverage is found in the canopy and is scattered or clustered throughout the community. Some evidence of reproduction by exotic species is present. Exotics have a moderate degrading effect on the native plant community."]
[null,null,null,null,null,null,{"$f":"IF(OR(G342=\"NA\",DATA_1!C42=2),0,3)","v":3},null,null,{"$f":"IF(OR(J342=\"NA\",DATA_1!C42=2),0,3)","v":3}]
[]
[null,null,null,null,null,null,null,null,null,null,null,null,"D","76-100% exotic coverage is found in the canopy and is widespread throughout the community. Extensive evidence of reproduction by exotic species is present. Exotics have a severe degrading effect on the native plant community."]
[]
[]
[]
[]
[null,null,"Community Structure",17,null,"Ecological Concept: Micro-structure and topography"]
[null,null,null,null,null,"Please characterize the micro-topographical structure (e.g. hummocks, tussocks, stumps, fallen logs, coarse woody debris, flow channels, micro elevation changes, buttresses, cypress knees, loop roots, floating vegetative mats, burrows, undisturbed soils) of the ground and ground cover within the assessment area considering regional and site specific variability. Activities that degrade the micro-topographical structure may include fill material, dredging, mechanical soil disturbance, stump removal, removal of logs or woody debris, removal or compaction of hummocks or tussocks, ground compaction, soil subsidence, feral hog rooting, unnatural scouring or erosion, mowing, etc. Degrading effects of these activities will depend upon natural reference community type and severity/intensity of the activities."]
[]
[]
[]
[]
[]
[]
[null,null,null,null,null,null,{"$f":"Part1_Data!$V$14","v":"Current"},null,null,{"$f":"Part1_Data!$V$15","v":"w/ Mitigation"},null,null,"A","Micro-topography is 76-100% optimal for the reference community type. Loss of micro-topographical structure is minimal and is not degrading to the natural reference plant community."]
[null,null,null,null,null,null,"A",null,null,"A"]
[null,null,null,null,null,null,"(Selection)",null,null,"(Selection)"]
[null,null,null,null,null,null,null,null,null,null,null,null,"B","Micro-topography is 51-75% optimal for the reference community type. Loss of micro-topographical structure is scattered throughout the assessment area, but is not highly degrading to the natural reference plant community."]
[]
[]
[null,null,null,null,null,null,{"$f":"(LOOKUP(G361,DATA_1!$G$63:$H$72))","v":3},null,null,{"$f":"(LOOKUP(J361,DATA_1!$G$63:$H$72))","v":3},null,null,"C","Micro-topography is 26-50% optimal for the reference community type. Loss of micro-topographical structure is scattered throughout the assessment area, and/or is highly degrading to the natural reference plant community."]
[]
[]
[null,null,null,null,null,null,{"$f":"IF(G366=\"NA\",0,3)","v":3},null,null,{"$f":"IF(J366=\"NA\",0,3)","v":3},null,null,"D","Micro-topography is 0-25% optimal for the reference community. Loss of micro-topographical structure is severe and widespread throughout the assessment area, and is highly degrading to the natural reference plant community."]
[]
[]
[]
[null,null,"Community Structure",18,null,"Ecological Concept: Species richness and composition"]
[null,null,null,null,null,"Please characterize the species richness and composition (i.e., number of species, appropriate species present, endangered, threatened, rare or unique species) of the ground cover community in comparison to the natural reference plant community considering regional and site specific variability."]
[]
[]
[]
[null,null,null,null,null,null,{"$f":"Part1_Data!$V$14","v":"Current"},null,null,{"$f":"Part1_Data!$V$15","v":"w/ Mitigation"},null,null,"A","Ground cover contains 76-100% of the species expected to occur in the reference plant community type. Endangered, threatened, rare or unique species are generally present. "]
[null,null,null,null,null,null,"A",null,null,"A"]
[null,null,null,null,null,null,"(Selection)",null,null,"(Selection)"]
[null,null,null,null,null,null,null,null,null,null,null,null,"B","Ground cover contains 51-75% of the species expected to occur in the reference plant community type considering regional and site specific variability. Endangered, threatened, rare or unique species may be present."]
[]
[]
[null,null,null,null,null,null,{"$f":"LOOKUP(G379,DATA_1!$G$63:$H$70)","v":3},null,null,{"$f":"LOOKUP(J379,DATA_1!$G$63:$H$70)","v":3},null,null,"C","Ground cover contains 26-50% of the species expected to occur in the reference plant community type considering regional and site specific variability. Endangered, threatened, rare or unique species are generally not present."]
[]
[]
[null,null,null,null,null,null,{"$f":"IF(G384=\"NA\",0,3)","v":3},null,null,{"$f":"IF(J384=\"NA\",0,3)","v":3},null,null,"D","Ground cover contains 0-25% of the species expected to occur in the reference plant community type considering regional and site specific variability. Endangered, threatened, rare or unique species are not present."]
[]
[]
[]
[null,null,"Community Structure",19,null,"Ecological Concept: Species relative abundance"]
[null,null,null,null,null,"Please characterize the relative abundance of the native species in the ground cover community (i.e. the proportion of the community that each species occupies in relation to other species) in comparison to the natural reference plant community (e.g., areal extent of Hypericum spp. in relation to other species in a wet prairie versus a depressional Hypericum marsh) considering conditions which may mask the presence of plant species such as time of year, antecedent weather conditions, plant species which generally flower in response to fire, insufficient time to respond to fire, regional variability, site specific variability, or other temporary site specific conditions."]
[]
[]
[]
[]
[]
[null,null,null,null,null,null,{"$f":"Part1_Data!$V$14","v":"Current"},null,null,{"$f":"Part1_Data!$V$15","v":"w/ Mitigation"},null,null,"A","Ground cover areal extents of each species are 76-100% optimal such that relative proportions of individual species present are fully appropriate and functional for the reference ground cover community type "]
[null,null,null,null,null,null,"A",null,null,"A"]
[null,null,null,null,null,null,"(Selection)",null,null,"(Selection)"]
[null,null,null,null,null,null,null,null,null,null,null,null,"B","Ground cover areal extents of each species are 51-75% optimally proportional due to minor disturbance beyond natural levels (e.g. minor invasive exotic coverage, minor fire suppression, infrequent mowing, infrequent grazing, minor feral hog rooting, low intensity silviculture or other mechanical disturbance)."]
[]
[]
[]
[null,null,null,null,null,null,{"$f":"LOOKUP(G399,DATA_1!$G$63:$H$70)","v":3},null,null,{"$f":"LOOKUP(J399,DATA_1!$G$63:$H$70)","v":3},null,null,"C","Ground cover areal extents of each species are 26-50% optimally proportional due to moderate disturbance beyond natural levels (e.g., shallow mechanical soil disturbance, light off road recreational vehicle disturbance, moderate invasive exotic coverage, and long term fire suppression, regular mowing, regular grazing, moderate silviculture activities or other mechanical disturbance)."]
[]
[]
[null,null,null,null,null,null,{"$f":"IF(G405=\"NA\",0,3)","v":3},null,null,{"$f":"IF(J405=\"NA\",0,3)","v":3}]
[]
[null,null,null,null,null,null,null,null,null,null,null,null,"D","Ground cover areal extents of each species are 0-25% optimally proportional due to severe disturbance beyond natural levels (e.g. dense invasive exotic coverage, heavy off road recreational vehicle disturbance, intensive site preparation, deep mechanical soil disturbance, broadcast herbicide, intensive grazing or mowing, double roller chopping, disking, plowing, fill events, erosion, or other heavy mechanical disturbance)."]
[]
[]
[]
[]
[]
[null,null,"Community Structure",20,null,"Ecological Concept: Species density and spatial distribution"]
[null,null,null,null,null,"Please characterize the density and spatial distribution of the ground cover community (e.g. species grouping or clustering, zonation of species, appropriate density or lack of density, and health of ecotone communities,)  considering conditions which may mask the density and spatial distribution of plant species such as time of year, antecedent weather conditions, plant species which generally flower in response to fire, insufficient time to respond to fire, regional variability, site specific variability, or other temporary site specific conditions."]
[]
[]
[]
[]
[null,null,null,null,null,null,{"$f":"Part1_Data!$V$14","v":"Current"},null,null,{"$f":"Part1_Data!$V$15","v":"w/ Mitigation"},null,null,"A","Density and distribution of ground cover species are 76-100% optimal in comparison to the reference ground cover community type. Appropriate stems or trees per acre are present throughout the assessment area considering the maturity and type of the plant community."]
[null,null,null,null,null,null,"A",null,null,"A"]
[null,null,null,null,null,null,"(Selection)",null,null,"(Selection)"]
[]
[null,null,null,null,null,null,null,null,null,null,null,null,"B","Density and distribution of ground cover species are appropriate but only 51-75% optimal for the reference ground cover community type due to minor disturbance beyond natural levels (e.g. selective tree harvesting, minor invasive exotic coverage, minor fire suppression, storm damage, low intensity mechanical disturbance)."]
[]
[]
[]
[null,null,null,null,null,null,{"$f":"LOOKUP(G423,DATA_1!$G$63:$H$70)","v":3},null,null,{"$f":"LOOKUP(J423,DATA_1!$G$63:$H$70)","v":3},null,null,"C","Density and distribution of ground cover species are not appropriate but retain moderate optimality (26-50%) in comparison to the reference ground cover community type due to moderate disturbance (e.g., moderate silviculture activities, moderate invasive exotic coverage, moderate fire suppression, moderate mechanical disturbance)."]
[]
[]
[]
[null,null,null,null,null,null,{"$f":"IF(G430=\"NA\",0,3)","v":3},null,null,{"$f":"IF(J430=\"NA\",0,3)","v":3},null,null,"D","Density and distribution of ground cover species retain little to no function (0-25%) in comparison to the reference ground cover community type due to severe disturbance (e.g. clear cutting, intensive agriculture or silviculture, dense invasive exotic coverage, long term fire suppression, intensive site clearing or prepping)."]
[]
[]
[]
[]
[null,null,"Community Structure",21,null,"Ecological Concept: Species health and vigor"]
[null,null,null,null,null,"Please characterize the general health or vigor of the ground cover community by assessing evidence of poor health such as chlorotic growth, leaf wilting, unnatural leaf drop, unnaturally sparse foliage, insect damage, pathogen infections, mortality, lack of regeneration, dead or dying branches, over competition, and herbicide damage at levels which characterize a degraded community, etc., considering conditions which may affect the appearance of the community such as time of year, antecedent weather conditions, insufficient time to respond to fire, regional variability, site specific variability, or other temporary site specific conditions."]
[]
[]
[]
[]
[]
[null,null,null,null,null,null,{"$f":"Part1_Data!$V$14","v":"Current"},null,null,{"$f":"Part1_Data!$V$15","v":"w/ Mitigation"},null,null,"A","Ground cover species exhibit 76-100% of expected optimal health and vigor in relation to the natural reference plant community. Evidence of degraded health is absent or minimal and represents less than 25% of the assessment area."]
[null,null,null,null,null,null,"A",null,null,"A"]
[null,null,null,null,null,null,"(Selection)",null,null,"(Selection)"]
[]
[null,null,null,null,null,null,null,null,null,null,null,null,"B","Ground cover species exhibit 51-75% of expected health and vigor in relation to the natural reference plant community. Evidence of degraded health is present but is scattered and represents less than 50% of the assessment area. "]
[]
[]
[]
[null,null,null,null,null,null,{"$f":"LOOKUP(G447,DATA_1!$G$63:$H$70)","v":3},null,null,{"$f":"LOOKUP(J447,DATA_1!$G$63:$H$70)","v":3},null,null,"C","Ground cover species exhibit 24-50% of expected health and vigor in relation to the natural reference plant community. Evidence of degraded health is substantial and represents up to 75% of the assessment area."]
[]
[]
[null,null,null,null,null,null,{"$f":"IF(G454=\"NA\",0,3)","v":3},null,null,{"$f":"IF(J454=\"NA\",0,3)","v":3},null,null,"D","Ground cover species exhibit 0-25% of expected health and vigor in relation to the natural reference plant community. Evidence of degraded health is severe, pervasive, and widespread, representing more than 75% of the assessment area."]
[]
[]
[]
[]
[null,null,"Community Structure",22,null,"Ecological Concept: Exotic species"]
[null,null,null,null,null,"What is the total areal coverage of exotic species in the ground cover?"]
[]
[]
[null,null,null,null,null,null,{"$f":"Part1_Data!$V$14","v":"Current"},null,null,{"$f":"Part1_Data!$V$15","v":"w/ Mitigation"},null,null,"A","No exotics are found in the ground cover."]
[null,null,null,null,null,null,"A",null,null,"A"]
[null,null,null,null,null,null,"(Selection)",null,null,"(Selection)"]
[null,null,null,null,null,null,null,null,null,null,null,null,"B","1-25% exotic coverage is found in the ground cover and is sparse throughout the community. Little to no evidence of reproduction by exotic species is present. Exotics have a relatively mild degrading effect on the native plant community."]
[]
[]
[]
[null,null,null,null,null,null,{"$f":"LOOKUP(G467,DATA_1!$G$63:$H$70)","v":3},null,null,{"$f":"LOOKUP(J467,DATA_1!$G$63:$H$70)","v":3},null,null,"C","Between 26-75% exotic coverage is found in the ground cover and is scattered or clustered throughout the community. Some evidence of reproduction by exotic species is present. Exotics have a moderate degrading effect on the native plant community."]
[]
[]
[]
[null,null,null,null,null,null,{"$f":"IF(G473=\"NA\",0,3)","v":3},null,null,{"$f":"IF(J473=\"NA\",0,3)","v":3},null,null,"D","76-100% exotic coverage is found in the ground cover and is widespread throughout the community. Extensive evidence of reproduction by exotic species is present. Exotics have a severe degrading effect on the native plant community."]
[]
[]
[]
[]
[null,null,"Community Structure",23,null,"Ecological Concept: Inappropriate Canopy Presence (for non-canopied communities only)"]
[null,null,null,null,null,"Please characterize the presence of any canopy species which should not be present in the reference plant community type, allowing for community changes due to permanent legal hydrologic alterations from historic hydrologic conditions."]
[]
[]
[]
[null,null,null,null,null,null,{"$f":"Part1_Data!$V$14","v":"Current"},null,null,{"$f":"Part1_Data!$V$15","v":"w/ Mitigation"},null,null,"A","Canopy species are appropriately absent or cover less than 24% of the assessment area. Canopy species exhibit little to no evidence of reproduction and/or have a mild degrading effect on the ground cover community."]
[null,null,null,null,null,null,"A",null,null,"A"]
[null,null,null,null,null,null,"(Selection)",null,null,"(Selection)"]
[null,null,null,null,null,null,null,null,null,null,null,null,"B","Inappropriate canopy presence covers 25-49% of the assessment area. Canopy species exhibit some evidence of reproduction and/or have a moderate degrading effect on the ground cover community."]
[]
[]
[null,null,null,null,null,null,{"$f":"LOOKUP(G488,DATA_1!$G$63:$H$70)","v":3},null,null,{"$f":"LOOKUP(J488,DATA_1!$G$63:$H$70)","v":3},null,null,"C","Inappropriate canopy presence covers 50-74% of the assessment area. Canopy species exhibit moderate evidence of reproduction and/or have a substantial degrading effect on the ground cover community."]
[]
[]
[null,null,null,null,null,null,{"$f":"IF(G493=\"NA\",0,3)","v":3},null,null,{"$f":"IF(J493=\"NA\",0,3)","v":3},null,null,"D","Inappropriate canopy presence covers 75-100% of the assessment area. Canopy species exhibit extensive evidence of reproduction and have a severe degrading effect on the ground cover community."]
[]
[]
[]
[]
[null,null,"Community Structure",24,null,"Ecological Concept: Initial prescribed fire burn condition (Pyrogenic communities only)"]
[null,null,null,null,null,"Please characterize the ability of fuel loads to carry an initial low intensity surface fire or an initial burn without resulting in catastrophic fire or a level of canopy mortality that degrades the plant community. Consider time interval since last burn and appropriate burn interval for reference community type. "]
[]
[]
[]
[null,null,null,null,null,null,{"$f":"Part1_Data!$V$14","v":"Current"},null,null,{"$f":"Part1_Data!$V$15","v":"w/ Mitigation"},null,null,"A","Fuel loads are in an optimal condition (not too high or low) requiring no reduction or restoration to begin low intensity surface fire burning. "]
[null,null,null,null,null,null,"A",null,null,"A"]
[null,null,null,null,null,null,"(Selection)",null,null,"(Selection)"]
[null,null,null,null,null,null,null,null,null,null,null,null,"B","Fuel loads will require minimal reduction of heavy fuels (e.g. woody species or saw palmetto) or minimal restoration of fuels (supplemental plantings, elapsed time to accumulate needle cast or graminoid growth) required to carry low intensity surface fire. "]
[]
[null,null,null,null,null,null,{"$f":"IF(DATA_1!C43=2,\"NA\",LOOKUP(G507,DATA_1!$G$63:$H$70))","v":3},null,null,{"$f":"IF(DATA_1!C43=2,\"NA\",LOOKUP(J507,DATA_1!$G$63:$H$70))","v":3}]
[]
[null,null,null,null,null,null,null,null,null,null,null,null,"C","Fuel loads will require significant reduction of heavy fuels or significant restoration of fuels required to carry low intensity surface fire. "]
[null,null,null,null,null,null,{"$f":"IF(OR(G511=\"NA\",DATA_1!C43=2),0,3)","v":3},null,null,{"$f":"IF(OR(J511=\"NA\",DATA_1!C43=2),0,3)","v":3}]
[]
[null,null,null,null,null,null,null,null,null,null,null,null,"D","Fuel loads will require intensive treatments (e.g. mulching, chipping, grinding, mowing, roller chopping, thinning, chemical applications, high risk prescribed fire, etc.) to reduce heavy fuels or complete restoration of fuels required to carry low intensity surface fire."]
[]
[]
[]
[]
[null,null,"Community Structure",25,null,"Ecological Concept: Prescribed fire fuel loads, fuel structure, and fuel types  (Pyrogenic communities only)"]
[null,null,null,null,null,"Please characterize the ability of fine fuel loads within the assessment area to carry regular and periodic low intensity surface fire at intervals appropriate for the plant community type. "]
[]
[]
[]
[null,null,null,null,null,null,{"$f":"Part1_Data!$V$14","v":"Current"},null,null,{"$f":"Part1_Data!$V$15","v":"w/ Mitigation"},null,null,"A","Fine fuel loads are in an optimal condition (not too high or low) requiring no restoration to carry low intensity surface fires and will persist in an optimal condition for the next 55 years with continued burning at intervals appropriate for the plant community."]
[null,null,null,null,null,null,"A",null,null,"A"]
[null,null,null,null,null,null,"(Selection)",null,null,"(Selection)"]
[]
[null,null,null,null,null,null,null,null,null,null,null,null,"B","Fine fuel loads will require minimal restoration to reestablish the ability to carry low intensity surface fires at intervals appropriate for the plant community."]
[null,null,null,null,null,null,{"$f":"IF(DATA_1!C43=2,\"NA\",LOOKUP(G527,DATA_1!$G$63:$H$70))","v":3},null,null,{"$f":"IF(DATA_1!C43=2,\"NA\",LOOKUP(J527,DATA_1!$G$63:$H$70))","v":3}]
[]
[null,null,null,null,null,null,null,null,null,null,null,null,"C","Fine fuel loads will require significant restoration (e.g. supplemental plantings to increase needle cast or graminoid ground cover) to reestablish the ability to carry low intensity surface fires at intervals appropriate for the plant community, or the assessment area will require a combination of fire and mechanical treatments to maintain appropriate fuel loads for the next 55 years or more."]
[null,null,null,null,null,null,{"$f":"IF(OR(G531=\"NA\",DATA_1!C43=2),0,3)","v":3},null,null,{"$f":"IF(OR(J531=\"NA\",DATA_1!C43=2),0,3)","v":3}]
[]
[]
[null,null,null,null,null,null,null,null,null,null,null,null,"D","Fine fuel loads required to carry low intensity surface fires at appropriate intervals are currently absent due to fire exclusion, hardwood encroachment, ground disturbance, herbicide treatments, or other land management practices.  Assessment area will require extensive restoration to reestablish fine fuel loads necessary to burn at intervals and intensity appropriate for the plant community, or will always require regular and periodic mechanical treatments in the absence of fire, due to the inability to perform prescribed burning in the area."]
[]
[]
[]
[]
[]
[]
[null,null,"Community Structure",26,null,"Ecological Concept: Prescribed fire species composition and sustainable fire return interval (Pyrogenic communities only)"]
[null,null,null,null,null,"Please characterize the pyrogenic plant community and its ability to regenerate and thrive with regular and periodic fire for the next 55 years.  "]
[]
[]
[]
[null,null,null,null,null,null,{"$f":"Part1_Data!$V$14","v":"Current"},null,null,{"$f":"Part1_Data!$V$15","v":"w/ Mitigation"},null,null,"A","Plant community species composition and structure (e.g. canopy species which tolerate and reproduce after fire, perennial bunch grasses, graminoids, and other pyrophytes) are optimal to support and sustain a fire dependent plant community."]
[null,null,null,null,null,null,"A",null,null,"A"]
[null,null,null,null,null,null,"(Selection)",null,null,"(Selection)"]
[]
[null,null,null,null,null,null,null,null,null,null,null,null,"B","Plant community species composition and structure are not optimal to support and sustain a fire dependent landscape, but can easily be restored to an optimal condition."]
[null,null,null,null,null,null,{"$f":"IF(DATA_1!C43=2,\"NA\",LOOKUP(G550,DATA_1!$G$63:$H$70))","v":3},null,null,{"$f":"IF(DATA_1!C43=2,\"NA\",LOOKUP(J550,DATA_1!$G$63:$H$70))","v":3}]
[]
[null,null,null,null,null,null,null,null,null,null,null,null,"C","Plant community species composition and structure are not optimal to support and sustain a fire dependent landscape, and will require significant restoration  (e.g. supplemental planting, exotic removal, nuisance species control, removal of beds and rows, etc.) to return appropriate pyrogenic species and/or structure."]
[null,null,null,null,null,null,{"$f":"IF(OR(G554=\"NA\",DATA_1!C43=2),0,3)","v":3},null,null,{"$f":"IF(OR(J554=\"NA\",DATA_1!C43=2),0,3)","v":3}]
[]
[null,null,null,null,null,null,null,null,null,null,null,null,"D","Plant community species composition and structure is not optimal to support and sustain a fire dependent landscape and no fire will be possible for the next 55 years, or fire intervals will be simulated only by mechanical means for the next 55 years."]
[]
[]
[]
[]
[]
[null,null,"Summary  (CS)",null,null,null,"Current",null,null,"W/Project"]
[null,null,null,"Total Points",null,null,{"$f":"SUM(G554,G531,G511,G493,G473,G454,G430,G405,G384,G366,G342,G325,G303,G281,G263,G246)","v":48},null,null,{"$f":"SUM(J554,J531,J511,J493,J473,J454,J430,J405,J384,J366,J342,J325,J303,J281,J263,J246)","v":48},null,null,null,null,null,null,null,null,null,null,null,null,null,null,"DRAFT DOCUMENT"]
[null,null,null,"Max Possible",null,null,{"$f":"SUM(G557,G534,G514,G496,G477,G457,G434,G408,G387,G369,G345,G328,G306,G284,G267,G249)","v":48},null,null,{"$f":"SUM(J557,J534,J514,J496,J477,J457,J434,J408,J387,J369,J345,J328,J306,J284,J267,J249)","v":48}]
[]
[null,null,null,"Score",null,null,{"$f":"(G566/G567)*10","v":10},null,null,{"$f":"(J566/J567)*10","v":10}]
[]
[]
[null,null,"Please use the space below to provide additional detail or comments in support of scores or values indicated above."]

{"sheet":"Submerged","index":3,"n_rows":329,"n_cols":27,"rows_kept":329,"cut":false,"hidden":true,"merged":[[300,13,301,26],[297,13,298,26],[294,13,295,26],[291,13,292,26],[316,13,317,26],[313,13,314,26],[310,13,311,26],[307,13,308,26],[216,13,217,26],[213,13,214,26],[210,13,211,26],[207,13,208,26],[232,13,234,26],[229,13,230,26],[226,13,227,26],[223,13,224,26],[283,13,284,26],[280,13,281,26],[277,13,278,26],[274,13,275,26],[84,13,86,26],[77,13,78,26],[79,13,82,26],[71,19,71,23],[72,19,72,23],[75,5,75,26],[186,13,188,26],[182,13,184,26],[179,13,180,26],[320,2,325,2],[320,3,320,4],[321,3,321,4],[322,3,322,4],[324,3,324,4],[18,6,21,26],[18,1,18,5],[304,2,318,2],[304,5,305,26],[309,6,310,6],[309,9,310,9],[287,2,302,2],[287,5,289,26],[293,6,294,6],[293,9,294,9],[270,2,285,2],[270,5,272,26],[276,6,277,6],[276,9,277,9],[254,2,268,2],[254,5,255,26],[259,6,260,6],[259,9,260,9],[266,13,267,26],[263,13,264,26],[260,13,261,26],[257,13,258,26],[237,2,252,2],[237,5,239,26],[243,6,244,6],[243,9,244,9],[220,2,235,2],[220,5,221,26],[225,6,226,6],[225,9,226,9],[250,13,251,26],[247,13,248,26],[244,13,245,26],[241,13,242,26],[176,2,193,2],[176,5,177,26],[181,6,182,6],[181,9,182,9],[159,2,174,2],[159,5,160,26],[164,6,165,6],[164,9,165,9],[204,2,218,2],[204,5,205,26],[209,6,210,6],[209,9,210,9],[195,2,200,2],[195,3,195,4],[196,3,196,4],[197,3,197,4],[199,3,199,4],[203,2,203,15],[196,25,196,27],[171,13,173,26],[168,13,169,26],[165,13,166,26],[162,13,163,26],[190,13,192,26],[145,6,146,6],[145,9,146,9],[127,13,129,26],[124,13,125,26],[154,13,156,26],[150,13,152,26],[146,13,148,26],[143,13,144,26],[121,5,122,26],[126,6,127,6],[126,9,127,9],[23,2,23,15],[24,2,32,2],[24,5,25,26],[27,17,28,22],[28,11,28,15],[31,11,31,17],[135,13,137,26],[131,13,133,26],[93,2,98,2],[93,3,93,4],[94,3,94,4],[95,3,95,4],[97,3,97,4],[101,2,101,15],[102,2,119,2],[102,5,103,26],[107,6,108,6],[68,13,69,26],[65,13,66,26],[61,13,63,26],[57,13,59,26],[79,9,80,9],[79,6,80,6],[88,13,90,26],[330,2,337,26],[34,2,53,2],[34,5,35,26],[38,13,39,19],[39,6,41,6],[39,9,41,9],[41,13,42,19],[45,13,52,19],[328,2,329,26],[55,2,73,2],[55,5,55,26],[59,6,61,6],[59,9,61,9],[321,24,321,26],[94,25,94,27],[121,2,138,2],[107,9,108,9],[116,13,118,26],[112,13,114,26],[108,13,110,26],[105,13,106,26],[75,2,91,2],[140,2,157,2],[140,5,141,26],[5,3,5,4],[5,5,5,16],[5,18,5,20],[5,22,5,24],[6,5,6,16],[6,17,6,18],[1,3,2,17],[1,20,1,22],[1,23,1,27],[2,20,2,22],[2,23,2,27],[3,3,3,17],[13,13,13,18],[14,13,14,18],[7,17,7,18],[7,24,7,25],[8,3,8,4],[8,5,8,16],[8,25,8,28],[9,3,10,4],[9,5,10,16],[10,17,10,18],[10,20,10,22],[14,21,14,22]]}
[]
[null,null,null,"Ecological Assessment",null,null,null,null,null,null,null,null,null,null,null,null,null,null,null,null,"Project:",null,null,{"$f":"Part_I!D8","v":"(Project Name)"}]
[null,null,null,null,null,null,null,null,null,null,null,null,null,null,null,null,null,null,null,null,"Assessment Area:",null,null,{"$f":"Part_I!P8","v":"(Assement Area)"}]
[null,null,null,"Submerged Aquatic Habitat (Section 62-345.500 F.A.C.)"]
[]
[null,null,null,"Reference:",null,{"$f":"Part_I!L44","v":"(Type Here)"},null,null,null,null,null,null,null,null,null,null,null,null,"Current Condition",null,null,null,"With Project"]
[null,null,null,null,null,{"$f":"Part1_Data!J20","v":"Wetland or Other Surface Water"},null,null,null,null,null,null,null,null,null,null,null,"L&LS Score:",null,{"$f":"DATA_1!Z71","v":10},null,null,"L&LS Score:",{"$f":"DATA_1!AA71","v":10}]
[null,null,null,null,null,null,null,null,null,null,null,null,null,null,null,null,null,"WE Score:",null,{"$f":"DATA_1!Z72","v":10},null,null,"WE Score:",{"$f":"DATA_1!AA72","v":10},{"$f":"IF(Part1_Data!D5>=6, \"Current Value:\",\"Delta:\")","v":"Delta:"},null,{"$f":"IF(AND(Part1_Data!D5>=6,Part1_Data!I20=1),Submerged!T11,IF(AND(Part1_Data!D5>=6,Part1_Data!I20=2),T15,IF(Part1_Data!I20=1,Submerged!X11-Submerged!T11,IF(Part1_Data!I20=2,Submerged!X15-Submerged!T15,\"?\"))))","v":0}]
[null,null,null,"Application#",null,{"$f":"Part_I!J8","v":"(Application Number)"},null,null,null,null,null,null,null,null,null,null,null,null,"CS Score:",{"$f":"DATA_1!Z73","v":10},null,null,"CS Score:",{"$f":"DATA_1!AA73","v":10},null,{"$f":"IF(Part1_Data!D5=6,\"        Current Value\",\"With Project - Current\")","v":"With Project - Current"}]
[null,null,null,"Activity:",null,{"$f":"Part1_Data!E5","v":"Mitigation Assessment (Enhancement)"}]
[null,null,null,null,null,null,null,null,null,null,null,null,null,null,null,null,null,{"$f":"IF(DATA_1!Q70=1,\"(LLS+WE+CS)/30)\",IF(DATA_1!Q70=2,\"(LLS+CS)/20)\",\"?\"))","v":"(LLS+WE+CS)/30)"},null,{"$f":"DATA_1!Z74","v":1},{"$f":"IF(AND(DATA_1!Q70=1,DATA_1!M70<>6),\"(LLS+WE+CS)/30)\",IF(AND(DATA_1!Q70=2,DATA_1!M70<>6),\"(LLS+CS)/20)\",IF(DATA_1!M70=6,\"Preservation\",\"?\")))","v":"(LLS+WE+CS)/30)"},null,null,{"$f":"DATA_1!AA74","v":1}]
[]
[]
[null,null,null,null,null,null,null,null,null,null,null,null,null,"Wetland Support Value for Uplands (Part 1):",null,null,null,null,null,{"$f":"Part_I!#REF!","v":{"$error":"#REF!"}},null,null,null,{"$f":"Part_I!#REF!","v":{"$error":"#REF!"}}]
[null,null,null,null,null,null,null,null,null,null,null,null,null,"Modified Upland Score (Score x Value Above):",null,null,null,null,null,{"$f":"T11*T14","v":{"$error":"#REF!"}},null,null,null,{"$f":"IF(Part1_Data!D5>=6,\"NA\",X11*X14)","v":{"$error":"#REF!"}}]
[]
[]
[]
[null,"INSTRUCTIONS:",null,null,null,null,"For categorical Questions 3 - 15, indicate which provided description best corresponds to the assessment area by placing an A, B, C, or D  in the box labeled \"Selection\" for both the Current and or anticipated W/Project condition as appropriate.  If the provided descriptions do not precisely correspond to project-specific circumstances, the combinations \"AB, BC, or CD\" can be entered into the \"Selection\" box to indicate circumstances intermediate to those described."]
[]
[]
[]
[]
[null,null,"Location and Landscape Support (L&LS)"]
[null,null,"L & LS",1,null,"Please use the \"Location and Landscape Support Worksheet\" to quantify the composition of landuse types and natural habitat adjacent to, and surrounding, the assessment area.  Once completed, scores for \"Edge Composition\" and \"Landscape Composition\" will be automatically populated below. "]
[]
[]
[null,null,null,null,null,null,{"$f":"Part1_Data!$V$14","v":"Current"},null,null,{"$f":"Part1_Data!$V$15","v":"w/ Mitigation"},null,null,null,null,null,null,null,"Click Here to Complete the LLS Worksheet"]
[null,null,null,null,null,null,{"$f":"LLS_Worksheet!R35","v":9},null,null,{"$f":"LLS_Worksheet!S76","v":9},null,"Edge Composition (Auto-filled)"]
[]
[null,null,null,null,null,null,{"$f":"Part1_Data!$V$14","v":"Current"},null,null,{"$f":"Part1_Data!$V$15","v":"w/ Mitigation"}]
[null,null,null,null,null,null,{"$f":"LLS_Worksheet!U35","v":4},null,null,{"$f":"LLS_Worksheet!V76","v":4},null,"Landscape Composition (Auto-filled)"]
[]
[]
[null,null,"Location & Landscape Support",2,null,"What is the linear distance (as measured to the nearest whole foot) from the assessment area's perimeter to the nearest channel, maintenance dredging, fill activity, or other chronic disturbance?"]
[]
[]
[null,null,null,null,null,null,{"$f":"Part1_Data!$V$14","v":"Current"},null,null,{"$f":"Part1_Data!$V$15","v":"w/ Mitigation"}]
[null,null,null,null,null,null,3000,null,null,3000,null,null,null,"Type the linear distance existing the Current Condition in the \"Current\" box."]
[null,null,null,null,null,null,"(Distance - feet)",null,null,"(Distance - feet)"]
[]
[null,null,null,null,null,null,null,null,null,null,null,null,null,"Type the linear distance anticipated with project success in the \"w/Project\" box."]
[null,null,null,null,null,null,{"$f":"IF(G39>=3000,3,IF(G39<3000,((G39*0.033)/100)*3,IF(G39<0,0,\"?\")))","v":3},null,null,{"$f":"IF(J39>=3000,3,IF(J39<3000,((J39*0.033)/100)*3,IF(J39<0,0,\"?\")))","v":3}]
[null,null,null,null,null,null,"(Result)",null,null,"(Result)"]
[]
[null,null,null,null,null,null,null,null,null,null,null,null,null,"NOTE: Maximum score benefit is achieved for distances equal or greater than 3000 feet; this distance is based on the Department's currently and typically implemented monitoring requirements for mitigation of submerged communities.  The \"Result\" shown at left is calculated based on the following equation: Value = Distance x 0.033.  The number 0.033 is the slope of the line between a the maximum value of 100 (rise) divided by the distance of 3000 (run) as shown at right."]
[]
[]
[]
[]
[]
[]
[]
[]
[]
[null,null,"Location & Landscape Support",3,null,"Relative to other native natural community types in the landscape, what level of rarity or scarcity is associated with this assessment area's reference community?"]
[]
[null,null,null,null,null,null,{"$f":"Part1_Data!$V$14","v":"Current"},null,null,{"$f":"Part1_Data!$V$15","v":"w/ Mitigation"},null,null,"A","The assessment area's reference community type is listed as either Imperiled or Critically imperiled in the State because of rarity or vulnerability (FNAI Listing of S1 or S2), OR available evidence indicates it is similarly rare or vulnerable within the region."]
[null,null,null,null,null,null,"A",null,null,"A"]
[null,null,null,null,null,null,"(Selection)",null,null,"(Selection)"]
[]
[null,null,null,null,null,null,null,null,null,null,null,null,"B","The assessment area's reference community type is listed as either Very Rare and Local or Found Locally in a Restricted Range or Vulnerable to Extinction from Other Factors. (FNAI Listing of S3), OR available evidence indicates it is similarly rare or vulnerable within the region."]
[null,null,null,null,null,null,{"$f":"LOOKUP(G59,DATA_1!$G$63:$H$72)","v":3},null,null,{"$f":"LOOKUP(J59,DATA_1!$G$63:$H$72)","v":3}]
[]
[]
[null,null,null,null,null,null,null,null,null,null,null,null,"C","The assessment area's reference community type is listed as Apparently Secure in Florida (FNAI Listing of S4), OR available evidence indicates it is apparently secure within the region."]
[]
[]
[null,null,null,null,null,null,null,null,null,null,null,null,"D","The assessment area's reference community type is listed as Demonstrably Secure in Florida (FNAI Listing of S5), OR available evidence indicates it is demonstrably secure within the region."]
[]
[]
[null,null,null,null,null,null,null,null,null,null,null,null,null,null,null,null,null,null,null,"State Listing Look-up Tool",null,null,null,null,null,"State Rank"]
[null,null,null,null,null,null,null,null,null,null,null,null,null,null,null,null,null,null,null,"Wet prairie",null,null,null,null,null,{"$f":"LOOKUP(T73,DATA_1!K41:L121)","v":"S2"}]
[]
[]
[null,null,"Location & Landscape Support",4,null,"What level of wildlife utilization by wetland dependent listed species is associated with the assessment area and surrounding landscape?"]
[]
[null,null,null,null,null,null,{"$f":"Part1_Data!$V$14","v":"Current"},null,null,{"$f":"Part1_Data!$V$15","v":"w/ Mitigation"},null,null,"A","There is evidence of utilization by wetland dependent listed species within the assessment area."]
[null,null,null,null,null,null,"A",null,null,"A"]
[null,null,null,null,null,null,"(Selection)",null,null,"(Selection)",null,null,null,"There is not evidence of utilization by wetland dependent listed species within the assessment area; however, there is evidence that wetland dependent species are found in the surrounding landscape and within recruitment, spawning, breeding, or foraging range of the assessment area."]
[null,null,null,null,null,null,null,null,null,null,null,null,"B"]
[null,null,null,null,null,null,{"$f":"LOOKUP(G79,DATA_1!$G$63:$H$72)","v":3},null,null,{"$f":"LOOKUP(J79,DATA_1!$G$63:$H$72)","v":3}]
[]
[]
[null,null,null,null,null,null,null,null,null,null,null,null,"C","There is not evidence of utilization by wetland dependent listed species within the assessment area or within recruitment, spawning, breeding, or foraging range of the assessment area; however, the habitat type and condition is suitable for colonization or use by wetland dependent listed species."]
[]
[]
[]
[null,null,null,null,null,null,null,null,null,null,null,null,"D","There is not evidence of utilization by wetland dependent listed species within the assessment area or within recruitment, spawning, breeding, or foraging range of the assessment area, AND site conditions are not suitable for colonization or use by listed species."]
[]
[]
[]
[]
[null,null,"Summary (L&LS)","L&LS",null,null,"Current",null,null,"W/Project"]
[null,null,null,"Total Points",null,null,{"$f":"SUM(G82,G63,G43,G32,G29)","v":22},null,null,{"$f":"SUM(J82,J63,J43,J32,J29)","v":22},null,null,null,null,null,null,null,null,null,null,null,null,null,null,null,"DRAFT DOCUMENT"]
[null,null,null,"Max Possible",null,null,22,null,null,22]
[]
[null,null,null,"Score",null,null,{"$f":"(G95/G96)*10","v":10},null,null,{"$f":"(J95/J96)*10","v":10}]
[]
[]
[]
[null,null,"Water Environment (WE)"]
[null,null,"Water Environment",5,null,"Please characterize prevailing water quality (nutrients, pollutants, etc…) within the assessment area relative to that expected for the reference community type at this location."]
[]
[]
[null,null,null,null,null,null,{"$f":"Part1_Data!$V$14","v":"Current"},null,null,{"$f":"Part1_Data!$V$15","v":"w/ Mitigation"},null,null,"A","Prevailing water quality within the assessment area is typical for the reference community type and location."]
[null,null,null,null,null,null,"A",null,null,"A"]
[null,null,null,null,null,null,"(Selection)",null,null,"(Selection)"]
[null,null,null,null,null,null,null,null,null,null,null,null,"B","Prevailing water quality within the assessment area is atypical for the reference community type and location; however, no adverse effects are observed or anticipated."]
[]
[null,null,null,null,null,null,{"$f":"LOOKUP(G107,DATA_1!$G$63:$H$72)","v":3},null,null,{"$f":"LOOKUP(J107,DATA_1!$G$63:$H$72)","v":3}]
[]
[null,null,null,null,null,null,null,null,null,null,null,null,"C","Prevailing water quality within the assessment area is atypical for the reference community type and location, and adverse effects are observed or anticipated."]
[null,null,null,null,null,null,{"$f":"IF(G111=\"NA\",0,3)","v":3},null,null,{"$f":"IF(J111=\"NA\",0,3)","v":3}]
[]
[]
[null,null,null,null,null,null,null,null,null,null,null,null,"D","Prevailing water quality within the assessment area is atypical for the reference community type and location and have already, or are likely to result in change of community type or a major reduction to ecological benefits."]
[]
[]
[]
[]
[null,null,"Water Environment",6,null,"Please characterize prevailing water clarity, visibility, and light penetration within the assessment area relative to that expected for the reference community type at this location."]
[]
[]
[null,null,null,null,null,null,{"$f":"Part1_Data!$V$14","v":"Current"},null,null,{"$f":"Part1_Data!$V$15","v":"w/ Mitigation"},null,null,"A","Prevailing water clarity, visibility, and light penetration within the assessment area appear typical for the reference community type and location."]
[null,null,null,null,null,null,"A",null,null,"A"]
[null,null,null,null,null,null,"(Selection)",null,null,"(Selection)"]
[null,null,null,null,null,null,null,null,null,null,null,null,"B","Prevailing water clarity, visibility, and light penetration within the assessment area are atypical for the reference community type and location; however, no adverse effects are observed or anticipated."]
[]
[null,null,null,null,null,null,{"$f":"LOOKUP(G126,DATA_1!$G$63:$H$72)","v":3},null,null,{"$f":"LOOKUP(J126,DATA_1!$G$63:$H$72)","v":3}]
[]
[null,null,null,null,null,null,null,null,null,null,null,null,"C","Prevailing water clarity, visibility, and light penetration within the assessment area are atypical for the reference community type and location, and some adverse effects are observed or anticipated."]
[null,null,null,null,null,null,{"$f":"IF(G130=\"NA\",0,3)","v":3},null,null,{"$f":"IF(J130=\"NA\",0,3)","v":3}]
[]
[]
[null,null,null,null,null,null,null,null,null,null,null,null,"D","Prevailing water clarity, visibility, and light penetration within the assessment area are atypical for the reference community type and location and have already, or are likely to result in change of community type or a major reduction to ecological benefits."]
[]
[]
[]
[]
[null,null,"Water Environment",7,null,"Please characterize prevailing wave dynamics, current, and overall water energy within the assessment area relative to that expected for the reference community type at this location."]
[]
[]
[null,null,null,null,null,null,{"$f":"Part1_Data!$V$14","v":"Current"},null,null,{"$f":"Part1_Data!$V$15","v":"w/ Mitigation"},null,null,"A","Prevailing water energy within the assessment area is typical for the reference community type and location."]
[null,null,null,null,null,null,"A",null,null,"A"]
[null,null,null,null,null,null,"(Selection)",null,null,"(Selection)"]
[null,null,null,null,null,null,null,null,null,null,null,null,"B","Prevailing water energy within the assessment area is atypical for the reference community type and location; however, no adverse effects are observed or anticipated."]
[]
[null,null,null,null,null,null,{"$f":"LOOKUP(G145,DATA_1!$G$63:$H$72)","v":3},null,null,{"$f":"LOOKUP(J145,DATA_1!$G$63:$H$72)","v":3}]
[]
[null,null,null,null,null,null,null,null,null,null,null,null,"C","Prevailing water energy within the assessment area is atypical for the reference community type and location, and some adverse effects are observed or anticipated."]
[null,null,null,null,null,null,{"$f":"IF(G149=\"NA\",0,3)","v":3},null,null,{"$f":"IF(J149=\"NA\",0,3)","v":3}]
[]
[]
[null,null,null,null,null,null,null,null,null,null,null,null,"D","Prevailing water energy within the assessment area is atypical for the reference community type and location and have already, or are likely to result in change of community type or a major reduction to ecological benefits."]
[]
[]
[]
[]
[null,null,"Water Environment",8,null,"Please characterize prevailing salinity within the assessment area relative to that expected for the reference community type at this location."]
[]
[]
[null,null,null,null,null,null,{"$f":"Part1_Data!$V$14","v":"Current"},null,null,{"$f":"Part1_Data!$V$15","v":"w/ Mitigation"},null,null,"A","Prevailing salinity within the assessment area appears typical for the reference community type and location."]
[null,null,null,null,null,null,"A",null,null,"A"]
[null,null,null,null,null,null,"(Selection)",null,null,"(Selection)"]
[null,null,null,null,null,null,null,null,null,null,null,null,"B","Prevailing salinity within the assessment area is atypical for the reference community type and location; however, no adverse effects are observed or anticipated."]
[]
[]
[null,null,null,null,null,null,{"$f":"LOOKUP(G164,DATA_1!$G$63:$H$72)","v":3},null,null,{"$f":"LOOKUP(J164,DATA_1!$G$63:$H$72)","v":3},null,null,"C","Prevailing salinity within the assessment area is atypical for the reference community type and location, and some adverse effects are observed or anticipated."]
[]
[]
[null,null,null,null,null,null,{"$f":"IF(G169=\"NA\",0,3)","v":3},null,null,{"$f":"IF(J169=\"NA\",0,3)","v":3},null,null,"D","Prevailing salinity within the assessment area is atypical for the reference community type and location and have already, or are likely to result in change of community type or a major reduction to ecological benefits."]
[]
[]
[]
[]
[null,null,"Water Environment",9,null,"Please characterize the distribution and abundance of sediments within the assessment area relative to that expected for the reference community type at this location."]
[]
[]
[null,null,null,null,null,null,{"$f":"Part1_Data!$V$14","v":"Current"},null,null,{"$f":"Part1_Data!$V$15","v":"w/ Mitigation"},null,null,"A","The distribution and abundance of sediments within the assessment area are typical for the reference community type and location."]
[null,null,null,null,null,null,"A",null,null,"A"]
[null,null,null,null,null,null,"(Selection)",null,null,"(Selection)"]
[null,null,null,null,null,null,null,null,null,null,null,null,"B","The distribution and abundance of sediments within the assessment area are atypical for the reference community type and location; however, no adverse effects are observed or anticipated."]
[]
[null,null,null,null,null,null,{"$f":"LOOKUP(G181,DATA_1!$G$63:$H$72)","v":3},null,null,{"$f":"LOOKUP(J181,DATA_1!$G$63:$H$72)","v":3}]
[]
[null,null,null,null,null,null,null,null,null,null,null,null,"C","The distribution and abundance of sediments within the assessment area are atypical for the reference community type and location, and some adverse effects are observed or anticipated."]
[null,null,null,null,null,null,{"$f":"IF(G185=\"NA\",0,3)","v":3},null,null,{"$f":"IF(J185=\"NA\",0,3)","v":3}]
[]
[]
[null,null,null,null,null,null,null,null,null,null,null,null,"D","The distribution and abundance of sediments within the assessment area are atypical for the reference community type and location, and have already, or are likely to result in change of community type or a major reduction to ecological benefits."]
[]
[]
[]
[]
[null,null,"Summary (WE)","WE",null,null,"Current",null,null,"W/Project"]
[null,null,null,"Total Points",null,null,{"$f":"SUM(G185,G169,G149,G130,G111)","v":15},null,null,{"$f":"SUM(J185,J169,J149,J130,J111)","v":15},null,null,null,null,null,null,null,null,null,null,null,null,null,null,null,"DRAFT DOCUMENT"]
[null,null,null,"Max Possible",null,null,{"$f":"SUM(G188,G172,G152,G133,G114)","v":15},null,null,{"$f":"SUM(J188,J172,J152,J133,J114)","v":15}]
[]
[null,null,null,"Score",null,null,{"$f":"(G197/G198)*10","v":10},null,null,{"$f":"(J197/J198)*10","v":10}]
[]
[]
[]
[null,null,"Community Structure (CS)"]
[null,null,"CS",10,null,"Please characterize the assessment area's physical substrate relative to the level of topographical, micro-topographical, and other surficial variation expected for the reference community type at this location."]
[]
[]
[null,null,null,null,null,null,{"$f":"Part1_Data!$V$14","v":"Current"},null,null,{"$f":"Part1_Data!$V$15","v":"w/ Mitigation"},null,null,"A","The physical substrate over the entire extent of the assessment area displays a level of topographical, micro-topographical, and other surficial variation comparable to that expected for the reference community type and location."]
[null,null,null,null,null,null,"A",null,null,"A"]
[null,null,null,null,null,null,"(Selection)",null,null,"(Selection)"]
[null,null,null,null,null,null,null,null,null,null,null,null,"B","A minimum of 70% of the assessment area's physical substrate displays a level of topographical, micro-topographical, and other surficial variation comparable to that expected for the reference community type and location."]
[]
[]
[null,null,null,null,null,null,{"$f":"LOOKUP(G209,DATA_1!$G$63:$H$72)","v":3},null,null,{"$f":"LOOKUP(J209,DATA_1!$G$63:$H$72)","v":3},null,null,"C","A minimum of 40% of the assessment area's physical substrate displays a level of topographical, micro-topographical, and other surficial variation comparable to that expected for the reference community type and location."]
[]
[]
[null,null,null,null,null,null,{"$f":"IF(G214=\"NA\",0,3)","v":3},null,null,{"$f":"IF(J214=\"NA\",0,3)","v":3},null,null,"D","None of the assessment area's physical substrate displays the level of topographical, micro-topographical, and other surficial variation comparable to that expected for the reference community type and location."]
[]
[]
[]
[null,null,"Community Structure",11,null,"Please characterize the presence or absence of mobile rubble or debris within the assessment area relative to that expected for the reference community type at this location."]
[]
[]
[null,null,null,null,null,null,{"$f":"Part1_Data!$V$14","v":"Current"},null,null,{"$f":"Part1_Data!$V$15","v":"w/ Mitigation"},null,null,"A","The presence or absence of mobile rubble or debris within the assessment area appears typical for the reference community type and location."]
[null,null,null,null,null,null,"A",null,null,"A"]
[null,null,null,null,null,null,"(Selection)",null,null,"(Selection)"]
[null,null,null,null,null,null,null,null,null,null,null,null,"B","The presence or absence of mobile rubble or debris within the assessment area appears atypical for the reference community type and location; however, no adverse effects are observed or anticipated."]
[]
[]
[null,null,null,null,null,null,{"$f":"LOOKUP(G225,DATA_1!$G$63:$H$72)","v":3},null,null,{"$f":"LOOKUP(J225,DATA_1!$G$63:$H$72)","v":3},null,null,"C","The presence or absence of mobile rubble or debris within the assessment area appears atypical for the reference community type and location, and some adverse effects are observed or anticipated."]
[]
[]
[null,null,null,null,null,null,{"$f":"IF(G230=\"NA\",0,3)","v":3},null,null,{"$f":"IF(J230=\"NA\",0,3)","v":3},null,null,"D","The presence or absence of mobile rubble or debris within the assessment area appears atypical for the reference community type and location, and have already, or are likely to result in change of community type  or a major reduction to ecological benefits."]
[]
[]
[]
[]
[null,null,"Community Structure",12,null,"Considering all species observed within the assessment area, please characterize the proportion that are appropriate for the reference community type and location?"]
[]
[]
[]
[null,null,null,null,null,null,{"$f":"Part1_Data!$V$14","v":"Current"},null,null,{"$f":"Part1_Data!$V$15","v":"w/ Mitigation"},null,null,"A","All species observed within the assessment area are appropriate for the reference community type and location."]
[null,null,null,null,null,null,"A",null,null,"A"]
[null,null,null,null,null,null,"(Selection)",null,null,"(Selection)"]
[null,null,null,null,null,null,null,null,null,null,null,null,"B","A minimum of 70% of species observed within the assessment area are appropriate for the reference community type and location."]
[]
[]
[null,null,null,null,null,null,{"$f":"LOOKUP(G243,DATA_1!$G$63:$H$72)","v":3},null,null,{"$f":"LOOKUP(J243,DATA_1!$G$63:$H$72)","v":3},null,null,"C","A minimum of 40% of species observed within the assessment area are appropriate for the reference community type and location."]
[]
[]
[null,null,null,null,null,null,{"$f":"IF(G248=\"NA\",0,3)","v":3},null,null,{"$f":"IF(J248=\"NA\",0,3)","v":3},null,null,"D","None of the species observed within the assessment area are appropriate for the reference community type and location."]
[]
[]
[]
[null,null,"Community Structure",13,null,"Considering only those species deemed appropriate for the reference community type and location, please characterize species richness within the assessment area relative to that expected for the reference community type at this location."]
[]
[]
[null,null,null,null,null,null,{"$f":"Part1_Data!$V$14","v":"Current"},null,null,{"$f":"Part1_Data!$V$15","v":"w/ Mitigation"},null,null,"A","All of the species expected for the reference community type are present within the assessment area, and there are no exotic, invasive, nuisance, or inappropriate native species."]
[null,null,null,null,null,null,"A",null,null,"A"]
[null,null,null,null,null,null,"(Selection)",null,null,"(Selection)"]
[null,null,null,null,null,null,null,null,null,null,null,null,"B","A minimum of 70% of species expected for the reference community type are present within the assessment area."]
[]
[]
[null,null,null,null,null,null,{"$f":"LOOKUP(G259,DATA_1!$G$63:$H$72)","v":3},null,null,{"$f":"LOOKUP(J259,DATA_1!$G$63:$H$72)","v":3},null,null,"C","A minimum of 40% of species expected for the reference community type are present within the assessment area."]
[]
[]
[null,null,null,null,null,null,{"$f":"IF(G264=\"NA\",0,3)","v":3},null,null,{"$f":"IF(J264=\"NA\",0,3)","v":3},null,null,"D","None of species expected for reference community type are present within the assessment area."]
[]
[]
[]
[null,null,"Community Structure",14,null,"Excluding invasive, exotic, nuisance, and inappropriate native species, please characterize the demographic structure of the assessment area relative to that expected for the reference community type in optimum condition.  Include consideration of age and size structure as well as evidence of recruitment and regeneration.   "]
[]
[]
[]
[null,null,null,null,null,null,{"$f":"Part1_Data!$V$14","v":"Current"},null,null,{"$f":"Part1_Data!$V$15","v":"w/ Mitigation"},null,null,"A","All populations in the display the demographic structure expected for the reference community type."]
[null,null,null,null,null,null,"A",null,null,"A"]
[null,null,null,null,null,null,"(Selection)",null,null,"(Selection)"]
[null,null,null,null,null,null,null,null,null,null,null,null,"B","A minimum of 70% of the populations display the demographic structure expected for the reference community type."]
[]
[]
[null,null,null,null,null,null,{"$f":"LOOKUP(G276,DATA_1!$G$63:$H$72)","v":3},null,null,{"$f":"LOOKUP(J276,DATA_1!$G$63:$H$72)","v":3},null,null,"C","A minimum of 40% of the populations display the demographic structure expected for the reference community type."]
[]
[]
[null,null,null,null,null,null,{"$f":"IF(G281=\"NA\",0,3)","v":3},null,null,{"$f":"IF(J281=\"NA\",0,3)","v":3},null,null,"D","None of the populations display the demographic structure expected for the reference community type."]
[]
[]
[]
[null,null,"Community Structure",15,null,"Excluding invasive, exotic, nuisance, and inappropriate native species, please characterize the distribution and abundance of species in the assessment area relative to that expected for the reference community type in optimum condition. "]
[]
[]
[]
[null,null,null,null,null,null,{"$f":"Part1_Data!$V$14","v":"Current"},null,null,{"$f":"Part1_Data!$V$15","v":"w/ Mitigation"},null,null,"A","The relative distribution and abundance of all species are typical for the reference community type."]
[null,null,null,null,null,null,"A",null,null,"A"]
[null,null,null,null,null,null,"(Selection)",null,null,"(Selection)"]
[null,null,null,null,null,null,null,null,null,null,null,null,"B","Relative distribution and abundance for a minimum of 70%  of species are typical the reference community type."]
[]
[]
[null,null,null,null,null,null,{"$f":"LOOKUP(G293,DATA_1!$G$63:$H$72)","v":3},null,null,{"$f":"LOOKUP(J293,DATA_1!$G$63:$H$72)","v":3},null,null,"C","Relative distribution and abundance for a minimum of 40%  of species are typical the reference community type."]
[]
[]
[null,null,null,null,null,null,{"$f":"IF(G298=\"NA\",0,3)","v":3},null,null,{"$f":"IF(J298=\"NA\",0,3)","v":3},null,null,"D","None of the species display the relative distribution or abundance expected for the reference community type."]
[]
[]
[]
[null,null,"Community Structure",16,null,"Please characterize the observable physical condition of individuals within the assessment area.  Please consider damage by humans, persistent disease, and any other type of damage beyond that normally expected for the reference community type."]
[]
[]
[null,null,null,null,null,null,{"$f":"Part1_Data!$V$14","v":"Current"},null,null,{"$f":"Part1_Data!$V$15","v":"w/ Mitigation"},null,null,"A","None of the individuals observed within the assessment area display signs of physical stress beyond that normally expected for the reference community type. "]
[null,null,null,null,null,null,"A",null,null,"A"]
[null,null,null,null,null,null,"(Selection)",null,null,"(Selection)"]
[null,null,null,null,null,null,null,null,null,null,null,null,"B","No more than 40% of the individuals observed within the assessment area display signs of physical stress beyond that normally expected for the reference community type. "]
[]
[]
[null,null,null,null,null,null,{"$f":"LOOKUP(G309,DATA_1!$G$63:$H$72)","v":3},null,null,{"$f":"LOOKUP(J309,DATA_1!$G$63:$H$72)","v":3},null,null,"C","No more than 70% of the individuals observed within the assessment area display signs of physical stress beyond that normally expected for the reference community type. "]
[]
[]
[null,null,null,null,null,null,{"$f":"IF(G314=\"NA\",0,3)","v":3},null,null,{"$f":"IF(J314=\"NA\",0,3)","v":3},null,null,"D","All of the individuals observed in the assessment area display signs of physical stress beyond that normally expected for the reference community type. "]
[]
[]
[]
[null,null,"Summary  (CS)",null,null,null,"Current",null,null,"W/Project"]
[null,null,null,"Total Points",null,null,{"$f":"SUM(G314,G298,G281,G264,G248,G230,G214)","v":21},null,null,{"$f":"SUM(J314,J298,J281,J264,J248,J230,J214)","v":21},null,null,null,null,null,null,null,null,null,null,null,null,null,null,"DRAFT DOCUMENT"]
[null,null,null,"Max Possible",null,null,{"$f":"SUM(G317,G301,G284,G267,G251,G233,G217)","v":21},null,null,{"$f":"SUM(J317,J301,J284,J267,J251,J233,J217)","v":21}]
[]
[null,null,null,"Score",null,null,{"$f":"(G322/G323)*10","v":10},null,null,{"$f":"(J322/J323)*10","v":10}]
[]
[]
[]
[null,null,"Please use the space below to provide additional detail or comments in support of scores or values indicated above."]

{"sheet":"LLS_Worksheet","index":4,"n_rows":77,"n_cols":24,"rows_kept":77,"cut":false,"hidden":true,"merged":[[61,23,62,26],[63,23,64,26],[65,23,66,26],[67,23,68,26],[69,23,70,26],[71,23,72,26],[33,3,33,9],[74,5,74,10],[37,11,38,21],[43,23,44,26],[45,23,46,26],[47,23,48,26],[49,23,50,26],[51,23,52,26],[53,23,54,26],[55,23,56,26],[57,23,58,26],[59,23,60,26],[70,2,70,3],[70,11,70,12],[70,13,70,14],[70,15,70,16],[70,17,70,19],[70,20,70,22],[72,2,72,3],[72,11,72,12],[72,13,72,14],[72,15,72,16],[72,17,72,19],[72,20,72,22],[66,2,66,3],[66,11,66,12],[66,13,66,14],[66,15,66,16],[66,17,66,19],[66,20,66,22],[68,2,68,3],[68,11,68,12],[68,13,68,14],[68,15,68,16],[68,17,68,19],[68,20,68,22],[70,5,70,10],[68,5,68,10],[66,5,66,10],[62,2,62,3],[62,11,62,12],[62,13,62,14],[62,15,62,16],[62,17,62,19],[62,20,62,22],[64,2,64,3],[64,11,64,12],[64,13,64,14],[64,15,64,16],[64,17,64,19],[64,20,64,22],[64,5,64,10],[62,5,62,10],[63,20,63,22],[63,17,63,19],[58,2,58,3],[58,11,58,12],[58,13,58,14],[58,15,58,16],[58,17,58,19],[58,20,58,22],[60,2,60,3],[60,11,60,12],[60,13,60,14],[60,15,60,16],[60,17,60,19],[60,20,60,22],[60,5,60,10],[58,5,58,10],[54,2,54,3],[54,11,54,12],[54,13,54,14],[54,15,54,16],[54,17,54,19],[54,20,54,22],[56,2,56,3],[56,11,56,12],[56,13,56,14],[56,15,56,16],[56,17,56,19],[56,20,56,22],[56,5,56,10],[54,5,54,10],[55,5,55,10],[55,11,55,12],[55,13,55,14],[55,15,55,16],[55,20,55,22],[55,17,55,19],[50,2,50,3],[50,11,50,12],[50,13,50,14],[50,15,50,16],[50,20,50,22],[52,2,52,3],[52,11,52,12],[52,13,52,14],[52,15,52,16],[52,17,52,19],[52,20,52,22],[50,5,50,10],[50,17,50,19],[44,2,44,3],[46,2,46,3],[46,11,46,12],[46,13,46,14],[46,15,46,16],[46,20,46,22],[48,2,48,3],[48,11,48,12],[48,13,48,14],[48,15,48,16],[48,20,48,22],[48,5,48,10],[46,5,46,10],[44,5,44,10],[44,15,44,16],[44,13,44,14],[44,11,44,12],[44,17,44,19],[46,17,46,19],[48,17,48,19],[47,5,47,10],[47,11,47,12],[47,13,47,14],[47,15,47,16],[74,11,74,12],[74,13,74,14],[74,16,74,17],[74,19,74,20],[36,5,36,16],[71,5,71,10],[71,11,71,12],[71,13,71,14],[71,15,71,16],[73,11,73,12],[73,13,73,14],[67,5,67,10],[67,11,67,12],[67,13,67,14],[67,15,67,16],[69,5,69,10],[69,11,69,12],[69,13,69,14],[69,15,69,16],[63,5,63,10],[63,11,63,12],[63,13,63,14],[63,15,63,16],[72,5,72,10],[45,5,45,10],[65,5,65,10],[65,11,65,12],[65,13,65,14],[65,15,65,16],[59,5,59,10],[59,11,59,12],[59,13,59,14],[59,15,59,16],[61,5,61,10],[61,11,61,12],[61,13,61,14],[61,15,61,16],[42,5,42,10],[24,3,24,9],[42,11,42,12],[42,13,42,14],[42,15,42,16],[57,5,57,10],[57,11,57,12],[57,13,57,14],[57,15,57,16],[51,5,51,10],[51,11,51,12],[51,13,51,14],[51,15,51,16],[53,5,53,10],[53,11,53,12],[53,13,53,14],[53,15,53,16],[52,5,52,10],[49,5,49,10],[49,11,49,12],[49,13,49,14],[49,15,49,16],[43,5,43,10],[43,11,43,12],[16,14,16,15],[18,16,18,18],[45,11,45,12],[45,13,45,14],[45,15,45,16],[37,2,38,10],[34,10,34,11],[33,10,33,11],[23,12,23,13],[30,12,30,13],[29,12,29,13],[28,12,28,13],[27,12,27,13],[31,12,31,13],[34,12,34,13],[33,12,33,13],[32,12,32,13],[30,10,30,11],[29,10,29,11],[28,10,28,11],[27,10,27,11],[26,10,26,11],[25,10,25,11],[24,10,24,11],[17,3,17,9],[16,3,16,9],[32,10,32,11],[31,10,31,11],[15,16,15,18],[16,16,16,18],[16,19,16,21],[15,19,15,21],[22,12,22,13],[21,12,21,13],[20,12,20,13],[19,12,19,13],[21,16,21,18],[20,16,20,18],[19,16,19,18],[18,12,18,13],[17,12,17,13],[16,12,16,13],[26,12,26,13],[25,12,25,13],[24,12,24,13],[19,14,19,15],[18,14,18,15],[17,14,17,15],[17,16,17,18],[26,16,26,18],[25,16,25,18],[24,16,24,18],[23,16,23,18],[22,16,22,18],[17,19,17,21],[1,1,2,11],[4,2,4,4],[14,2,15,11],[23,10,23,11],[22,10,22,11],[21,10,21,11],[20,10,20,11],[19,10,19,11],[18,10,18,11],[17,10,17,11],[16,10,16,11],[23,3,23,9],[22,3,22,9],[21,3,21,9],[20,3,20,9],[19,3,19,9],[18,3,18,9],[28,16,28,18],[27,16,27,18],[29,14,29,15],[28,14,28,15],[27,14,27,15],[26,14,26,15],[43,15,43,16],[34,18,34,19],[30,19,30,21],[31,16,31,18],[30,16,30,18],[43,13,43,14],[12,3,13,21],[61,20,61,22],[59,20,59,22],[57,20,57,22],[23,14,23,15],[22,14,22,15],[21,14,21,15],[33,15,33,16],[33,18,33,19],[31,19,31,21],[41,17,41,19],[41,20,41,22],[27,19,27,21],[26,19,26,21],[25,19,25,21],[24,19,24,21],[23,19,23,21],[22,19,22,21],[31,14,31,15],[30,14,30,15],[42,17,42,19],[61,17,61,19],[59,17,59,19],[57,17,57,19],[24,14,24,15],[42,3,42,4],[4,5,5,21],[7,5,8,21],[10,5,11,21],[45,20,45,22],[43,20,43,22],[31,3,31,9],[30,3,30,9],[29,3,29,9],[28,3,28,9],[27,3,27,9],[26,3,26,9],[25,3,25,9],[21,19,21,21],[20,19,20,21],[19,19,19,21],[18,19,18,21],[45,17,45,19],[43,17,43,19],[44,20,44,22],[20,14,20,15],[34,15,34,16],[25,14,25,15],[75,16,75,17],[75,19,75,20],[29,19,29,21],[28,19,28,21],[76,11,76,12],[76,13,76,14],[53,20,53,22],[51,20,51,22],[49,20,49,22],[47,20,47,22],[53,17,53,19],[51,17,51,19],[49,17,49,19],[47,17,47,19],[71,20,71,22],[69,20,69,22],[67,20,67,22],[65,20,65,22],[71,17,71,19],[69,17,69,19],[67,17,67,19],[65,17,65,19],[42,20,42,22],[29,16,29,18]]}
[]
[null,"UMAM Landscape Worksheet"]
[]
[]
[null,null,"INSTRUCTIONS:",null,null,"In the column labeled \"Habitat/Cover Type,\" use the dropdown box options to choose the landcover or landuse categories that best categorize the major landcover and landuse types found within a one-half mile distance (2,640 feet) of the assessment area's perimeter.  Please use a different row for each distinct landuse or landcover type."]
[]
[]
[null,null,null,null,null,"In the column labeled \"% Perimeter,\" enter the whole number value (0 - 100) that best approximates the percent of the assessment area's perimeter that is adjacent to the \"Habitat/Cover Type\" selected for that row.  In classifying an adjacent \"Habitat/Cover Type,\" please consider the dominant type within a distance of 300 feet of the assessment area's perimeter.    "]
[]
[]
[null,null,null,null,null,"In the column labeled \"% Area,\" enter the whole number value between 0 and 100 that best approximates the percent of areal extent occupied by the \"Habitat/Cover Type\" selected for that row within a distance of one-half mile (2,640 feet)."]
[]
[null,null,null,{"$f":"IF(Part1_Data!D5=3,\"Part I indicates that this is a Mitigation as Creation assessment - Complete the w/Project Condition portion of this worksheet only.\",\" \")","v":" "}]
[]
[null,null,"Current Condition (Edge & Landscape Composition Effects)"]
[null,null,null,null,null,null,null,null,null,null,null,null,null,null,null,null,"Edge Effects",null,null,"Composition Effects"]
[null,null,"Item#","Habitat/Cover Type",null,null,null,null,null,null,"% Perimeter",null,"% Area",null,"Resistance Factor",null,"(% Perimeter X Resistance Factor)",null,null,"(% Area X Resistance Factor)"]
[null,null,1,"1 None Selected",null,null,null,null,null,null,0,null,0,null,{"$f":"LOOKUP(D18,DATA_1!$C$7:$E$37)","v":0},null,{"$f":"K18*O18","v":0},null,null,{"$f":"M18*O18","v":0}]
[null,null,2,"1 None Selected",null,null,null,null,null,null,0,null,0,null,{"$f":"LOOKUP(D19,DATA_1!$C$7:$E$37)","v":0},null,0,null,null,0]
[null,null,3,"1 None Selected",null,null,null,null,null,null,0,null,0,null,{"$f":"LOOKUP(D20,DATA_1!$C$7:$E$37)","v":0},null,0,null,null,0]
[null,null,4,"1 None Selected",null,null,null,null,null,null,0,null,0,null,{"$f":"LOOKUP(D21,DATA_1!$C$7:$E$37)","v":0},null,0,null,null,0]
[null,null,5,"1 None Selected",null,null,null,null,null,null,0,null,0,null,{"$f":"LOOKUP(D22,DATA_1!$C$7:$E$37)","v":0},null,0,null,null,0]
[null,null,6,"1 None Selected",null,null,null,null,null,null,0,null,0,null,{"$f":"LOOKUP(D23,DATA_1!$C$7:$E$37)","v":0},null,0,null,null,0]
[null,null,7,"1 None Selected",null,null,null,null,null,null,0,null,0,null,{"$f":"LOOKUP(D24,DATA_1!$C$7:$E$37)","v":0},null,0,null,null,0]
[null,null,8,"1 None Selected",null,null,null,null,null,null,0,null,0,null,{"$f":"LOOKUP(D25,DATA_1!$C$7:$E$37)","v":0},null,0,null,null,0]
[null,null,9,"1 None Selected",null,null,null,null,null,null,0,null,0,null,{"$f":"LOOKUP(D26,DATA_1!$C$7:$E$37)","v":0},null,0,null,null,0]
[null,null,10,"1 None Selected",null,null,null,null,null,null,0,null,0,null,{"$f":"LOOKUP(D27,DATA_1!$C$7:$E$37)","v":0},null,0,null,null,0]
[null,null,11,"1 None Selected",null,null,null,null,null,null,0,null,0,null,{"$f":"LOOKUP(D28,DATA_1!$C$7:$E$37)","v":0},null,0,null,null,0]
[null,null,12,"1 None Selected",null,null,null,null,null,null,0,null,0,null,{"$f":"LOOKUP(D29,DATA_1!$C$7:$E$37)","v":0},null,0,null,null,0]
[null,null,13,"1 None Selected",null,null,null,null,null,null,0,null,0,null,{"$f":"LOOKUP(D30,DATA_1!$C$7:$E$37)","v":0},null,0,null,null,0]
[null,null,14,"1 None Selected",null,null,null,null,null,null,0,null,0,null,{"$f":"LOOKUP(D31,DATA_1!$C$7:$E$37)","v":0},null,0,null,null,0]
[null,null,15,"1 None Selected",null,null,null,null,null,null,0,null,0,null,{"$f":"LOOKUP(D32,DATA_1!$C$7:$E$37)","v":0},null,0,null,null,0]
[null,null,null,null,null,null,null,null,null,null,"Total Perimeter",null,"Total Area",null,null,null,"Total",{"$f":"SUM(Q18:S32)","v":0},null,"Total",{"$f":"SUM(T18:V32)","v":0}]
[null,null,null,"Habitat/Cover Type Descriptions (click this text)",null,null,null,null,null,null,{"$f":"SUM(K18:L32)","v":0},null,{"$f":"SUM(M18:N32)","v":0},null,null,"Edge Score",null,{"$f":"(100-R33)","v":100},"Composition Score",null,{"$f":"(100-U33)","v":100}]
[null,null,null,null,null,null,null,null,null,null,{"$f":"IF(K34>100,\"Check Values\",\"\")","v":""},null,{"$f":"IF(M34>100,\"Check Values\",\"\")","v":""},null,null,"Points",null,{"$f":"(3*(R34/100))*3","v":9},"Points",null,{"$f":"(3*(U34/100))*(4/3)","v":4}]
[]
[null,null,null,null," "]
[null,null,"w/Project Condition (Edge & Landscape Composition Effects)",null,null,null,null,null,null,null,null,{"$f":"IF(AND(DATA_1!E58=TRUE,Part1_Data!D5<>3),\"No Change Anticpated in w/Project Condition\",IF(AND(DATA_1!E58=TRUE,Part1_Data!D5=3),\" \",IF(OR(Part1_Data!D5=1,Part1_Data!D5>=6),\" \",\" \")))","v":" "}]
[]
[]
[null,null,null,null,"Click here if Edge and Landscape Composition Effects will NOT change in the w/Project Condition."]
[null,null,null,null,null,null,null,null,null,null,null,null,null,null,null,null,null,"Edge Effects",null,null,"Composition Effects"]
[null,null,"Import","Item#",null,"Habitat/Cover Type",null,null,null,null,null,"% Perimeter",null,"% Area",null,"Resistance Factor",null,"(% Perimeter X Resistance Factor)",null,null,"(% Area X Resistance Factor)"]
[null,null,null,null,1,"1 None Selected",null,null,null,null,null,0,null,0,null,{"$f":"LOOKUP(F44,DATA_1!$C$7:$E$37)","v":0},null,{"$f":"L44*P44","v":0},null,null,{"$f":"N44*P44","v":0},null,null,{"$f":"IF(AND(DATA_1!E43=TRUE,OR(LLS_Worksheet!U44>0,LLS_Worksheet!R44>0)),\"Double Entry\",\" \")","v":" "}]
[null,null,{"$f":"IF(DATA_1!E43=TRUE,\"Import Current\",\" \")","v":" "},null,{"$f":"IF(DATA_1!E43=TRUE,LLS_Worksheet!E44,\" \")","v":" "},{"$f":"IF(DATA_1!E43=TRUE,LLS_Worksheet!D18,\" \")","v":" "},null,null,null,null,null,{"$f":"IF(DATA_1!E43=TRUE,K18,\" \")","v":" "},null,{"$f":"IF(DATA_1!E43=TRUE,LLS_Worksheet!M18,\" \")","v":" "},null,{"$f":"IF(DATA_1!E43=TRUE,LLS_Worksheet!O18,\" \")","v":" "},null,{"$f":"IF(DATA_1!E43=TRUE,L45*P45,\" \")","v":" "},null,null,{"$f":"IF(DATA_1!E43=TRUE,N45*P45,\" \")","v":" "}]
[null,null,null,null,2,"1 None Selected",null,null,null,null,null,0,null,0,null,{"$f":"LOOKUP(F46,DATA_1!$C$7:$E$37)","v":0},null,{"$f":"L46*P46","v":0},null,null,{"$f":"N46*P46","v":0},null,null,{"$f":"IF(AND(DATA_1!E44=TRUE,OR(LLS_Worksheet!U46>0,LLS_Worksheet!R46>0)),\"Double Entry\",\" \")","v":" "}]
[null,null,{"$f":"IF(DATA_1!E44=TRUE,\"Import Current\",\" \")","v":" "},null,{"$f":"IF(DATA_1!E44=TRUE,LLS_Worksheet!E46,\" \")","v":" "},{"$f":"IF(DATA_1!E44=TRUE,LLS_Worksheet!D19,\" \")","v":" "},null,null,null,null,null,{"$f":"IF(DATA_1!E44=TRUE,LLS_Worksheet!K19,\" \")","v":" "},null,{"$f":"IF(DATA_1!E44=TRUE,LLS_Worksheet!M19,\" \")","v":" "},null,{"$f":"IF(DATA_1!E44=TRUE,LLS_Worksheet!O19,\" \")","v":" "},null,{"$f":"IF(DATA_1!E44=TRUE,L47*P47,\" \")","v":" "},null,null,{"$f":"IF(DATA_1!E44=TRUE,N47*P47,\" \")","v":" "}]
[null,null,null,null,3,"1 None Selected",null,null,null,null,null,0,null,0,null,{"$f":"LOOKUP(F48,DATA_1!$C$7:$E$37)","v":0},null,{"$f":"L48*P48","v":0},null,null,{"$f":"N48*P48","v":0},null,null,{"$f":"IF(AND(DATA_1!E45=TRUE,OR(LLS_Worksheet!U48>0,LLS_Worksheet!R48>0)),\"Double Entry\",\" \")","v":" "}]
[null,null,{"$f":"IF(DATA_1!E45=TRUE,\"Import Current\",\" \")","v":" "},null,{"$f":"IF(DATA_1!E45=TRUE,LLS_Worksheet!E48,\" \")","v":" "},{"$f":"IF(DATA_1!E45=TRUE,LLS_Worksheet!D20,\" \")","v":" "},null,null,null,null,null,{"$f":"IF(DATA_1!E45=TRUE,LLS_Worksheet!K20,\" \")","v":" "},null,{"$f":"IF(DATA_1!E45=TRUE,LLS_Worksheet!M20,\" \")","v":" "},null,{"$f":"IF(DATA_1!E45=TRUE,LLS_Worksheet!O20,\" \")","v":" "},null,{"$f":"IF(DATA_1!E45=TRUE,L49*P49,\" \")","v":" "},null,null,{"$f":"IF(DATA_1!E45=TRUE,N49*P49,\" \")","v":" "}]
[null,null,null,null,4,"1 None Selected",null,null,null,null,null,0,null,0,null,{"$f":"LOOKUP(F50,DATA_1!$C$7:$E$37)","v":0},null,{"$f":"L50*P50","v":0},null,null,{"$f":"N50*P50","v":0},null,null,{"$f":"IF(AND(DATA_1!E46=TRUE,OR(LLS_Worksheet!U50>0,LLS_Worksheet!R50>0)),\"Double Entry\",\" \")","v":" "}]
[null,null,{"$f":"IF(DATA_1!E46=TRUE,\"Import Current\",\" \")","v":" "},null,{"$f":"IF(DATA_1!E46=TRUE,LLS_Worksheet!E50,\" \")","v":" "},{"$f":"IF(DATA_1!E46=TRUE,LLS_Worksheet!D21,\" \")","v":" "},null,null,null,null,null,{"$f":"IF(DATA_1!E46=TRUE,LLS_Worksheet!K21,\" \")","v":" "},null,{"$f":"IF(DATA_1!E46=TRUE,LLS_Worksheet!M21,\" \")","v":" "},null,{"$f":"IF(DATA_1!E46=TRUE,LLS_Worksheet!O21,\" \")","v":" "},null,{"$f":"IF(DATA_1!E46=TRUE,L51*P51,\" \")","v":" "},null,null,{"$f":"IF(DATA_1!E46=TRUE,N51*P51,\" \")","v":" "}]
[null,null,null,null,5,"1 None Selected",null,null,null,null,null,0,null,0,null,{"$f":"LOOKUP(F52,DATA_1!$C$7:$E$37)","v":0},null,{"$f":"L52*P52","v":0},null,null,{"$f":"N52*P52","v":0},null,null,{"$f":"IF(AND(DATA_1!E47=TRUE,OR(LLS_Worksheet!U52>0,LLS_Worksheet!R52>0)),\"Double Entry\",\" \")","v":" "}]
[null,null,{"$f":"IF(DATA_1!E47=TRUE,\"Import Current\",\" \")","v":" "},null,{"$f":"IF(DATA_1!E47=TRUE,LLS_Worksheet!E52,\" \")","v":" "},{"$f":"IF(DATA_1!E47=TRUE,LLS_Worksheet!D22,\" \")","v":" "},null,null,null,null,null,{"$f":"IF(DATA_1!E47=TRUE,LLS_Worksheet!K22,\" \")","v":" "},null,{"$f":"IF(DATA_1!E47=TRUE,LLS_Worksheet!M22,\" \")","v":" "},null,{"$f":"IF(DATA_1!E47=TRUE,LLS_Worksheet!O22,\" \")","v":" "},null,{"$f":"IF(DATA_1!E47=TRUE,L53*P53,\" \")","v":" "},null,null,{"$f":"IF(DATA_1!E47=TRUE,N53*P53,\" \")","v":" "}]
[null,null,null,null,6,"1 None Selected",null,null,null,null,null,0,null,0,null,{"$f":"LOOKUP(F54,DATA_1!$C$7:$E$37)","v":0},null,{"$f":"L54*P54","v":0},null,null,{"$f":"N54*P54","v":0},null,null,{"$f":"IF(AND(DATA_1!E48=TRUE,OR(LLS_Worksheet!U54>0,LLS_Worksheet!R54>0)),\"Double Entry\",\" \")","v":" "}]
[null,null,{"$f":"IF(DATA_1!E48=TRUE,\"Import Current\",\" \")","v":" "},null,{"$f":"IF(DATA_1!E52=TRUE,LLS_Worksheet!E54,\" \")","v":" "},{"$f":"IF(DATA_1!E48=TRUE,LLS_Worksheet!D23,\" \")","v":" "},null,null,null,null,null,{"$f":"IF(DATA_1!E48=TRUE,LLS_Worksheet!K23,\" \")","v":" "},null,{"$f":"IF(DATA_1!E48=TRUE,LLS_Worksheet!M23,\" \")","v":" "},null,{"$f":"IF(DATA_1!E48=TRUE,LLS_Worksheet!O23,\" \")","v":" "},null,{"$f":"IF(DATA_1!E48=TRUE,L55*P55,\" \")","v":" "},null,null,{"$f":"IF(DATA_1!E48=TRUE,N55*P55,\" \")","v":" "}]
[null,null,null,null,7,"1 None Selected",null,null,null,null,null,0,null,0,null,{"$f":"LOOKUP(F56,DATA_1!$C$7:$E$37)","v":0},null,{"$f":"L56*P56","v":0},null,null,{"$f":"N56*P56","v":0},null,null,{"$f":"IF(AND(DATA_1!E49=TRUE,OR(LLS_Worksheet!U56>0,LLS_Worksheet!R56>0)),\"Double Entry\",\" \")","v":" "}]
[null,null,{"$f":"IF(DATA_1!E49=TRUE,\"Import Current\",\" \")","v":" "},null,{"$f":"IF(DATA_1!E49=TRUE,LLS_Worksheet!E56,\" \")","v":" "},{"$f":"IF(DATA_1!E49=TRUE,LLS_Worksheet!D24,\" \")","v":" "},null,null,null,null,null,{"$f":"IF(DATA_1!E49=TRUE,LLS_Worksheet!K24,\" \")","v":" "},null,{"$f":"IF(DATA_1!E49=TRUE,LLS_Worksheet!M24,\" \")","v":" "},null,{"$f":"IF(DATA_1!E49=TRUE,LLS_Worksheet!O24,\" \")","v":" "},null,{"$f":"IF(DATA_1!E49=TRUE,L57*P57,\" \")","v":" "},null,null,{"$f":"IF(DATA_1!E49=TRUE,N57*P57,\" \")","v":" "}]
[null,null,null,null,8,"1 None Selected",null,null,null,null,null,0,null,0,null,{"$f":"LOOKUP(F58,DATA_1!$C$7:$E$37)","v":0},null,{"$f":"L58*P58","v":0},null,null,{"$f":"N58*P58","v":0},null,null,{"$f":"IF(AND(DATA_1!E50=TRUE,OR(LLS_Worksheet!U58>0,LLS_Worksheet!R58>0)),\"Double Entry\",\" \")","v":" "}]
[null,null,{"$f":"IF(DATA_1!E50=TRUE,\"Import Current\",\" \")","v":" "},null,{"$f":"IF(DATA_1!E50=TRUE,LLS_Worksheet!E58,\" \")","v":" "},{"$f":"IF(DATA_1!E50=TRUE,LLS_Worksheet!D25,\" \")","v":" "},null,null,null,null,null,{"$f":"IF(DATA_1!E50=TRUE,LLS_Worksheet!K25,\" \")","v":" "},null,{"$f":"IF(DATA_1!E50=TRUE,LLS_Worksheet!M25,\" \")","v":" "},null,{"$f":"IF(DATA_1!E50=TRUE,LLS_Worksheet!O25,\" \")","v":" "},null,{"$f":"IF(DATA_1!E50=TRUE,L59*P59,\" \")","v":" "},null,null,{"$f":"IF(DATA_1!E50=TRUE,N59*P59,\" \")","v":" "}]
[null,null,null,null,9,"1 None Selected",null,null,null,null,null,0,null,0,null,{"$f":"LOOKUP(F60,DATA_1!$C$7:$E$37)","v":0},null,{"$f":"L60*P60","v":0},null,null,{"$f":"N60*P60","v":0},null,null,{"$f":"IF(AND(DATA_1!E51=TRUE,OR(LLS_Worksheet!U60>0,LLS_Worksheet!R60>0)),\"Double Entry\",\" \")","v":" "}]
[null,null,{"$f":"IF(DATA_1!E51=TRUE,\"Import Current\",\" \")","v":" "},null,{"$f":"IF(DATA_1!E51=TRUE,LLS_Worksheet!E60,\" \")","v":" "},{"$f":"IF(DATA_1!E51=TRUE,LLS_Worksheet!D26,\" \")","v":" "},null,null,null,null,null,{"$f":"IF(DATA_1!E51=TRUE,LLS_Worksheet!K26,\" \")","v":" "},null,{"$f":"IF(DATA_1!E51=TRUE,LLS_Worksheet!M26,\" \")","v":" "},null,{"$f":"IF(DATA_1!E51=TRUE,LLS_Worksheet!O26,\" \")","v":" "},null,{"$f":"IF(DATA_1!E51=TRUE,L61*P61,\" \")","v":" "},null,null,{"$f":"IF(DATA_1!E51=TRUE,N61*P61,\" \")","v":" "}]
[null,null,null,null,10,"1 None Selected",null,null,null,null,null,0,null,0,null,{"$f":"LOOKUP(F62,DATA_1!$C$7:$E$37)","v":0},null,{"$f":"L62*P62","v":0},null,null,{"$f":"N62*P62","v":0},null,null,{"$f":"IF(AND(DATA_1!E52=TRUE,OR(LLS_Worksheet!U62>0,LLS_Worksheet!R62>0)),\"Double Entry\",\" \")","v":" "}]
[null,null,{"$f":"IF(DATA_1!E52=TRUE,\"Import Current\",\" \")","v":" "},null,{"$f":"IF(DATA_1!E52=TRUE,LLS_Worksheet!E62,\" \")","v":" "},{"$f":"IF(DATA_1!E52=TRUE,LLS_Worksheet!D27,\" \")","v":" "},null,null,null,null,null,{"$f":"IF(DATA_1!E52=TRUE,LLS_Worksheet!K27,\" \")","v":" "},null,{"$f":"IF(DATA_1!E52=TRUE,LLS_Worksheet!M27,\" \")","v":" "},null,{"$f":"IF(DATA_1!E52=TRUE,LLS_Worksheet!O27,\" \")","v":" "},null,{"$f":"IF(DATA_1!E52=TRUE,L63*P63,\" \")","v":" "},null,null,{"$f":"IF(DATA_1!E52=TRUE,N63*P63,\" \")","v":" "}]
[null,null,null,null,11,"1 None Selected",null,null,null,null,null,0,null,0,null,{"$f":"LOOKUP(F64,DATA_1!$C$7:$E$37)","v":0},null,{"$f":"L64*P64","v":0},null,null,{"$f":"N64*P64","v":0},null,null,{"$f":"IF(AND(DATA_1!E53=TRUE,OR(LLS_Worksheet!U64>0,LLS_Worksheet!R64>0)),\"Double Entry\",\" \")","v":" "}]
[null,null,{"$f":"IF(DATA_1!E53=TRUE,\"Import Current\",\" \")","v":" "},null,{"$f":"IF(DATA_1!E53=TRUE,LLS_Worksheet!E64,\" \")","v":" "},{"$f":"IF(DATA_1!E53=TRUE,LLS_Worksheet!D28,\" \")","v":" "},null,null,null,null,null,{"$f":"IF(DATA_1!E53=TRUE,LLS_Worksheet!K28,\" \")","v":" "},null,{"$f":"IF(DATA_1!E53=TRUE,LLS_Worksheet!M28,\" \")","v":" "},null,{"$f":"IF(DATA_1!E53=TRUE,LLS_Worksheet!O28,\" \")","v":" "},null,{"$f":"IF(DATA_1!E53=TRUE,L65*P65,\" \")","v":" "},null,null,{"$f":"IF(DATA_1!E53=TRUE,N65*P65,\" \")","v":" "}]
[null,null,null,null,12,"1 None Selected",null,null,null,null,null,0,null,0,null,{"$f":"LOOKUP(F66,DATA_1!$C$7:$E$37)","v":0},null,{"$f":"L66*P66","v":0},null,null,{"$f":"N66*P66","v":0},null,null,{"$f":"IF(AND(DATA_1!E54=TRUE,OR(LLS_Worksheet!U66>0,LLS_Worksheet!R66>0)),\"Double Entry\",\" \")","v":" "}]
[null,null,{"$f":"IF(DATA_1!E54=TRUE,\"Import Current\",\" \")","v":" "},null,{"$f":"IF(DATA_1!E54=TRUE,LLS_Worksheet!E66,\" \")","v":" "},{"$f":"IF(DATA_1!E54=TRUE,LLS_Worksheet!D29,\" \")","v":" "},null,null,null,null,null,{"$f":"IF(DATA_1!E54=TRUE,LLS_Worksheet!K29,\" \")","v":" "},null,{"$f":"IF(DATA_1!E54=TRUE,LLS_Worksheet!M29,\" \")","v":" "},null,{"$f":"IF(DATA_1!E54=TRUE,LLS_Worksheet!O29,\" \")","v":" "},null,{"$f":"IF(DATA_1!E54=TRUE,L67*P67,\" \")","v":" "},null,null,{"$f":"IF(DATA_1!E54=TRUE,N67*P67,\" \")","v":" "}]
[null,null,null,null,13,"1 None Selected",null,null,null,null,null,0,null,0,null,{"$f":"LOOKUP(F68,DATA_1!$C$7:$E$37)","v":0},null,{"$f":"L68*P68","v":0},null,null,{"$f":"N68*P68","v":0},null,null,{"$f":"IF(AND(DATA_1!E55=TRUE,OR(LLS_Worksheet!U68>0,LLS_Worksheet!R68>0)),\"Double Entry\",\" \")","v":" "}]
[null,null,{"$f":"IF(DATA_1!E55=TRUE,\"Import Current\",\" \")","v":" "},null,{"$f":"IF(DATA_1!E55=TRUE,LLS_Worksheet!E68,\" \")","v":" "},{"$f":"IF(DATA_1!E55=TRUE,LLS_Worksheet!D30,\" \")","v":" "},null,null,null,null,null,{"$f":"IF(DATA_1!E55=TRUE,LLS_Worksheet!K30,\" \")","v":" "},null,{"$f":"IF(DATA_1!E55=TRUE,LLS_Worksheet!M30,\" \")","v":" "},null,{"$f":"IF(DATA_1!E55=TRUE,LLS_Worksheet!O30,\" \")","v":" "},null,{"$f":"IF(DATA_1!E55=TRUE,L69*P69,\" \")","v":" "},null,null,{"$f":"IF(DATA_1!E55=TRUE,N69*P69,\" \")","v":" "}]
[null,null,null,null,14,"1 None Selected",null,null,null,null,null,0,null,0,null,{"$f":"LOOKUP(F70,DATA_1!$C$7:$E$37)","v":0},null,{"$f":"L70*P70","v":0},null,null,{"$f":"N70*P70","v":0},null,null,{"$f":"IF(AND(DATA_1!E56=TRUE,OR(LLS_Worksheet!U70>0,LLS_Worksheet!R70>0)),\"Double Entry\",\" \")","v":" "}]
[null,null,{"$f":"IF(DATA_1!E56=TRUE,\"Import Current\",\" \")","v":" "},null,{"$f":"IF(DATA_1!E56=TRUE,LLS_Worksheet!E70,\" \")","v":" "},{"$f":"IF(DATA_1!E56=TRUE,LLS_Worksheet!D31,\" \")","v":" "},null,null,null,null,null,{"$f":"IF(DATA_1!E56=TRUE,LLS_Worksheet!K31,\" \")","v":" "},null,{"$f":"IF(DATA_1!E56=TRUE,LLS_Worksheet!M31,\" \")","v":" "},null,{"$f":"IF(DATA_1!E56=TRUE,LLS_Worksheet!O31,\" \")","v":" "},null,{"$f":"IF(DATA_1!E56=TRUE,L71*P71,\" \")","v":" "},null,null,{"$f":"IF(DATA_1!E56=TRUE,N71*P71,\" \")","v":" "}]
[null,null,null,null,15,"1 None Selected",null,null,null,null,null,0,null,0,null,{"$f":"LOOKUP(F72,DATA_1!$C$7:$E$37)","v":0},null,{"$f":"L72*P72","v":0},null,null,{"$f":"N72*P72","v":0},null,null,{"$f":"IF(AND(DATA_1!E57=TRUE,OR(LLS_Worksheet!U72>0,LLS_Worksheet!R72>0)),\"Double Entry\",\" \")","v":" "}]
[null,null,{"$f":"IF(DATA_1!E57=TRUE,\"Import Current\",\" \")","v":" "},null,{"$f":"IF(DATA_1!E57=TRUE,LLS_Worksheet!E72,\" \")","v":" "},{"$f":"IF(DATA_1!E57=TRUE,LLS_Worksheet!D32,\" \")","v":" "},null,null,null,null,null,{"$f":"IF(DATA_1!E57=TRUE,LLS_Worksheet!K32,\" \")","v":" "},null,{"$f":"IF(DATA_1!E57=TRUE,LLS_Worksheet!M32,\" \")","v":" "},null,{"$f":"IF(DATA_1!E57=TRUE,LLS_Worksheet!O32,\" \")","v":" "},null,{"$f":"IF(DATA_1!E57=TRUE,L73*P73,\" \")","v":" "},null,null,{"$f":"IF(DATA_1!E57=TRUE,N73*P73,\" \")","v":" "}]
[null,null,null,null,null,null,null,null,null,null,null,"Total Perimeter",null,"Total Area",null,null,null,"Total",{"$f":"SUM(R44:T73)","v":0},null,"Total",{"$f":"SUM(U44:W73)","v":0}]
[null,null,null,null,null,"Habitat/Cover Type Descriptions (click this text)",null,null,null,null,null,{"$f":"SUM(L44:M72)","v":0},null,{"$f":"SUM(N44:O72)","v":0},null,null,"Edge Score",null,{"$f":"IF(AND(DATA_1!E58=TRUE,Part1_Data!D5<>3),LLS_Worksheet!R34,IF(Part1_Data!D5=1,0,(100-S74)))","v":100},"Composition Score",null,{"$f":"IF(AND(DATA_1!E58=TRUE,Part1_Data!D5<>3),LLS_Worksheet!U34,IF(Part1_Data!D5=1,0,(100-V74)))","v":100}]
[null,null,null,null,null,null,null,null,null,null,null,null,null,null,null,null,"Edge X 3",null,{"$f":"(3*(S75/100))*3","v":9},"Composition X 2 ",null,{"$f":"(3*(V75/100))*(4/3)","v":4}]
[null,null,null,null,null,null,null,null,null,null,null,{"$f":"IF(L75>100,\"Check Values\",\"\")","v":""},null,{"$f":"IF(N75>100,\"Check Values\",\"\")","v":""}]

{"sheet":"Streams","index":5,"n_rows":378,"n_cols":28,"rows_kept":378,"cut":false,"hidden":false,"merged":[[193,14,194,27],[366,14,367,27],[363,14,364,27],[360,14,361,27],[357,14,358,27],[216,14,217,27],[213,14,214,27],[211,14,212,27],[209,14,210,27],[230,14,231,27],[227,14,228,27],[225,14,226,27],[223,14,224,27],[244,14,245,27],[241,14,242,27],[239,14,240,27],[237,14,238,27],[333,14,334,27],[330,14,331,27],[327,14,328,27],[324,14,325,27],[350,14,351,27],[347,14,348,27],[344,14,345,27],[45,14,46,27],[41,14,43,27],[37,14,39,27],[67,14,68,27],[64,14,65,27],[60,14,62,27],[56,14,58,27],[86,14,88,27],[82,14,84,27],[78,14,80,27],[76,14,77,27],[71,20,71,24],[74,6,74,27],[133,6,136,27],[140,7,143,7],[140,10,143,10],[169,7,170,7],[169,10,170,10],[155,14,159,27],[149,14,153,27],[143,14,147,27],[48,14,50,27],[169,14,170,27],[167,14,168,27],[162,6,165,27],[234,2,246,2],[234,6,235,27],[220,2,232,2],[220,6,221,27],[206,2,218,2],[206,6,207,27],[176,2,189,2],[176,6,177,27],[181,7,182,7],[181,10,182,10],[191,2,204,2],[191,6,191,27],[195,7,196,7],[195,10,196,10],[173,14,173,27],[171,14,172,27],[188,14,188,27],[185,14,187,27],[182,14,183,27],[179,14,180,27],[202,14,203,27],[199,14,200,27],[196,14,197,27],[379,2,386,27],[24,6,24,28],[27,21,27,24],[28,21,28,24],[27,26,27,27],[28,26,28,27],[370,2,375,2],[370,4,370,5],[371,4,371,5],[372,4,372,5],[374,4,374,5],[377,2,378,27],[354,2,368,2],[354,6,355,27],[337,2,352,2],[337,6,338,27],[124,2,129,2],[124,4,124,5],[125,4,125,5],[126,4,126,5],[321,2,335,2],[321,6,322,27],[342,7,343,7],[342,10,343,10],[305,2,319,2],[305,6,306,27],[310,7,311,7],[310,10,311,10],[317,14,318,27],[314,14,315,27],[311,14,312,27],[308,14,309,27],[340,14,342,27],[269,14,270,27],[266,14,267,27],[263,14,264,27],[260,14,261,27],[249,25,249,28],[289,2,303,2],[289,6,290,27],[273,2,287,2],[273,6,274,27],[278,10,280,10],[278,7,279,7],[285,14,286,27],[282,14,283,27],[279,14,280,27],[276,14,277,27],[301,14,302,27],[298,14,299,27],[295,14,296,27],[292,14,293,27],[257,6,258,27],[262,7,263,7],[262,10,263,10],[248,2,253,2],[248,4,248,5],[249,4,249,5],[250,4,250,5],[252,4,252,5],[256,2,256,16],[13,14,13,19],[14,14,14,19],[14,22,14,23],[23,2,23,16],[24,2,32,2],[31,21,31,24],[26,4,27,13],[28,4,29,13],[18,1,18,5],[18,6,21,28],[7,18,7,19],[7,25,7,26],[8,4,8,5],[8,6,8,17],[8,26,8,29],[9,4,10,5],[9,6,10,17],[10,18,10,19],[10,21,10,23],[5,4,5,5],[5,6,5,17],[5,19,5,21],[5,23,5,25],[6,6,6,17],[6,18,6,19],[1,4,2,18],[1,21,1,23],[1,24,1,28],[2,21,2,23],[2,24,2,28],[3,4,3,18],[371,25,371,28],[53,6,54,27],[74,2,89,2],[53,2,72,2],[58,7,60,7],[58,10,60,10],[70,20,70,24],[359,10,360,10],[359,7,360,7],[326,10,327,10],[326,7,327,7],[294,7,295,7],[294,10,295,10],[239,7,240,7],[239,10,240,10],[225,7,226,7],[225,10,226,10],[138,14,141,27],[106,2,122,2],[106,6,107,27],[91,2,104,2],[91,6,92,27],[96,10,97,10],[257,2,271,2],[34,2,51,2],[39,7,41,7],[39,10,41,10],[34,6,35,27],[43,9,43,11],[43,6,43,8],[211,7,212,7],[211,10,212,10],[132,2,132,16],[162,2,174,2],[133,2,160,2],[125,25,125,28],[96,7,97,7],[111,10,112,10],[111,7,112,7],[102,14,103,27],[100,14,101,27],[97,14,98,27],[94,14,95,27],[120,14,121,27],[117,14,118,27],[114,14,115,27],[109,14,112,27],[128,4,128,5]]}
[]
[null,null,null,null,"Ecological Assessment",null,null,null,null,null,null,null,null,null,null,null,null,null,null,null,null,"Project:",null,null,{"$f":"Part_I!D8","v":"(Project Name)"}]
[null,null,null,null,null,null,null,null,null,null,null,null,null,null,null,null,null,null,null,null,null,"Assessment Area:",null,null,{"$f":"Part_I!P8","v":"(Assement Area)"}]
[null,null,null,null,"Streams and Lotic Systems (Section 62-345.500 F.A.C.)"]
[]
[null,null,null,null,"Reference:",null,{"$f":"Part_I!L44","v":"(Type Here)"},null,null,null,null,null,null,null,null,null,null,null,null,"Current Condition",null,null,null,"With Project"]
[null,null,null,null,null,null,{"$f":"Part1_Data!J20","v":"Wetland or Other Surface Water"},null,null,null,null,null,null,null,null,null,null,null,"L&LS Score:",null,{"$f":"DATA_1!V71","v":10},null,null,"L&LS Score:",{"$f":"DATA_1!W71","v":10}]
[null,null,null,null,null,null,null,null,null,null,null,null,null,null,null,null,null,null,"WE Score:",null,{"$f":"DATA_1!V72","v":10},null,null,"WE Score:",{"$f":"DATA_1!W72","v":10},{"$f":"IF(Part1_Data!D5>=6, \"Current Value:\",\"Delta:\")","v":"Delta:"},null,{"$f":"IF(AND(Part1_Data!D5>=6,Part1_Data!I20=1),Streams!U11,IF(AND(Part1_Data!D5>=6,Part1_Data!I20=2),U15,IF(Part1_Data!I20=1,Streams!Y11-Streams!U11,IF(Part1_Data!I20=2,Streams!Y15-Streams!U15,\"?\"))))","v":0}]
[null,null,null,null,"Application#",null,{"$f":"Part_I!J8","v":"(Application Number)"},null,null,null,null,null,null,null,null,null,null,null,null,"CS Score:",{"$f":"DATA_1!V73","v":10},null,null,"CS Score:",{"$f":"DATA_1!W73","v":10},null,{"$f":"IF(Part1_Data!D5=6,\"        Current Value\",\"With Project - Current\")","v":"With Project - Current"}]
[null,null,null,null,"Activity:",null,{"$f":"Part1_Data!E5","v":"Mitigation Assessment (Enhancement)"}]
[null,null,null,null,null,null,null,null,null,null,null,null,null,null,null,null,null,null,{"$f":"IF(DATA_1!Q70=1,\"(LLS+WE+CS)/30)\",IF(DATA_1!Q70=2,\"(LLS+CS)/20)\",\"?\"))","v":"(LLS+WE+CS)/30)"},null,{"$f":"DATA_1!V74","v":1},{"$f":"IF(AND(DATA_1!Q70=1,DATA_1!M70<>6),\"(LLS+WE+CS)/30)\",IF(AND(DATA_1!Q70=2,DATA_1!M70<>6),\"(LLS+CS)/20)\",IF(DATA_1!M70=6,\"Preservation\",\"?\")))","v":"(LLS+WE+CS)/30)"},null,null,{"$f":"DATA_1!W74","v":1}]
[]
[]
[null,null,null,null,null,null,null,null,null,null,null,null,null,null,"Wetland Support Value for Uplands (Part 1):",null,null,null,null,null,{"$f":"Part_I!#REF!","v":{"$error":"#REF!"}},null,null,null,{"$f":"Part_I!#REF!","v":{"$error":"#REF!"}}]
[null,null,null,null,null,null,null,null,null,null,null,null,null,null,"Modified Upland Score (Score x Value Above):",null,null,null,null,null,{"$f":"U11*U14","v":{"$error":"#REF!"}},null,null,null,{"$f":"IF(Part1_Data!D5>=6,\"NA\",Y11*Y14)","v":{"$error":"#REF!"}}]
[]
[]
[]
[null,"INSTRUCTIONS:",null,null,null,null,"For categorical Questions 3 - 15, indicate which provided description best corresponds to the assessment area by placing an A, B, C, or D  in the box labeled \"Selection\" for both the Current and or anticipated W/Project condition as appropriate.  If the provided descriptions do not precisely correspond to project-specific circumstances, the combinations \"AB, BC, or CD\" can be entered into the \"Selection\" box to indicate circumstances intermediate to those described."]
[]
[]
[]
[]
[null,null,"Stream Type"]
[null,null,"Stream Type",null,1,null,"Please indicate the stream type being evaluated using the  dropdown boxes OR the linked Stream Typology worksheet below."]
[]
[null,null,null,null,"Selected Stream Type"]
[null,null,null,null,null,null,null,null,null,null,null,null,null,null,null,null,null,null,null,null,null,"Physiographic Region",null,null,null,null,"Stream Type"]
[null,null,null,null,{"$f":"IF(DATA_1!P142=1,Streams!AA29,IF(DATA_1!P142=2,DATA_1!P124,\"?\"))","v":"FW-HW"},null,null,null,null,null,null,null,null,null,null,null,null,null,null,null,null,"NWFCP",null,null,null,null,"FW-HW"]
[]
[]
[null,null,null,null,null,null,null,null,null,null,null,null,null,null,null,null,null,null,null,null,null,"Typology Worksheet"]
[]
[]
[null,null,"Location & Landscape Support",null,2,null,"Please select the description that best corresponds to the degree of alteration present in the Drainage Basin.  Please consider only the contributing portion of the basin located upstream.  Note: This question carries twice the influence of typical questions."]
[]
[]
[null,null,null,null,null,null,null,{"$f":"Part1_Data!$V$14","v":"Current"},null,null,{"$f":"Part1_Data!$V$15","v":"w/ Mitigation"},null,null,"A","Flow regime is as naturally occurs, less than 5% of the watershed has impervious surfaces.  There is high connectivity with ground water and natural surface waters features delivering water."]
[null,null,null,null,null,null,null,"A",null,null,"A"]
[null,null,null,null,null,null,null,"(Selection)",null,null,"(Selection)"]
[]
[null,null,null,null,null,null,null,null,null,null,null,null,null,"B","Flow regime is minimally changed; less than 20% of the watershed is affected by water diversions, wetland drainage, and ditches.  Between 5 and 15% of the watershed has impervious surface."]
[null,null,null,null,null,null,null,{"$f":"2*(LOOKUP(H39,DATA_1!$G$63:$H$72))","v":6},null,null,{"$f":"2*(LOOKUP(K39,DATA_1!$G$63:$H$72))","v":6}]
[]
[]
[null,null,null,null,null,null,null,null,null,null,null,null,null,"C","Flow regime is highly altered.  Between 40% and 90% of the watershed is affected by water diversions, wetland drainage, and ditches.  Between 16% and 20% of the watershed has impervious surface."]
[]
[]
[null,null,null,null,null,null,null,null,null,null,null,null,null,"D","Flow regime is entirely human controlled.  More than 90% of the watershed is affected by water diversions, wetland drainage, and ditches.  More than 20% of the watershed has impervious surface"]
[]
[]
[]
[]
[null,null,"Location & Landscape Support",3,3,null,"Relative to other native natural community types in the landscape, what level of rarity or scarcity is associated with this assessment area's reference community?"]
[]
[]
[null,null,null,null,null,null,null,{"$f":"Part1_Data!$V$14","v":"Current"},null,null,{"$f":"Part1_Data!$V$15","v":"w/ Mitigation"},null,null,"A","The assessment area's reference community type is listed as either Imperiled or Critically imperiled in the State because of rarity or vulnerability (FNAI Listing of S1 or S2), OR available evidence indicates it is similarly rare or vulnerable within the region."]
[null,null,null,null,null,null,null,"A",null,null,"A"]
[null,null,null,null,null,null,null,"(Selection)",null,null,"(Selection)"]
[]
[null,null,null,null,null,null,null,null,null,null,null,null,null,"B","The assessment area's reference community type is listed as either Very Rare and Local or Found Locally in a Restricted Range or Vulnerable to Extinction from Other Factors. (FNAI Listing of S3), OR available evidence indicates it is similarly rare or vulnerable within the region."]
[null,null,null,null,null,null,null,{"$f":"LOOKUP(H58,DATA_1!$G$63:$H$72)","v":3},null,null,{"$f":"LOOKUP(K58,DATA_1!$G$63:$H$72)","v":3}]
[]
[]
[null,null,null,null,null,null,null,null,null,null,null,null,null,"C","The assessment area's reference community type is listed as Apparently Secure in Florida (FNAI Listing of S4), OR available evidence indicates it is apparently secure within the region."]
[]
[]
[null,null,null,null,null,null,null,null,null,null,null,null,null,"D","The assessment area's reference community type is listed as Demonstrably Secure in Florida (FNAI Listing of S5), OR available evidence indicates it is demonstrably secure within the region."]
[]
[]
[null,null,null,null,null,null,null,null,null,null,null,null,null,null,null,null,null,null,null,null,"State Listing Look-up Tool",null,null,null,null,null,"State Rank"]
[null,null,null,null,null,null,null,null,null,null,null,null,null,null,null,null,null,null,null,null,"Spring-run stream",null,null,null,null,null,{"$f":"LOOKUP(U72,DATA_1!K41:L121)","v":"S2"}]
[]
[]
[null,null,"Location & Landscape Support",4,4,null,"What level of wildlife utilization by wetland dependent listed species is associated with the assessment area and surrounding landscape?"]
[]
[null,null,null,null,null,null,null,{"$f":"Part1_Data!$V$14","v":"Current"},null,null,{"$f":"Part1_Data!$V$15","v":"w/ Mitigation"},null,null,"A","There is evidence of utilization by wetland dependent listed species within the assessment area."]
[null,null,null,null,null,null,null,"A",null,null,"A"]
[null,null,null,null,null,null,null,"(Selection)",null,null,"(Selection)",null,null,"B","There is not evidence of utilization by wetland dependent listed species within the assessment area; however, there is evidence that wetland dependent species are found in the surrounding landscape and within recruitment, spawning, breeding, or foraging range of the assessment area."]
[]
[null,null,null,null,null,null,null,{"$f":"LOOKUP(H78,DATA_1!$G$63:$H$72)","v":3},null,null,{"$f":"LOOKUP(K78,DATA_1!$G$63:$H$72)","v":3}]
[]
[null,null,null,null,null,null,null,null,null,null,null,null,null,"C","There is not evidence of utilization by wetland dependent listed species within the assessment area or within recruitment, spawning, breeding, or foraging range of the assessment area; however, the habitat type and condition is suitable for colonization or use by wetland dependent listed species."]
[]
[]
[]
[null,null,null,null,null,null,null,null,null,null,null,null,null,"D","There is not evidence of utilization by wetland dependent listed species within the assessment area or within recruitment, spawning, breeding, or foraging range of the assessment area, AND site conditions are not suitable for colonization or use by listed species."]
[]
[]
[]
[]
[null,null,"Location & Landscape Support",null,5,null,"Please select the description that best corresponds to the stream's degree of  Riparian Corridor Quality. "]
[]
[]
[null,null,null,null,null,null,null,{"$f":"Part1_Data!$V$14","v":"Current"},null,null,{"$f":"Part1_Data!$V$15","v":"w/ Mitigation"},null,null,"A","Meander belt community is more than 80% native vegetative cover and extends at least 120 feet beyond the meander belt."]
[null,null,null,null,null,null,null,"A",null,null,"A"]
[null,null,null,null,null,null,null,"(Selection)",null,null,"(Selection)"]
[null,null,null,null,null,null,null,null,null,null,null,null,null,"B","Meander belt community is more than 80% native vegetative cover and extends at least 60 feet beyond the meander belt."]
[]
[]
[null,null,null,null,null,null,null,{"$f":"LOOKUP(H96,DATA_1!$G$63:$H$72)","v":3},null,null,{"$f":"LOOKUP(K96,DATA_1!$G$63:$H$72)","v":3},null,null,"C","Meander belt community is between 50% and 100% native vegetative cover."]
[]
[null,null,null,null,null,null,null,null,null,null,null,null,null,"D","Meander belt community is less than 50% native vegetative cover."]
[]
[]
[]
[null,null,"Location & Landscape Support",null,6,null,"Please select the description that best corresponds to the stream's Riparian Corridor Continuity."]
[]
[]
[null,null,null,null,null,null,null,{"$f":"Part1_Data!$V$14","v":"Current"},null,null,{"$f":"Part1_Data!$V$15","v":"w/ Mitigation"},null,null,"A","The  corridor connects to areas of national, state, or regional ecological significance, such as national or state parks, Outstanding Florida Waters, and other regionally significant ecological resources or habitats, such as lands acquired or to be acquired through governmental or non-profit land acquisition programs for environmental conservation and has natural upstream and downstream habitats."]
[null,null,null,null,null,null,null,"A",null,null,"A"]
[null,null,null,null,null,null,null,"(Selection)",null,null,"(Selection)"]
[]
[]
[null,null,null,null,null,null,null,{"$f":"LOOKUP(H111,DATA_1!$G$63:$H$72)","v":3},null,null,{"$f":"LOOKUP(K111,DATA_1!$G$63:$H$72)","v":3},null,null,"B","The corridor connects to natural downstream and upstream channel junctions (e.g. with in-line wetlands, lakes, or other stream corridors with at least 80% natural cover)."]
[]
[]
[null,null,null,null,null,null,null,null,null,null,null,null,null,"C","The corridor connects to moderately altered downstream and upstream channel junctions (e.g. with in-line wetlands, lakes, or other stream corridors with at least 60% natural cover)."]
[]
[]
[null,null,null,null,null,null,null,null,null,null,null,null,null,"D","The corridor connects to significantly altered downstream and upstream channel junctions (e.g. with in-line wetlands, lakes, or other stream corridors with < 60% natural cover)."]
[]
[]
[]
[null,null,"Summary (L&LS)",null,"L&LS",null,null,"Current",null,null,"W/Project"]
[null,null,null,null,"Total Points",null,null,{"$f":"SUM(H115,H101,H81,H62,H43)","v":18},null,null,{"$f":"SUM(K115,K101,K81,K62,K43)","v":18},null,null,null,null,null,null,null,null,null,null,null,null,null,null,"DRAFT DOCUMENT"]
[null,null,null,null,"Max Possible",null,null,18,null,null,18]
[]
[null,null,null,null,"Score",null,null,{"$f":"(H126/H127)*10","v":10},null,null,{"$f":"(K126/K127)*10","v":10}]
[]
[]
[]
[null,null,"Water Environment (WE)"]
[null,null,"Water Environment (WE)",null,7,null,"Please select the description that best corresponds to the stream's degree of  Hydraulic Alteration.  Hydraulic alteration includes changes to the flow exchange between the bankfull channel and floodplain caused by flow diversions (either discharges to or withdrawals away from the assessment area, via surface water or groundwater), structures (e.g. levees, ditches), or channel incision.   Note: This question carries twice the influence of typical questions."]
[]
[]
[]
[]
[null,null,null,null,null,null,null,{"$f":"Part1_Data!$V$14","v":"Current"},null,null,{"$f":"Part1_Data!$V$15","v":"w/ Mitigation"},null,null,"A","(No adverse effect)  Flood frequency, depth, and duration are appropriate for stream type. Diversions or structures are not limiting the stream's access to the floodplain. Channel is not artificially incised. No signs of hydrologic stress in the vegetation or soils on any of the alluvial surfaces. If applicable, the waterbody is compliant with its adopted MFL."]
[null,null,null,null,null,null,null,"A",null,null,"A"]
[null,null,null,null,null,null,null,"(Selection)",null,null,"(Selection)"]
[]
[]
[null,null,null,null,null,null,null,null,null,null,null,null,null,"B","(Reduced hydraulic function without community re-structuring)  Evidence of hydraulic alteration by diversions, structures, or incision at thresholds likely to alter flood frequency, depth or duration from those natural for stream type. Signs of hydrologic stress may occur but are subtle or patchy. Vegetation and soils remain consistent with those appropriate for stream type. If applicable, the waterbody is in remedial or recovery status with its adopted MFL."]
[null,null,null,null,null,null,null,{"$f":"IF(H140=\"NA\", \"NA\",2*(LOOKUP(H140,DATA_1!G63:H70)))","v":6},null,null,{"$f":"IF(K140=\"NA\", \"NA\",2*(LOOKUP(K140,DATA_1!$G$63:$H$70)))","v":6}]
[null,null,null,null,null,null,null,{"$f":"IF(H145=\"NA\",0,6)","v":6},null,null,{"$f":"IF(K145=\"NA\",0,6)","v":6}]
[]
[]
[]
[null,null,null,null,null,null,null,null,null,null,null,null,null,"C","(Reduced hydraulic function with minimal adverse community re-structuring)  Flood frequency, depth or duration is moderately altered by withdrawals, structures, or incision to the point of where signs of hydrologic stress are frequent on at least one of the alluvial surfaces. Vegetation or soils may be trending towards deviation from the stream type.  If applicable, the waterbody is in remedial or recovery status with its adopted MFL."]
[]
[]
[]
[]
[]
[null,null,null,null,null,null,null,null,null,null,null,null,null,"D","(Adverse community re-structuring)  Flood frequency, depth or duration is severely altered by withdrawals, structures, or incision to the point of where signs of hydrologic stress are obvious and common on more than one of the alluvial surface. Vegetation or soils are altered from those appropriate for the stream type, or are clearly trending toward such alteration. If applicable, the waterbody is in remedial or recovery status with its adopted MFL."]
[]
[]
[]
[]
[]
[]
[null,null,"Water Environment",null,8,null,"Please select the description that best corresponds to the stream's degree of  Channel Instability.  Channel instabilities include active bank failures on either bank, stream bed down cutting (knick points or degradation), stream bed filling (aggradation), channel widening on either bank, and artificial hardening on either bank or the stream bed.   Note: This question carries twice the influence of typical questions."]
[]
[]
[]
[]
[null,null,null,null,null,null,null,{"$f":"Part1_Data!$V$14","v":"Current"},null,null,{"$f":"Part1_Data!$V$15","v":"w/ Mitigation"},null,null,"A","Less than 10% of the channel length is unstable."]
[null,null,null,null,null,null,null,"A",null,null,"A"]
[null,null,null,null,null,null,null,"(Selection)",null,null,"(Selection)",null,null,"B","Between 10% and 15% of the channel length is unstable."]
[]
[null,null,null,null,null,null,null,{"$f":"IF(H169=\"NA\", \"NA\",2*(LOOKUP(H169,DATA_1!$G$63:$H$70)))","v":6},null,null,{"$f":"IF(K169=\"NA\", \"NA\",2*(LOOKUP(K169,DATA_1!$G$63:$H$70)))","v":6},null,null,"C","Between 16% and 25% of the channel length is unstable."]
[null,null,null,null,null,null,null,{"$f":"IF(H172=\"NA\",0,6)","v":6},null,null,{"$f":"IF(K172=\"NA\",0,6)","v":6}]
[null,null,null,null,null,null,null,null,null,null,null,null,null,"C","More than 25% of the channel length is unstable."]
[]
[]
[null,null,"Water Environment",null,9,null,"Please select the description that best corresponds to the stream's degree of the Artificial Channelization. "]
[]
[]
[null,null,null,null,null,null,null,{"$f":"Part1_Data!$V$14","v":"Current"},null,null,{"$f":"Part1_Data!$V$15","v":"w/ Mitigation"},null,null,"A","Good sinuosity. No evidence of dredging or artificial straightening. No spoil banks. Diversity of depths."]
[null,null,null,null,null,null,null,"A",null,null,"A"]
[null,null,null,null,null,null,null,"(Selection)",null,null,"(Selection)"]
[null,null,null,null,null,null,null,null,null,null,null,null,null,"B","Good sinuosity within old channelized area and a diversity of depths.  Evidence of dredging in the past (more than 10 years ago) but mostly recovered."]
[null,null,null,null,null,null,null,{"$f":"IF(H181=\"NA\", \"NA\",LOOKUP(H181,DATA_1!$G$63:$H$70))","v":3},null,null,{"$f":"LOOKUP(K181,DATA_1!$G$63:$H$72)","v":3}]
[]
[null,null,null,null,null,null,null,null,null,null,null,null,null,"C","Some sinuosity developed within channelized area, but less than the natural range for stream type.  Some diversity of depth, but no pools (greater than two times bankfull riffle depth)."]
[null,null,null,null,null,null,null,{"$f":"IF(H184=\"NA\",0,3)","v":3},null,null,{"$f":"IF(K184=\"NA\",0,3)","v":3}]
[]
[null,null,null,null,null,null,null,null,null,null,null,null,null,"D","Straightened with spoil banks. Box cut, monotypic depth with no pools."]
[]
[]
[null,null,"Water Environment",null,10,null,"Please select the description that best corresponds to the stream's degree Water Quality Impairment."]
[]
[null,null,null,null,null,null,null,{"$f":"Part1_Data!$V$14","v":"Current"},null,null,{"$f":"Part1_Data!$V$15","v":"w/ Mitigation"},null,null,"A","Meets designated use (Class III or better). WBID sampled, but not listed for TMDLs."]
[null,null,null,null,null,null,null,"A",null,null,"A"]
[null,null,null,null,null,null,null,"(Selection)",null,null,"(Selection)"]
[null,null,null,null,null,null,null,null,null,null,null,null,null,"B","Meets designated use (Class III or better). TMDL impairments of a nature not normally adversely affecting the biological function of the stream."]
[null,null,null,null,null,null,null,{"$f":"IF(H195=\"NA\", \"NA\",LOOKUP(H195,DATA_1!$G$63:$H$70))","v":3},null,null,{"$f":"IF(K195=\"NA\", \"NA\",LOOKUP(K195,DATA_1!$G$63:$H$70))","v":3}]
[]
[null,null,null,null,null,null,null,null,null,null,null,null,null,"C","Meets designated use (Class III or better), but Waterbody fails to meet at least one standard likely to significantly harm the biological community."]
[null,null,null,null,null,null,null,{"$f":"IF(H198=\"NA\",0,3)","v":3},null,null,{"$f":"IF(K198=\"NA\",0,3)","v":3}]
[]
[null,null,null,null,null,null,null,null,null,null,null,null,null,"D","Waterbody is Class IV or V, or does not meet designated use if Class III or better. Shows evidence of broad spectrum water quality problems resulting in limited to no aquatic fauna present."]
[]
[]
[]
[null,null,"Water Environment",null,11,null,"Please select the description that best corresponds to the stream's degree of  Nutrient Enrichment."]
[]
[]
[null,null,null,null,null,null,null,{"$f":"Part1_Data!$V$14","v":"Current"},null,null,{"$f":"Part1_Data!$V$15","v":"w/ Mitigation"},null,null,"A","Clear (non-turbid, can be tannic or colorless) water along entire reach.  Little algal growth present."]
[null,null,null,null,null,null,null,"A",null,null,"A"]
[null,null,null,null,null,null,null,"(Selection)",null,null,"(Selection)",null,null,"B","Fairly clear or slightly greenish water.  Moderate algal growth on substrates."]
[]
[null,null,null,null,null,null,null,{"$f":"IF(H211=\"NA\", \"NA\",LOOKUP(H211,DATA_1!$G$63:$H$70))","v":3},null,null,{"$f":"IF(K211=\"NA\", \"NA\",LOOKUP(K211,DATA_1!$G$63:$H$70))","v":3},null,null,"C","Greenish water, particularly in slow sections.  Abundant algal growth and/ or slight odor of ammonia or rotten eggs and/ or sporadic growth of aquatic plants in slack water areas."]
[null,null,null,null,null,null,null,{"$f":"IF(H214=\"NA\",0,3)","v":3},null,null,{"$f":"IF(K214=\"NA\",0,3)","v":3}]
[]
[null,null,null,null,null,null,null,null,null,null,null,null,null,"D","\"Pea green\" water, thick algal mats dominating and/or strong odor of ammonia or rotten eggs and/ or dense growth of aquatic plants widely dispersed."]
[]
[]
[]
[null,null,"Water Environment",null,12,null,"Please select the description that best corresponds to the stream's degree of  Habitat Smothering.  "]
[]
[]
[null,null,null,null,null,null,null,{"$f":"Part1_Data!$V$14","v":"Current"},null,null,{"$f":"Part1_Data!$V$15","v":"w/ Mitigation"},null,null,"A","Less than 25% of habitats are affected by sand or silt accumulation. Adequate number of pools for stream type."]
[null,null,null,null,null,null,null,"A",null,null,"A"]
[null,null,null,null,null,null,null,"(Selection)",null,null,"(Selection)",null,null,"B","Between 25% and 50% of habitats are affected by sand or silt accumulation. Adequate number of pools for stream type."]
[]
[null,null,null,null,null,null,null,{"$f":"IF(H225=\"NA\", \"NA\",LOOKUP(H225,DATA_1!$G$63:$H$70))","v":3},null,null,{"$f":"IF(K225=\"NA\", \"NA\",LOOKUP(K225,DATA_1!$G$63:$H$70))","v":3},null,null,"C","Between 51% and 80% of habitats are affected by sand or silt accumulation. Does not have adequate number of pools for stream type."]
[null,null,null,null,null,null,null,{"$f":"IF(H228=\"NA\",0,3)","v":3},null,null,{"$f":"IF(K228=\"NA\",0,3)","v":3}]
[]
[null,null,null,null,null,null,null,null,null,null,null,null,null,"D","More than 80% of habitats are affected by sand or silt accumulation and pools are absent."]
[]
[]
[]
[null,null,"Water Environment",null,13,null,"Please select the description that best corresponds to the degree Barriers to Aquatic Species are present in the stream."]
[]
[]
[null,null,null,null,null,null,null,{"$f":"Part1_Data!$V$14","v":"Current"},null,null,{"$f":"Part1_Data!$V$15","v":"w/ Mitigation"},null,null,"A","No artificial barriers that prohibit movement of aquatic organisms at any time of the year."]
[null,null,null,null,null,null,null,"A",null,null,"A"]
[null,null,null,null,null,null,null,"(Selection)",null,null,"(Selection)",null,null,"B","Artificial barriers, water quality, or water withdrawals seasonally restrict movement of aquatic species."]
[]
[null,null,null,null,null,null,null,{"$f":"IF(H239=\"NA\", \"NA\",LOOKUP(H239,DATA_1!$G$63:$H$70))","v":3},null,null,{"$f":"IF(K239=\"NA\", \"NA\",LOOKUP(K239,DATA_1!$G$63:$H$70))","v":3},null,null,"C","Artificial barriers, water quality, or water withdrawals restrict movement of aquatic species throughout the year."]
[null,null,null,null,null,null,null,{"$f":"IF(H242=\"NA\",0,3)","v":3},null,null,{"$f":"IF(K242=\"NA\",0,3)","v":3}]
[]
[null,null,null,null,null,null,null,null,null,null,null,null,null,"D","Artificial barriers, water quality, or water withdrawals prohibit  movement of aquatic species."]
[]
[]
[]
[null,null,"Summary (WE)",null,"WE",null,null,"Current",null,null,"W/Project"]
[null,null,null,null,"Total Points",null,null,{"$f":"SUM(H242,H228,H214,H198,H184,H172,H145)","v":27},null,null,{"$f":"SUM(K242,K228,K214,K198,K184,K172,K145)","v":27},null,null,null,null,null,null,null,null,null,null,null,null,null,null,"DRAFT DOCUMENT"]
[null,null,null,null,"Max Possible",null,null,{"$f":"SUM(H243,H229,H215,H201,H187,H173,H146)","v":27},null,null,{"$f":"SUM(K243,K229,K215,K201,K187,K173,K146)","v":27}]
[]
[null,null,null,null,"Score",null,null,{"$f":"(H250/H251)*10","v":10},null,null,{"$f":"(K250/K251)*10","v":10}]
[]
[]
[]
[null,null,"Community Structure (CS)"]
[null,null,"CS",null,14,null,"Please select the description that best corresponds to the stream's degree of Macroinvertebrate Habitat Diversity. "]
[]
[]
[null,null,null,null,null,null,null,{"$f":"Part1_Data!$V$14","v":"Current"},null,null,{"$f":"Part1_Data!$V$15","v":"w/ Mitigation"},null,null,"A","Four or more major productive habitats present (snags, tree roots, aquatic vegetation, leaf packs (partially decayed), rock)."]
[null,null,null,null,null,null,null,"A",null,null,"A"]
[null,null,null,null,null,null,null,"(Selection)",null,null,"(Selection)"]
[null,null,null,null,null,null,null,null,null,null,null,null,null,"B","Three major productive habitats present. Adequate habitat. Some substrates may be new fall (fresh leaves or snags)."]
[]
[]
[null,null,null,null,null,null,null,{"$f":"(LOOKUP(H262,DATA_1!$G$63:$H$72))","v":3},null,null,{"$f":"(LOOKUP(K262,DATA_1!$G$63:$H$72))","v":3},null,null,"C","Two major productive habitats present. Less than adequate habitat, frequently disturbed or removed."]
[null,null,null,null,null,null,null,{"$f":"IF(H267=\"NA\",0,3)","v":3},null,null,{"$f":"IF(K267=\"NA\",0,3)","v":3}]
[]
[null,null,null,null,null,null,null,null,null,null,null,null,null,"D","One or fewer major productive habitat present.   Lack of habitat is obvious, substrates unstable or smothered."]
[]
[]
[]
[null,null,"Community Structure",null,15,null,"Please select the description that best corresponds to the stream's degree of  Macroinvertebrate Habitat Availability.  "]
[]
[]
[null,null,null,null,null,null,null,{"$f":"Part1_Data!$V$14","v":"Current"},null,null,{"$f":"Part1_Data!$V$15","v":"w/ Mitigation"},null,null,"A","More than 30% major productive habitats present."]
[null,null,null,null,null,null,null,"A",null,null,"A"]
[null,null,null,null,null,null,null,"(Selection)",null,null,"(Selection)"]
[null,null,null,null,null,null,null,null,null,null,null,null,null,"B","Between 16% and 30% major productive habitats present."]
[]
[]
[null,null,null,null,null,null,null,{"$f":"LOOKUP(H278,DATA_1!$G$63:$H$72)","v":3},null,null,{"$f":"LOOKUP(K278,DATA_1!$G$63:$H$72)","v":3},null,null,"C","Between 6% and 15% major productive habitats present."]
[null,null,null,null,null,null,null,{"$f":"IF(H283=\"NA\",0,3)","v":3},null,null,{"$f":"IF(K283=\"NA\",0,3)","v":3}]
[]
[null,null,null,null,null,null,null,null,null,null,null,null,null,"D","Less than 5% major productive habitats present."]
[]
[]
[]
[null,null,"Community Structure",null,16,null,"Please select the description that best corresponds to the stream's degree of In-Stream Fish Cover.  "]
[]
[]
[null,null,null,null,null,null,null,{"$f":"Part1_Data!$V$14","v":"Current"},null,null,{"$f":"Part1_Data!$V$15","v":"w/ Mitigation"},null,null,"A","All habitats normal for stream type present."]
[null,null,null,null,null,null,null,"A",null,null,"A"]
[null,null,null,null,null,null,null,"(Selection)",null,null,"(Selection)"]
[null,null,null,null,null,null,null,null,null,null,null,null,null,"B","Between 66% and 75%of  habitats normal for stream type present."]
[]
[]
[null,null,null,null,null,null,null,{"$f":"LOOKUP(H294,DATA_1!$G$63:$H$72)","v":3},null,null,{"$f":"LOOKUP(K294,DATA_1!$G$63:$H$72)","v":3},null,null,"C","Between 25% and 66% habitats normal for stream type present."]
[null,null,null,null,null,null,null,{"$f":"IF(H299=\"NA\",0,3)","v":3},null,null,{"$f":"IF(K299=\"NA\",0,3)","v":3}]
[]
[null,null,null,null,null,null,null,null,null,null,null,null,null,"D","Less than 25% habitats normal for stream type present."]
[]
[]
[]
[null,null,"Community Structure",null,17,null,"Please select the description that best corresponds to the stream's degree of Pool Structure. "]
[]
[]
[null,null,null,null,null,null,null,{"$f":"Part1_Data!$V$14","v":"Current"},null,null,{"$f":"Part1_Data!$V$15","v":"w/ Mitigation"},null,null,"A","There are a mix of deep, medium and shallow pools within the natural range of the stream type."]
[null,null,null,null,null,null,null,"A",null,null,"A"]
[null,null,null,null,null,null,null,"(Selection)",null,null,"(Selection)"]
[null,null,null,null,null,null,null,null,null,null,null,null,null,"B","Pools are present, but one depth category (deep, medium, shallow) expected for the stream type is absent."]
[]
[]
[null,null,null,null,null,null,null,null,null,null,null,null,null,"C","Pools are present, but two depth categories (deep, medium, shallow) expected for the stream type are absent."]
[]
[]
[null,null,null,null,null,null,null,{"$f":"(LOOKUP(H310,DATA_1!$G$63:$H$72))","v":3},null,null,{"$f":"(LOOKUP(K310,DATA_1!$G$63:$H$72))","v":3},null,null,"C","Pools expected for the stream type are absent."]
[null,null,null,null,null,null,null,{"$f":"IF(H318=\"NA\",0,3)","v":3},null,null,{"$f":"IF(K318=\"NA\",0,3)","v":3}]
[]
[]
[null,null,"Community Structure",null,18,null,"Please select the description that best corresponds to the average degree of Bank Vegetation considering both stream banks.  "]
[]
[]
[null,null,null,null,null,null,null,{"$f":"Part1_Data!$V$14","v":"Current"},null,null,{"$f":"Part1_Data!$V$15","v":"w/ Mitigation"},null,null,"A","Width of appropriate vegetation is a minimum of 100 feet."]
[null,null,null,null,null,null,null,"A",null,null,"A"]
[null,null,null,null,null,null,null,"(Selection)",null,null,"(Selection)"]
[null,null,null,null,null,null,null,null,null,null,null,null,null,"B","Width of appropriate vegetation is between 51 and 99 feet wide."]
[]
[]
[null,null,null,null,null,null,null,{"$f":"LOOKUP(H326,DATA_1!$G$63:$H$72)","v":3},null,null,{"$f":"LOOKUP(K326,DATA_1!$G$63:$H$72)","v":3},null,null,"C","Width of appropriate vegetation is between 25 and 50 feet wide."]
[]
[]
[null,null,null,null,null,null,null,{"$f":"IF(H331=\"NA\",0,3)","v":3},null,null,{"$f":"IF(K331=\"NA\",0,3)","v":3},null,null,"D","Width of appropriate vegetation is less than 25 feet wide."]
[]
[]
[]
[null,null,"Community Structure",null,19,null,"Please select the description that best corresponds to the stream's degree of Bank Vegetation Quality."]
[]
[]
[null,null,null,null,null,null,null,{"$f":"Part1_Data!$V$14","v":"Current"},null,null,{"$f":"Part1_Data!$V$15","v":"w/ Mitigation"},null,null,"A","Over 80% of the riparian zone consists of normal, expected plant community for given sunlight and habitat conditions (e.g., native plants; trees, shrubs and forbs represented, as appropriate).  Minimal disturbance is present."]
[null,null,null,null,null,null,null,"A",null,null,"A"]
[null,null,null,null,null,null,null,"(Selection)",null,null,"(Selection)"]
[]
[null,null,null,null,null,null,null,null,null,null,null,null,null,"B","Between 50% and 80% of the riparian zone is undisturbed (normal, expected plant community for given sunlight and habitat conditions).  Some disruption in the community is present."]
[]
[]
[null,null,null,null,null,null,null,{"$f":"LOOKUP(H342,DATA_1!$G$63:$H$72)","v":3},null,null,{"$f":"LOOKUP(K342,DATA_1!$G$63:$H$72)","v":3},null,null,"C","Between 25% and 49% of the riparian zone is undisturbed (normal, expected plant community for given sunlight and habitat conditions).  Disruption in the community is obvious."]
[]
[]
[null,null,null,null,null,null,null,{"$f":"IF(H348=\"NA\",0,3)","v":3},null,null,{"$f":"IF(K348=\"NA\",0,3)","v":3},null,null,"D","Less than 25% of the riparian zone is undisturbed (normal, expected plant community for given sunlight and habitat conditions)."]
[]
[]
[]
[null,null,"Community Structure",null,20,null,"Please select the description that best corresponds to the stream's degree of Submerged Aquatic Vegetation."]
[]
[]
[null,null,null,null,null,null,null,{"$f":"Part1_Data!$V$14","v":"Current"},null,null,{"$f":"Part1_Data!$V$15","v":"w/ Mitigation"},null,null,"A","Submerged aquatic vegetation cover is within the normal range for the stream type."]
[null,null,null,null,null,null,null,"A",null,null,"A"]
[null,null,null,null,null,null,null,"(Selection)",null,null,"(Selection)"]
[null,null,null,null,null,null,null,null,null,null,null,null,null,"B","Submerged aquatic vegetation cover is reduced by no more than 25% of its normal range for the stream type."]
[]
[]
[null,null,null,null,null,null,null,{"$f":"LOOKUP(H359,DATA_1!$G$63:$H$72)","v":3},null,null,{"$f":"LOOKUP(K359,DATA_1!$G$63:$H$72)","v":3},null,null,"C","Submerged aquatic vegetation cover is reduced by no more than 75% of its normal range for the stream type."]
[]
[]
[null,null,null,null,null,null,null,{"$f":"IF(H364=\"NA\",0,3)","v":3},null,null,{"$f":"IF(K364=\"NA\",0,3)","v":3},null,null,"D","Submerged aquatic vegetation is present, but cover is reduced by more than 75% of its the normal range the stream type."]
[]
[]
[]
[null,null,"Summary  (CS)",null,null,null,null,"Current",null,null,"W/Project"]
[null,null,null,null,"Total Points",null,null,{"$f":"SUM(H364,H348,H331,H318,H299,H283,H267)","v":21},null,null,{"$f":"SUM(K364,K348,K331,K318,K299,K283,K267)","v":21},null,null,null,null,null,null,null,null,null,null,null,null,null,null,"DRAFT DOCUMENT"]
[null,null,null,null,"Max Possible",null,null,{"$f":"SUM(H367,H351,H334,H319,H300,H284,H268)","v":21},null,null,{"$f":"SUM(K367,K351,K334,K319,K300,K284,K268)","v":21}]
[]
[null,null,null,null,"Score",null,null,{"$f":"(H372/H373)*10","v":10},null,null,{"$f":"(K372/K373)*10","v":10}]
[]
[]
[null,null,"Please use the space below to provide additional detail or comments in support of scores or values indicated above."]

{"sheet":"Stream_Type","index":6,"n_rows":100,"n_cols":25,"rows_kept":100,"cut":false,"hidden":false,"merged":[[94,22,97,24],[99,2,100,24],[101,2,106,25],[7,1,7,5],[7,6,7,24],[11,7,17,24],[26,2,37,2],[19,2,24,2],[84,10,85,10],[81,10,82,10],[91,19,92,20],[90,19,90,20],[91,17,92,18],[90,17,90,18],[91,24,92,24],[73,7,74,7],[2,23,5,25],[94,11,95,15],[94,16,95,21],[91,15,92,16],[90,15,90,16],[91,13,92,14],[90,13,90,14],[91,11,92,12],[90,11,90,12],[19,4,19,24],[82,7,84,7],[91,23,92,23],[91,21,92,22],[90,21,90,22],[81,11,82,24],[84,11,85,24],[53,11,53,24],[50,10,51,10],[46,4,46,24],[52,11,52,18],[49,7,50,7],[39,2,44,2],[39,4,40,24],[48,11,48,24],[42,9,42,24],[50,11,51,24],[75,11,76,24],[23,11,23,18],[21,11,21,18],[36,11,36,17],[34,11,34,17],[32,11,32,17],[28,11,28,18],[30,11,30,17],[29,13,29,17],[26,4,26,24],[22,7,23,7],[29,7,32,7],[43,7,44,7],[59,7,60,7],[55,2,55,13],[46,2,54,2],[2,1,3,13],[79,2,86,2],[79,4,79,24],[63,7,65,7],[69,2,77,2],[69,4,70,24],[56,2,67,2],[56,4,56,24],[58,11,59,24],[58,10,59,10],[61,10,62,10],[61,11,63,24],[65,11,66,24],[75,10,76,10],[72,10,73,10],[72,11,73,24]]}
[]
[]
[null,"UMAM Stream Typology Worksheet",null,null,null,null,null,null,null,null,null,null,null,null,null,null,null,null,null,null,null,null,null,"Click Here to Return to Stream Assessment"]
[]
[]
[]
[]
[null,"INSTRUCTIONS:",null,null,null,null,"Please respond to questions 1 - 7 below.  Once completed, the stream type designation will be displayed at the bottom of the page."]
[]
[]
[]
[null,null,null,null,null,null,null,"NOTE: If the text \"DA and Flow are Inconsistent\" is displayed at the bottom of the page, please verify that entries provided for Questions# 3 and 4 to ensure they correctly reflect the stream's characteristics . "]
[]
[]
[]
[]
[]
[]
[]
[null,null,"Watershed",1,"Is the stream located in a watershed that would be best characterized as a Flatwoods Watershed or a Highlands Watershed?"]
[]
[null,null,null,null,null,null,null,"A",null,null,"A","Flatwoods Watershed"]
[null,null,null,null,null,null,null,"(Selection)"]
[null,null,null,null,null,null,null,null,null,null,"B","Highlands Watershed"]
[]
[]
[null,null," Hydrophysiographic Region",2,"Please select the hydrophysiographic region where the stream is located, or indicate if the stream is a Sapping Ravine or Karst (Spring Run). "]
[]
[null,null,null,null,null,null,null,"A",null,null,"A","Northwest Florida Coastal Plain (NWFCP) "]
[null,null,null,null,null,null,null,"(Selection)"]
[null,null,null,null,null,null,null,null,null,null,"B","Northeast Florida Coastal Plain (NEFCP) "]
[]
[null,null,null,null,null,null,null,null,null,null,"C","Peninsular Florida Coastal Plain (PFCP) "]
[]
[null,null,null,null,null,null,null,null,null,null,"D","Sapping Ravine"]
[]
[null,null,null,null,null,null,null,null,null,null,"E","Karst (Spring Runs)"]
[]
[]
[null,null,"DA / CFS",3,"What is the Drainage Area (DA) for this system as measured in square miles, or if a Karst system, what is its flow rate as measured in cubic feet per second?  Please type the value into the box below."]
[]
[]
[null,null,null,null,null,null,null,50,null,"Square Miles or Cubic Feet per Second (CFS)"]
[null,null,null,null,null,null,null,"(Selection)"]
[]
[]
[null,null,"Flow",4,"What is the Flow regime of this system?"]
[]
[null,null,null,null,null,null,null,"A",null,null,"A","(RP) Reliably perennial. Stream will provide at least one continuous flow spell of 180 days or longer during the majority of years."]
[null,null,null,null,null,null,null,"(Selection)"]
[null,null,null,null,null,null,null,null,null,null,"B","(SP) Seasonally perennial. Stream typically provides at least one 90 day continuous flow spell during most years. Can produce at least some 180 day spells."]
[]
[]
[null,null,null,null,null,null,null,null,null,null,"C","(NP) Non-perennial stream during most years. Unlikely to produce 180 day spells."]
[]
[]
[null,null,"Trophic   Status",5,"What is the potential for autotrophic conditions based on light limitation due to canopy closure, water color, and flow regime. "]
[]
[null,null,null,null,null,null,null,"A",null,null,"A","(Hetero) Heterotrophic conditions dominant due to severe light limitation or short flow duration."]
[null,null,null,null,null,null,null,"(Selection)"]
[]
[null,null,null,null,null,null,null,null,null,null,"B","(Auto) Autotrophic conditions potentially dominant (but may be limited in distribution due to seasonal color or highly mobile sand beds). Autotrophy can be due to periphyton, submerged aquatic vegetation, or may be restricted to emergent macrophytes growing on stream bed shoals and lateral bars."]
[]
[]
[]
[null,null,null,null,null,null,null,null,null,null,"C","(Heter/Auto) Sites that have smaller potential for autotrophy, but that can have patches of light gaps suitable for autochthonous production. Transitional between the other two categories."]
[]
[]
[]
[null,null,"Fish",6,"What is the potential for the stream to pass and harbor larger-bodied and oxygen-loving fish species as adults that spawn in habitats promoted by fluvial forces (Lotic)."]
[]
[]
[null,null,null,null,null,null,null,"A",null,null,"A","(Lotic) Stream is of such a size and condition that it could support species that as adults spawn in habitats promoted by fluvial forces."]
[null,null,null,null,null,null,null,"(Selection)"]
[]
[null,null,null,null,null,null,null,null,null,null,"B","(Lentic)  The stream is so small and metabolically harsh that it would typically support a fishery very similar to that of wetland depressions."]
[]
[]
[]
[null,null,"Floodplain",7,"Does the composition, zonation, abundance, or physical condition of the assessment area's vegetation exhibit indicators of hydrologic stress?"]
[]
[null,null,null,null,null,null,null,"A",null,null,"A","(Alluv) A larger floodplain with surfaces formed by fluvial forces and sedimentation (alluvial processes from the stream)."]
[null,null,null,null,null,null,null,"(Selection)"]
[]
[null,null,null,null,null,null,null,null,null,null,"B","(Coll) A smaller floodplain with surfaces formed by non-riverine processes (either ancient fluvial forces no longer active or active hillslope or karst processes)."]
[]
[]
[]
[]
[]
[null,null,null,null,null,null,null,null,null,null,null,"Watershed",null,"Physiography",null,"DA/CFS",null,"Flow",null,"Trophic",null,"Fish",null,"FPL","Uniqueness"]
[null,null,null,null,null,null,null,null,null,null,null,{"$f":"DATA_1!I152","v":"Flatwoods"},null,{"$f":"DATA_1!I153","v":"NWFCP"},null,{"$f":"DATA_1!I154","v":50},null,{"$f":"DATA_1!I155","v":"RP"},null,{"$f":"DATA_1!I156","v":"Hetero"},null,{"$f":"DATA_1!I157","v":"Lotic"},null,{"$f":"DATA_1!I158","v":"Alluv"},{"$f":"LOOKUP(Q95,DATA_1!AH114:AI141)","v":"ND2"}]
[]
[]
[null,null,null,null,null,null,null,null,null,null,null,"Stream Type =",null,null,null,null,{"$f":"DATA_1!P124","v":"FW-Op"},null,null,null,null,null,"Click Here to Return to Stream Assessment"]
[]
[]
[]
[]
[null,null,"Please use the space below to provide additional detail or comments realted to stream typology."]

{"sheet":"DATA_1","index":7,"n_rows":179,"n_cols":35,"rows_kept":179,"cut":false,"hidden":true,"merged":[[79,18,79,19]]}
[]
[]
[null,null,"LANDSCAPE COMPOSITION WORKSHEET LOOKUP TABLE"]
[]
[]
[null,null,"COVER_Type","LDI_COEF","RF","DESCRIPTION"]
[null,null,"1 None Selected","NA",0]
[null,null,"Agriculture  (high intensity)",7,0.7,"Dairy farms and large-scale cattle feed lots, chicken farms, and hog farms."]
[null,null,"Central business district (average 2 stories)",9.42,0.94199999999999995,"Central business districts with an average of 2 stories. "]
[null,null,"Central business district (average 4 stories)",10,1,"Central business districts with an average of more than 2 stories. "]
[null,null,"Citrus",3.68,0.36799999999999999,"Areas devoted to the production of oranges and citrus in general."]
[null,null,"Commercial (high intensity)",9.18,0.91799999999999993,"Commercial mall with associated storage buildings and parking  lots, hotels, convention centers, and theme parks."]
[null,null,"Commercial (low-intensity)",8,0.8,"Commercial strip."]
[null,null,"Improved pasture (high-intensity)",3.74,0.374,"Areas where the natural vegetation has been altered by drainage, irrigation, etc., for the grazing of domestic animals with a density of more than 1.2 animals/ha."]
[null,null,"Improved pasture (low-intensity)",2.77,0.27700000000000002,"Areas where the natural vegetation has been altered by drainage, irrigation, etc., for the grazing of domestic animals with a density of less than 1.2 animals/ha."]
[null,null,"Improved pasture (medium-intensity)",2.41,0.34100000000000003,"Areas where the natural vegetation has been altered by drainage, irrigation, etc., for the grazing of domestic animals. Does not include livestock."]
[null,null,"Industrial",8.32,0.83200000000000007,"Land uses include manufacturing, assembly or processing of materials/products and associated buildings and grounds. Also \nincludes extractive areas and mining operations, water supply plants, waste treatment facilities, and solid wastes disposal facilities."]
[null,null,"Institutional",8.07,0.80700000000000005,"Schools, universities, religious, military, medical and professional facilities, and government buildings."]
[null,null,"Mobile home (high density)",8.2899999999999991,0.82899999999999996,"Areas that are predominantly residential mobile homes with a density greater than 20 units/ha."]
[null,null,"Mobile home (medium density)",7.7,0.77,"Areas that are predominantly residential mobile homes with a density between 10 and 20 units/ha."]
[null,null,"Multi-family residential (high rise)",9.19,0.91899999999999993,"Areas that are predominantly multi-family residential units such as condominiums and apartment buildings with 3 or more\nstories."]
[null,null,"Multi-family residential (low rise)",8.66,0.86599999999999999,"Areas that are predominantly multi-family residential units such as condominiums and apartment buildings up to 2 stories."]
[null,null,"Native Natural Community",0,0,"Openwater, upland, or wetland with minimal alterations dominated by native vegetation."]
[null,null,"Non-Native Vegetation/Community (high intensity)","NA - 1.0",0.1,"Open water, upland, or wetland with minimal alterations and/or minimal landuse intensity but dominated by non-native vegetation or unnatural substrates."]
[null,null,"Non-Native Vegetation/Community (low intensity)","NA - 0.5",0.05,"Open water, upland, or wetland with minimal alterations and/or minimal landuse intensity with a known presence of non-native vegetation or unnatural substrates."]
[null,null,"Pine Plantation",1.58,0.158,"Land devoted to silviculture with varying stocking densities."]
[null,null,"Recreational / open space  (high-intensity)",6.92,0.69199999999999995,"Applies to stadiums not associated with institutions such as schools and universities, golf courses, and racetracks (horse, dog, car)."]
[null,null,"Recreational / open space  (low-intensity)",1.83,0.183,"Areas of natural vegetation in cities maintained as nature parks, and undeveloped land that may be occupied by natural vegetation in an agricultural or urban landscape used primarily for passive recreation. Also includes unpaved access roads and motorized vehicle trails within natural areas, or minor boating channels accessible to  motorized vessels of less  than 26 feet."]
[null,null,"Recreational/open space (medium-intensity)",4.38,0.438,"Applies to ball parks, community sports venues not associated with institutions such as schools and universities, golf courses, and racetracks (horse, dog, car) used primarily for active recreation."]
[null,null,"Row crops",4.54,0.45400000000000001,"Areas devoted to the production of all types of vegetables usually grown in rows, whether producing or not."]
[null,null,"Single family residential  (low-density)",6.9,0.69000000000000006,"Areas that are predominantly residential units with a density less than 10 units/ha."]
[null,null,"Single family residential  (medium density)",7.47,0.747,"Areas that are predominantly residential units with a density between 10 and 20 units/ha."]
[null,null,"Single family residential (high density)",7.55,0.755,"Areas that are predominantly residential units with a density of more than 20 units/ha."]
[null,null,"Transportation (high intensity)",8.2799999999999994,0.82799999999999996,"Paved road with more than 2 lanes (includes shoulders), airports, railroad terminals, bus and truck terminals, port facilities, and auto parking facilities when not directly related to other land use.  Major boating channels accessible to motorized vessels greater than 40 feet in length."]
[null,null,"Transportation (low intensity)","NA",0.183,"Unpaved access roads and motorized vehicle trails within natural areas, or low intensity boating channels accessible to  motorized vessels of less  than 26 feet."]
[null,null,"Transportation (medium intensity)",7.81,0.78099999999999992,"Paved road with 2 -3 lanes (includes shoulders), railroads, and canals used for transportation.  Moderate intensity boating channels accessible to motorized vessels greater than 26 feet, but less than 40 feet in length."]
[null,null,"Woodland /Unimproved pasture (with livestock)",2.02,0.20200000000000001,"Native rangeland or native woodland pasture with presence of livestock."]
[null,null,null,null,null,null,null,null,null,null,null,null,null,null,null,null,null,null,null,null,null,null,null,null,null,null,null,null,null,null,null,null,null,0]
[null,null,null,null,null,null,null,null,null,null,"STATE_LOOKUP",null,null,null,"UPLAND_DIST",null,null,null,null,null,null,null,null,null,null,null,null,null,null,null,null,null,null,1E-3]
[null,null,null,null,null,null,null,null,null,null,"Community","Rank",null,null,0,100,null,null,null,null,null,null,null,null,null,null,null,null,null,null,null,null,null,2E-3]
[null,null,null,null,null,null,null,null,null,null,"Alluvial forest","S3",null,null,300,100]
[null,"Canopy?",1,"w_Proj_C",null,null,"LLS_Grade",null,null,null,"Alluvial stream","S2",null,null,300,100]
[null,"Pyro?",1,1,false,null,"A",3,{"$f":"3*H43","v":9},null,"Aquatic cave","S3",null,null,1000,25]
[null,"Canopy","(Canopy specific questions 11-16 are set to \"NA\" and removed)",2,false,null,"AB",2.5,{"$f":"3*H44","v":7.5},null,"Basin marsh","S3"]
[null,"Pyro","(Fire specific questions 24-26 are set to \"NA\" and removed)",3,false,null,"B",2,6,null,"Basin swamp","S3"]
[null,null,null,4,false,null,"BC",1.5,4.5,null,"Baygall","S4"]
[null,null,null,5,false,null,"C",1,3,null,"Beach dune","S2"]
[null,null,null,6,false,null,"CD",0.5,1.5,null,"Blackwater stream","S3"]
[null,null,null,7,false,null,"D",0,0,null,"Bottomland forest","S3"]
[null,null,null,8,false,null,null,null,null,null,"Clastic upland lake","S2"]
[null,null,null,9,false,null,null,null,null,null,"Coastal berm","S2"]
[null,null,null,10,false,null,null,null,null,null,"Coastal dune lake","S1"]
[null,null,null,11,false,null,null,null,null,null,"Coastal grassland","S2"]
[null,null,null,12,false,null,null,null,null,null,"Coastal interdunal swale","S2",null,null,null,null,"y = -0.1071x + 132.14 "]
[null,null,null,13,false,null,null,null,null,null,"Coastal rockland lake","S1"]
[null,null,null,14,false,null,null,null,null,null,"Coastal strand","S2"]
[null,null,null,15,false,null,null,null,null,null,"Depression marsh","S4"]
[null,null,null,"ALL",false,null,null,null,null,null,"Dome swamp","S4"]
[null,null,null,null,null,null,null,null,null,null,"Dry prairie","S2"]
[null,null,null,null,null,null,null,null,null,null,"Estuarine algal bed","S2"]
[null,null,null,null,null,null,null,null,null,null,"Estuarine composite substrate","S3",null,"TVH","Current","With",null,null,"Current","With",null,"Risk"]
[null,null,null,null,null,null,"TVH",null,"Pres",null,"Estuarine consolidated substrate","S3",null,"LLS",{"$f":"IF(M70=3,0,Standard!G113)","v":10},{"$f":"IF(M70=1,0,Standard!J113)","v":10},null,"LLS",{"$f":"Standard!K113","v":0},{"$f":"Standard!N113","v":0},null,1]
[null,null,null,null,null,null,"A",3,0.1,null,"Estuarine coral reef","S1",null,"WE",{"$f":"IF(AND(M70=3,Q70=1),0,IF(Q70=2,\"NA\",Standard!G220))","v":10},{"$f":"IF(AND(M70=1,Q70=1),0,IF(Q70=2,\"NA\",Standard!J220))","v":10},null,"WE",{"$f":"Standard!K220","v":0},{"$f":"Standard!N220","v":0},null,1.5]
[null,null,null,null,null,null,"AB",2.5,8.3000000000000004E-2,null,"Estuarine mollusk reef","S3",null,"CS",{"$f":"IF(M70=3,0,Standard!G569)","v":10},{"$f":"IF(M70=1,0,Standard!J569)","v":10},null,"CS",{"$f":"Standard!K569","v":0},{"$f":"Standard!N569","v":0},null,2]
[null,null,null,null,null,null,"B",2,6.6000000000000003E-2,null,"Estuarine octocoral bed","S1",null,null,{"$f":"IF(Q70=1,SUM(O62:O64)/30,IF(Q70=2,(O62+O64)/20,\"?\"))","v":1},{"$f":"IF(Q70=1,SUM(P62:P64)/30,IF(Q70=2,(P62+P64)/20,\"?\"))","v":1},null,null,null,null,null,2.5]
[null,null,null,null,null,null,"BC",1.5,4.9500000000000002E-2,null,"Estuarine seagrass bed","S2",null,"D",{"$f":"Standard!AA8","v":0},null,null,null,null,null,null,3]
[null,null,null,null,null,null,"C",1,3.3000000000000002E-2,null,"Estuarine sponge bed","S2"]
[null,null,null,null,null,null,"CD",0.5,1.6500000000000001E-2,null,"Estuarine unconsolidated substrate","S5"]
[null,null,null,null,null,null,"D",0,0,null,"Estuarine worm reef","S1","Activity_Type",null,null,null,"WOSW_Type"]
[null,null,{"$f":"0.033/2","v":1.6500000000000001E-2},null,null,null,"NA","NA",null,null,"Flatwoods/prairie lake","S3",{"$f":"Part1_Data!D5","v":4},null,null,null,{"$f":"Part1_Data!I20","v":1},null,null,null,"STREAMS","Current","With",null,"SAH","Current","With"]
[null,null,null,null,null,null,null,null,null,null,"Floodplain marsh","S3",1,"Impact(Full)","No_with",null,1,"WOSW",null,null,"LLS",{"$f":"IF(M70=3,0,Streams!H129)","v":10},{"$f":"IF(M70=1,0,Streams!K129)","v":10},null,"LLS",{"$f":"IF(M70=3,0,Submerged!G98)","v":10},{"$f":"IF(M70=1,0,Submerged!J98)","v":10}]
[null,null,null,null,null,null,null,null,null,null,"Floodplain swamp","S4",2,"Impact(Partial)",null,null,2,"Upland",null,null,"WE",{"$f":"IF(M70=3,0,Streams!H253)","v":10},{"$f":"IF(M70=1,0,Streams!K253)","v":10},null,"WE",{"$f":"IF(M70=3,0,Submerged!G200)","v":10},{"$f":"IF(M70=1,0,Submerged!J200)","v":10}]
[null,null,null,null,null,null,null,null,null,null,"Glades marsh","S3",3,"Mit_Create","No_Curre",null,null,null,null,null,"CS",{"$f":"IF(M70=3,0,Streams!H375)","v":10},{"$f":"IF(M70=1,0,Streams!K375)","v":10},null,"CS",{"$f":"IF(M70=3,0,Submerged!G325)","v":10},{"$f":"IF(M70=1,0,Submerged!J325)","v":10}]
[null,null,null,null,null,null,null,null,null,null,"Hydric hammock","S4",4,"Mit_Enhan",null,null,null,null,null,null,null,{"$f":"IF(DATA_1!Q70=2,\"NA\",SUM(V71:V73)/30)","v":1},{"$f":"IF(Q70=2, SUM(W71:W73)/20, SUM(W71:W73)/30)","v":1},null,null,{"$f":"IF(Q70=2,\"NA\",SUM(Z71:Z73)/30)","v":1},{"$f":"IF(Q70=2, SUM(AA73,AA71)/20,SUM(AA71:AA73)/30)","v":1}]
[null,null,null,null,null,null,null,null,null,null,"Keys cactus barren","S1",5,"Mit_Restor",null,null,null,null,null,null,"D",{"$f":"Streams!AB8","v":0},null,null,"D",{"$f":"Submerged!AA8","v":0}]
[null,null,null,null,null,null,null,null,null,null,"Keys tidal rock barren","S3",6,"Mit_Pres","No_with"]
[null,null,null,null,null,null,null,null,null,null,"Limestone outcrop","S2",null,null,null,null,null,null,null,null,null,"MASTER","CURRENT","WITH"]
[null,null,null,null,null,null,null,null,null,null,"Mangrove swamp","S4",null,null,null,null,null,null,null,null,null,"LLS",{"$f":"IF(Part1_Data!$O$13=1,DATA_1!O62,IF(Part1_Data!$O$13=2,DATA_1!Z71,IF(Part1_Data!$O$13=3,DATA_1!V71,\"?\")))","v":10},{"$f":"IF(Part1_Data!$O$13=1,DATA_1!P62,IF(Part1_Data!$O$13=2,DATA_1!AA71,IF(Part1_Data!$O$13=3,DATA_1!W71,\"?\")))","v":10}]
[null,null,null,null,null,null,null,null,null,null,"Marine algal bed","S2","VF",null,null,null,null,null,null,null,null,"WE",{"$f":"IF(Part1_Data!$O$13=1,DATA_1!O63,IF(Part1_Data!$O$13=2,DATA_1!Z72,IF(Part1_Data!$O$13=3,DATA_1!V72,\"?\")))","v":10},{"$f":"IF(Part1_Data!$O$13=1,DATA_1!P63,IF(Part1_Data!$O$13=2,DATA_1!AA72,IF(Part1_Data!$O$13=3,DATA_1!W72,\"?\")))","v":10}]
[null,null,null,null,null,null,null,null,null,null,"Marine composite substrate","S3","WOSW",null,null,null,null,null,"Time Lag Factor",null,null,"CS",{"$f":"IF(Part1_Data!$O$13=1,DATA_1!O64,IF(Part1_Data!$O$13=2,DATA_1!Z73,IF(Part1_Data!$O$13=3,DATA_1!V73,\"?\")))","v":10},{"$f":"IF(Part1_Data!$O$13=1,DATA_1!P64,IF(Part1_Data!$O$13=2,DATA_1!AA73,IF(Part1_Data!$O$13=3,DATA_1!W73,\"?\")))","v":10}]
[null,null,null,null,null,null,null,null,null,null,"Marine consolidated substrate","S3","A",0,0,null,null,null,"Years","T-factor",null,"SCORE",{"$f":"IF(Part1_Data!$O$13=1,O65,IF(Part1_Data!$O$13=2,Z74,IF(Part1_Data!$O$13=3,V74,\"?\")))","v":1},{"$f":"IF(Part1_Data!$O$13=1,DATA_1!P65,IF(Part1_Data!$O$13=2,DATA_1!AA74,IF(Part1_Data!$O$13=3,DATA_1!W74,\"?\")))","v":1}]
[null,null,null,"STREAM_TYPE",null,"NWFCP",null,"Karst",null,null,"Marine coral reef","S1","B",0.1,0.3,null,null,null,"< or = 1",1,null,"D",{"$f":"IF(Part1_Data!$O$13=1,O66,IF(Part1_Data!$O$13=2,Z75,IF(Part1_Data!$O$13=3,V75,\"?\")))","v":0}]
[null,null,null,"Karst",null,"FW-HW",null,"K-GM",null,null,"Marine mollusk reef","S3","C",0.2,0.59899999999999998,null,null,null,2,1.03]
[null,null,null,"NEFCP",null,"FW-FP",null,"K-HM",null,null,"Marine octocoral bed","S1","D",0.3,null,0,"A",null,3,1.07]
[null,null,null,"NWFCP",null,"FW-Op",null,"K-LM/MM",null,null,"Marine seagrass bed","S2","E",0.4,null,4,"B",null,4,1.1000000000000001]
[null,null,null,"PFCP",null,"FW-Tran",null,null,null,null,"Marine sponge bed","S2","F",0.45,null,7,"C",null,5,1.1399999999999999]
[null,null,null,"Sapping_Ravine",null,"HL-CBC",null,null,null,null,"Marine unconsolidated substrate","S5","G",0.5,null,10,"D",null,"6-10",1.25]
[null,null,null,null,null,"HL-CC-Sh",null,null,null,null,"Marine worm reef","S1","H",0.55000000000000004,null,null,null,null,"11-15",1.46]
[null,null,null,null,null,"HL-HW-SS",null,"Sapping Ravine",null,null,"Maritime hammock","S2","I",0.59899999999999998,null,null,null,null,"16-20",1.68]
[null,null,null,null,null,"HL-LFS",null,"SR-AF-Op",null,null,"Marl prairie","S3",null,null,null,null,null,null,"21-25",1.92]
[null,null,null,null,null,"WASH",null,"SR-RS/WC",null,null,"Marsh lake","S4","A",0,null,null,null,null,"26-30",2.1800000000000002]
[null,null,null,null,null,null,null,null,null,null,"Mesic flatwoods","S4","B",0.125,null,null,null,null,"31-35",2.4500000000000002]
[null,null,null,null,"PFCP",null,"NEFCP",null,null,null,"Mesic hammock","S3","C",0.25,null,null,null,null,"36-40",2.73]
[null,null,null,null,"FW-CV",null,"AFS-Sh",null,null,null,"Pine rockland","S1",null,null,null,null,null,null,"41-45",3.03]
[null,null,null,null,"FW-AF",null,"AFS-Op",null,null,null,"River floodplain lake","S2",null,null,null,null,null,null,"46-50",3.34]
[null,null,null,null,"CMRS",null,"CMRS",null,null,null,"Rockland hammock","S2","A",0,0,null,null,null,"51-55",3.65]
[null,null,null,null,"FW-AFS-Op",null,"FP",null,null,null,"Salt marsh","S4","B",2.5000000000000001E-2,1.2E-2,null,null,null,">55",3.91]
[null,{"$f":"0.8+B99","v":0.95000000000000007},null,null,"FW-AFS-Sh",null,"HW",null,null,null,"Sandhill","S2","C",0.05,2.5000000000000001E-2]
[null,{"$f":"0.05*3","v":0.15000000000000002},null,null,"HL-AFS-Op",null,null,null,null,null,"Sandhill upland lake","S2"]
[null,null,null,null,"HL-AFS-Sh",null,null,null,null,null,"Scrub","S2","A",0.05,0]
[null,null,null,null,"HL-BFC",null,null,null,null,null,"Scrubby flatwoods","S2","B",0.03,0.05]
[null,null,null,null,"HL-RSC",null,null,null,null,null,"Seepage slope","S2","C",0.02,0.1]
[null,null,null,null,null,null,null,null,null,null,"Seepage stream","S2","D",0,0.2]
[null,null,null,null,null,null,null,null,null,null,"Shell mound","S2"]
[null,null,null,null,null,null,null,null,null,null,"Shrub bog","S3"]
[null,null,null,null,null,null,null,null,null,null,"Sinkhole","S2"]
[null,null,null,null,null,null,null,null,null,null,"Sinkhole lake","S3"]
[null,null,null,null,null,null,null,null,null,null,"Slope forest","S1"]
[null,null,null,null,null,null,null,null,null,null,"Slough","S3"]
[null,null,null,null,null,null,null,null,null,null,"Slough marsh","S3"]
[null,null,null,null,null,null,null,null,null,null,"Spring-run stream","S2"]
[null,null,null,null,null,null,null,null,null,null,"Strand swamp","S2"]
[null,null,null,null,null,null,null,null,null,null,"Swamp lake","S3",null,null,null,"TYPE",null,null,null,null,null,"PFCP","Flatwoods Watersheds","DA (sq mi)","Flow","Trophic","Fish","FPL","Uniqueness",null,null,null,null,"Rarity Table"]
[null,null,null,null,null,null,null,null,null,null,"Terrestrial cave","S2",null,null,null,1,{"$f":"Stream_Type!H22","v":"A"},null,null,null,null,null,"FW-CV","<4","NP","Hetero","Lentic","Colluv","WD1",null,null,null,null,"AFS-Op","ND2"]
[null,null,null,null,null,null,null,null,null,null,"Upland glade","S1",null,null,null,2,{"$f":"Stream_Type!H29","v":"A"},null,null,null,null,null,"FW-AF","4-60","SP","Hetero","Lotic","Alluv","WD2",null,null,null,null,"AFS-Sh","ND2"]
[null,null,null,null,null,null,null,null,null,null,"Upland hardwood forest","S3",null,null,null,3,{"$f":"Stream_Type!H43","v":50},null,null,null,null,null,"FW-AFS-Sh","60-200","RP","H/A","Lotic","Alluv","ND2",null,null,null,null,"CMRS","ND1"]
[null,null,null,null,null,null,null,null,null,null,"Upland mixed woodland","S2",null,null,null,4,{"$f":"Stream_Type!H49","v":"A"},null,null,null,null,null,"FW-AFS-Op","200-500","RP","Auto","Lotic","Alluv","ND2",null,null,null,null,"CMRS","ND1"]
[null,null,null,null,null,null,null,null,null,null,"Upland pine","S2",null,null,null,5,{"$f":"Stream_Type!H59","v":"A"},null,null,null,null,null,"CMRS",">500","RP","Auto","Lotic","Alluv","ND1",null,null,null,null,"FP","WD2"]
[null,null,null,null,null,null,null,null,null,null,"Wet flatwoods","S4",null,null,null,6,{"$f":"Stream_Type!H73","v":"A"},null,null,null,null,null,null,null,null,null,null,null,null,null,null,null,null,"FW-AF","WD2"]
[null,null,null,null,null,null,null,null,null,null,"Wet prairie","S2",null,null,null,7,{"$f":"Stream_Type!H82","v":"A"},null,null,null,null,null,"Highlands Watersheds","DA (sq mi)","Flow","Trophic","Fish","FPL","Uniqueness",null,null,null,null,"FW-AFS-Op","ND2"]
[null,null,null,null,null,null,null,null,null,null,"Xeric hammock","S3",null,null,null,null,null,null,null,null,null,null,"HL-RSC"," 5 -10","SP","Hetero","Lentic","Colluv","ND1",null,null,null,null,"FW-AFS-Sh","ND2"]
[null,null,null,null,null,null,null,null,null,null,null,null,null,null,null,null,null,null,null,null,null,null,"HL-BFC","<5","SP","Hetero","Lentic","Colluv","WD2",null,null,null,null,"FW-CV","WD1"]
[null,null,null,null,null,null,null,null,null,null,null,null,null,null,null,null,null,null,null,null,null,null,"HL-AFS-Sh","5-35","RP","H/A","Lotic","Alluv","ND2",null,null,null,null,"FW-FP","ND2"]
[null,null,null,null,null,null,null,null,null,null,null,null,null,null,"TYPE =",{"$f":"IF(Q115=D157,Q129,IF(Q115=D158,Q134,IF(Q115=D159,Q125,IF(Q115=D160,Q137,IF(Q115=D161,Q140,\"?\")))))","v":"FW-Op"},null,null,null,null,null,null,"HL-AFS-Op",">35","RP","Auto","Lotic","Alluv","ND2",null,null,null,null,"FW-HW","ND2"]
[null,null,null,null,null,null,null,null,null,null,null,null,null,null,null,"PFCP",{"$f":"IF(Q114=\"A\",Q126,IF(Q114=\"B\",Q127,\"?\"))","v":"FW-AF"},null,null,null,null,null,null,null,null,null,null,null,null,null,null,null,null,"FW-Op","ND2"]
[null,null,null,null,null,null,null,null,null,null,null,null,null,null,null,"FW",{"$f":"IF(Q116<4,W114,IF(AND(Q116>=4,Q116<60),W115,IF(AND(Q116>=60,Q116<200),W116,IF(AND(Q116>=200,Q116<500),W117,IF(Q116>=500,W118,\"?\")))))","v":"FW-AF"},null,null,null,null,"NWFCP","Flatwoods Watersheds","DA (sq mi)","Flow","Trophic","Fish","FPL","Uniqueness",null,null,null,null,"FW-Tran","ND2"]
[null,null,null,null,null,null,null,null,null,null,null,null,null,null,null,"HL",{"$f":"IF(AND(Q116<5,I155=Y122),W122,IF(AND(Q116>=5,Q116<10),W121,IF(AND(Q116<35,I155=Y123),W123,IF(Q116>=35,W124,\"DA and Flow are Inconsistant\"))))","v":"HL-AFS-Op"},null,null,null,null,null,"FW-HW","<1.5","NP","Hetero","Lentic","Colluv","ND2",null,null,null,null,"HL-AFS-Op","ND2"]
[null,null,null,null,null,null,null,null,null,null,null,null,null,null,null,null,null,null,null,null,null,null,"FW-FP","1.5-10","SP","Hetero","Lotic","Alluv","ND2",null,null,null,null,"HL-AFS-Sh","ND2"]
[null,null,null,null,null,null,null,null,null,null,null,null,null,null,null,"NWFCP",{"$f":"IF(Q114=\"A\",Q130,IF(Q114=\"B\",Q131,\"?\"))","v":"FW-Op"},null,null,null,null,null,"FW-Tran","10-30","SP","H/A","Lotic","Alluv","ND2",null,null,null,null,"HL-BFC","WD2"]
[null,null,null,null,null,null,null,null,null,null,null,null,null,null,null,"FW",{"$f":"IF(Q116<1.5,W127,IF(AND(Q116>=1.5,Q116<10),W128,IF(AND(Q116>=10,Q116<30),W129,IF(Q116>30,W130,\"?\"))))","v":"FW-Op"},null,null,null,null,null,"FW-Op",">30","RP","Auto","Lotic","Alluv","ND2",null,null,null,null,"HL-CBC","ND2"]
[null,null,null,null,null,null,null,null,null,null,null,null,null,null,null,"HL",{"$f":"IF(Q116<5,W133,IF(AND(Q116>=5,Q116<35),W134,IF(AND(Q116>=35,Q116<200),W135,IF(AND(Q116>=200,Q116<500),W136,IF(Q116>500,W137,\"?\")))))","v":"HL-CBC"},null,null,null,null,null,null,null,null,null,null,null,null,null,null,null,null,"HL-CC-Sh","WD2"]
[null,null,null,null,null,null,null,null,null,null,null,null,null,null,null,null,null,null,null,null,null,null,"Highlands Watersheds","DA (sq mi)","Flow","Trophic","Fish","FPL","Uniqueness",null,null,null,null,"HL-HW-SS","WD2"]
[null,null,null,null,null,null,null,null,null,null,null,null,null,null,null,"NEFCP",null,null,null,null,null,null,"HL-HW-SS","<5","SP","Hetero","Lentic","Coll/Alluv","WD2",null,null,null,null,"HL-LFS","ND2"]
[null,null,null,null,null,null,null,null,null,null,null,null,null,null,null,"All",{"$f":"IF(Q116<3,W140,IF(AND(Q116>=3,Q116<20),W141,IF(AND(Q116>=20,Q116<200),W142,IF(AND(Q116>=200,Q116<500),W143,IF(Q116>500,W144,\"?\")))))","v":"AFS-Sh"},null,null,null,null,null,"HL-CC-Sh","5-35","RP","Hetero","Lotic","Alluv","WD2",null,null,null,null,"HL-RSC","ND1"]
[null,null,null,null,null,null,null,null,null,null,null,null,null,null,null,null,null,null,null,null,null,null,"HL-CBC","35-200","RP","H/A","Lotic","Alluv","ND2",null,null,null,null,"HW","WD1"]
[null,null,null,null,null,null,null,null,null,null,null,null,null,null,null,"Sapping Ravine",null,null,null,null,null,null,"HL-LFS","200-500","RP","Auto","Lotic","Alluv","ND2",null,null,null,null,"K-GM","GU1"]
[null,null,null,null,null,null,null,null,null,null,null,null,null,null,null,"All",{"$f":"IF(Q116<5,W147,IF(Q116>5,W148,\"?\"))","v":"SR-AF-Op"},null,null,null,null,null,"WASH",">500","RP","H/A","Lotic","Alluv","ND2",null,null,null,null,"K-HM","GU1"]
[null,null,null,null,null,null,null,null,null,null,null,null,null,null,null,null,null,null,null,null,null,null,null,null,null,null,null,null,null,null,null,null,null,"K-LM/MM","GU1"]
[null,null,null,null,null,null,null,null,null,null,null,null,null,null,null,"Karst",null,null,null,null,null,"NEFCP","All Watersheds","DA (sq mi)","Flow","Trophic","Fish","FPL","Uniqueness",null,null,null,null,"SR-AF-Op","GU2"]
[null,null,null,null,null,null,null,null,null,null,null,null,null,null,null,"All",{"$f":"IF(Q116<20,W152,IF(AND(Q116>=20,Q116<40),W153,IF(Q116>40,W154,\"?\")))","v":"K-GM"},null,null,null,null,null,"HW","<3","NP","Hetero","Lentic","Colluv/Alluv","WD1",null,null,null,null,"SR-RS/WC","GU2"]
[null,null,null,null,null,null,null,null,null,null,null,null,null,null,null,null,null,null,null,null,null,null,"FP","3-20","SP","Hetero","Lotic","Alluv","WD2",null,null,null,null,"WASH","ND2"]
[null,null,null,null,null,null,null,null,null,null,null,null,null,null,"CHOICE =",1,null,null,null,null,null,null,"AFS-Sh","20-200","RP","H/A","Lotic","Alluv","ND2"]
[null,null,null,null,null,null,null,null,null,null,null,null,null,null,null,null,null,null,null,null,null,null,"AFS-Op","200-500","RP","Auto","Lotic","Alluv","ND2"]
[null,null,null,null,null,null,null,null,null,null,null,null,null,null,null,null,null,null,null,null,null,null,"CMRS",">500","RP","Auto","Lotic","Alluv","ND1"]
[]
[null,null,null,null,null,null,null,null,null,null,null,null,null,null,null,null,null,null,null,null,null,"Sapping Ravine","Sapping Ravines (Found in NWFCP and NEFCP)","DA (sq mi)","Flow","Trophic","Fish","FPL","Uniqueness"]
[null,null,null,null,null,null,null,null,null,null,null,null,null,null,null,null,null,null,null,null,null,null,"SR-RS/WC","<5","NP","Hetero","Le/Lo","Colluv/Alluv","GU2"]
[null,null,null,null,null,null,null,null,null,null,null,null,null,null,null,null,null,null,null,null,null,null,"SR-AF-Op","5-35","SP","Hetero","Lotic","Alluv","GU2"]
[null,null,null,null,null,null,null,null,null,null,null,null,null,null,null,null,null,null,null,null,null,null,null,"Note: systems draining more than 35 sq mile sapping networks tend to take on HL-CC characteristics."]
[]
[null,null,null,1,null,null,null,null,null,null,null,null,null,null,null,null,null,null,null,null,null,"Karst","Karst (Spring Runs) (Found in all Hydrophysiographic Regions)","Q-bkf (cfs)","Flow","Trophic","Fish","FPL","Rare"]
[null,null,null,"A","Flatwoods",null,null,1,{"$f":"LOOKUP(Q114,D152:E153)","v":"Flatwoods"},null,null,null,null,null,null,null,null,null,null,null,null,null,"K-LM/MM","<20","RP","Hetero","Le/Lo","Colluv","GU1"]
[null,null,null,"B","Highlands",null,null,2,{"$f":"LOOKUP(Q115,D157:E161)","v":"NWFCP"},null,null,null,null,null,null,null,null,null,null,null,null,null,"K-HM","20-40","RP","H/A","Lotic","Alluv","GU1"]
[null,null,null,null,null,null,null,3,{"$f":"Q116","v":50},null,null,null,null,null,null,null,null,null,null,null,null,null,"K-GM",">40","RP","Auto","Lotic","Alluv","GU1"]
[null,null,null,null,null,null,null,4,{"$f":"LOOKUP(Q117,D164:E166)","v":"RP"}]
[null,null,null,2,null,null,null,5,{"$f":"LOOKUP(Q118,D169:E171)","v":"Hetero"}]
[null,null,null,"A","NWFCP",null,null,6,{"$f":"LOOKUP(Q119,D174:E175)","v":"Lotic"}]
[null,null,null,"B","NEFCP",null,null,7,{"$f":"LOOKUP(Q120,D178:E179)","v":"Alluv"}]
[null,null,null,"C","PFCP"]
[null,null,null,"D","SR"]
[null,null,null,"E","Karst"]
[]
[null,null,null,4]
[null,null,null,"A","RP"]
[null,null,null,"B","SP"]
[null,null,null,"C","NP"]
[]
[null,null,null,5]
[null,null,null,"A","Hetero"]
[null,null,null,"B","Auto"]
[null,null,null,"C","Hetero/Auto"]
[]
[null,null,null,6]
[null,null,null,"A","Lotic"]
[null,null,null,"B","Lentic"]
[]
[null,null,null,7]
[null,null,null,"A","Alluv"]
[null,null,null,"B","Colluv"]

{"sheet":"Habitat_Types","index":8,"n_rows":40,"n_cols":5,"rows_kept":40,"cut":false,"hidden":true,"merged":[[2,2,2,3],[4,2,5,4]]}
[]
[null,null,"UMAM Location and Landscape Support"]
[null,null,"Habitat/Cover Type Descriptions",null,"Return to UMAM Landscape Effects Worksheet (click this text)"]
[]
[null,null,"NOTE: For mixed landuse/landcover types choose the \"Habitat/Cover Type\" that best describes and represents the dominant land or water use, or cover type in that area. "]
[]
[]
[]
[]
[null,null,"Habitat/Cover Type","Resistance Factor","Description"]
[null,null,"Native Natural Community",0,"Open water, upland, or wetland with minimal alterations dominated by native vegetation."]
[null,null,"Non-Native Vegetation/Community (low intensity)",0.05,"Open water, upland, or wetland with minimal alterations and/or minimal landuse intensity with a known presence of non-native vegetation or unnatural substrates."]
[null,null,"Non-Native Vegetation/Community (high intensity)",0.1,"Open water, upland, or wetland with minimal alterations and/or minimal landuse intensity but dominated by non-native vegetation or unnatural substrates."]
[null,null,"Pine Plantation",0.158,"Land devoted to silviculture with varying stocking densities."]
[null,null,"Recreational / open space  (low intensity)",0.183,"Areas of natural vegetation in cities maintained as nature parks, and undeveloped land that may be occupied by natural vegetation in an agricultural or urban landscape used primarily for passive recreation. Also includes unpaved access roads and motorized vehicle trails within natural areas, or minor boating channels accessible to  motorized vessels of less  than 26 feet."]
[null,null,"Transportation (low intensity)",0.183,"Unpaved access roads and motorized vehicle trails within natural areas, or low intensity boating channels accessible to  motorized vessels of less  than 26 feet."]
[null,null,"Woodland /Unimproved pasture (with livestock)",0.20200000000000001,"Native rangeland or native woodland pasture with presence of livestock."]
[null,null,"Improved pasture (low-intensity)",0.27700000000000002,"Areas where the natural vegetation has been altered by drainage, irrigation, etc., for the grazing of domestic animals.  Best Management Practices in place or evidence of sustainable management observed."]
[null,null,"Improved pasture (medium-intensity)",0.34100000000000003,"Areas where the natural vegetation has been altered by drainage, irrigation, etc.for the grazing of domestic animals.  Isolated or infrequent evidence of poor management observed (bank degradation/erosion, overgrazing, etc…)."]
[null,null,"Citrus",0.36799999999999999,"Areas devoted to the production of oranges and citrus in general."]
[null,null,"Improved pasture (high-intensity)",0.374,"Areas where the natural vegetation has been altered by drainage, irrigation, etc.for the grazing of domestic animals.  Frequent or pervasive evidence of poor management observed (bank degradation/erosion, overgrazing, etc…). "]
[null,null,"Recreational/open space (medium-intensity)",0.438,"Applies to ball parks, community sports venues not associated with institutions such as schools and universities, golf courses, and racetracks (horse, dog, car) used primarily for active recreation."]
[null,null,"Row crops",0.45400000000000001,"Areas devoted to the production of all types of vegetables usually grown in rows, whether producing or not."]
[null,null,"Single family residential  (low density)",0.69000000000000006,"Areas that are predominantly residential units with a density less than 10 units/ha."]
[null,null,"Recreational / open space  (high intensity)",0.69199999999999995,"Applies to stadiums not associated with institutions such as schools and universities, golf courses, and racetracks (horse, dog, car)."]
[null,null,"Agriculture  (high intensity)",0.7,"Dairy farms and large-scale cattle feed lots, chicken farms, and hog farms."]
[null,null,"Single family residential  (medium density)",0.747,"Areas that are predominantly residential units with a density between 10 and 20 units/ha."]
[null,null,"Single family residential (high density)",0.755,"Areas that are predominantly residential units with a density of more than 20 units/ha."]
[null,null,"Mobile home (medium density)",0.77,"Areas that are predominantly residential mobile homes with a density between 10 and 20 units/ha."]
[null,null,"Transportation (medium intensity)",0.78099999999999992,"Paved road with 2 lanes or less (includes shoulders), railroads, and canals used for transportation.  Moderate intensity boating channels accessible to motorized vessels greater than 26 feet, but less than 40 feet in length."]
[null,null,"Commercial (low intensity)",0.8,"Commercial strip."]
[null,null,"Institutional",0.80700000000000005,"Schools, universities, religious, military, medical and professional facilities, and government buildings."]
[null,null,"Transportation (high intensity)",0.82799999999999996,"Paved road with more than 2 lanes (includes shoulders), airports, railroad terminals, bus and truck terminals, port facilities, and auto parking facilities when not directly related to other land use.  Major boating channels accessible to motorized vessels greater than 40 feet in length."]
[null,null,"Mobile home (high density)",0.82899999999999996,"Areas that are predominantly residential mobile homes with a density greater than 20 units/ha."]
[null,null,"Industrial",0.83200000000000007,"Land uses include manufacturing, assembly or processing of materials/products and associated buildings and grounds. Also \nincludes extractive areas and mining operations, water supply plants, waste treatment facilities, and solid wastes disposal facilities."]
[null,null,"Multi-family residential (low rise)",0.86599999999999999,"Areas that are predominantly multi-family residential units such as condominiums and apartment buildings up to 2 stories."]
[null,null,"Commercial (high intensity)",0.91799999999999993,"Commercial mall with associated storage buildings and parking  lots, hotels, convention centers, and theme parks."]
[null,null,"Multi-family residential (high rise)",0.91899999999999993,"Areas that are predominantly multi-family residential units such as condominiums and apartment buildings with 3 or more\nstories."]
[null,null,"Central business district (average 2 stories)",0.94199999999999995,"Central business districts with an average of 2 stories. "]
[null,null,"Central business district (average 4 stories)",1,"Central business districts with an average of more than 2 stories. "]

{"sheet":"Upland_Preservation","index":9,"n_rows":157,"n_cols":22,"rows_kept":157,"cut":false,"hidden":true,"merged":[[76,9,77,9],[76,8,77,8],[146,2,153,21],[144,2,145,21],[90,10,91,20],[84,9,85,9],[84,8,85,8],[90,8,91,8],[90,9,91,9],[87,8,88,8],[81,3,81,20],[83,8,83,10],[87,10,88,20],[87,9,88,9],[99,4,100,4],[102,4,103,4],[118,10,119,21],[121,10,123,21],[128,3,129,21],[111,9,112,9],[111,8,112,8],[118,9,119,9],[118,8,119,8],[121,9,123,9],[121,8,123,8],[78,8,78,10],[73,10,74,20],[73,9,74,9],[73,8,74,8],[132,10,132,21],[139,8,139,10],[39,10,43,20],[39,9,41,9],[39,8,41,8],[102,10,102,21],[100,10,100,21],[56,8,57,8],[56,9,57,9],[55,8,55,10],[59,10,59,21],[53,3,53,20],[52,2,52,21],[61,10,61,21],[64,8,64,10],[56,10,57,20],[67,3,67,21],[70,9,71,9],[70,8,71,8],[33,3,33,20],[131,3,131,7],[131,8,131,10],[138,10,138,21],[133,4,134,4],[136,10,136,21],[136,4,137,4],[134,10,134,21],[98,10,98,21],[105,8,105,10],[95,3,95,21],[97,3,97,7],[97,8,97,10],[104,10,104,21],[92,8,92,10],[84,10,85,20],[50,8,50,10],[124,8,124,10],[127,3,127,21],[108,3,108,16],[110,3,110,7],[110,8,110,10],[69,8,69,10],[70,10,71,20],[1,1,2,15],[1,19,1,20],[1,21,1,22],[2,19,2,20],[2,21,2,22],[3,1,3,13],[11,15,11,19],[8,1,8,2],[8,3,8,12],[9,1,14,2],[9,3,14,12],[13,15,13,19],[14,14,15,14],[14,15,15,20],[5,15,5,19],[5,1,5,2],[5,3,5,12],[6,15,6,19],[6,3,6,12],[36,10,36,21],[37,4,39,4],[44,10,46,20],[10,15,10,19],[9,15,9,19],[8,15,8,19],[7,15,7,19],[156,20,156,21],[76,10,77,20],[116,4,117,4],[114,10,116,21],[114,9,116,9],[114,8,116,8],[12,15,12,19],[38,10,38,21],[35,8,35,10],[16,13,16,15],[18,3,18,4],[19,3,20,20],[22,3,23,20],[26,3,26,16],[28,3,30,20],[48,10,48,21],[111,10,112,21]]}
[]
[null,"Preservation Assessment (Uplands)",null,null,null,null,null,null,null,null,null,null,null,null,null,null,null,null,null,"Project:",null,{"$f":"Part_I!D8","v":"(Project Name)"}]
[null,null,null,null,null,null,null,null,null,null,null,null,null,null,null,null,null,null,null,"Assessment Area:",null,{"$f":"Part_I!P8","v":"(Assement Area)"}]
[null,"Vulnerability Adjustment Factor (Section 62-345.500 F.A.C.)"]
[]
[null,"Reference:",null,{"$f":"Part_I!L44","v":"(Type Here)"},null,null,null,null,null,null,null,null,null,"Question","Selection","Description"]
[null,null,null,{"$f":"Part1_Data!J20","v":"Wetland or Other Surface Water"},null,null,null,null,null,null,null,null,null,1,{"$f":"E49","v":0},"Local, State, and Federal Protection (Uplands)"]
[null,null,null,null,null,null,null,null,null,null,null,null,null,2,{"$f":"E62","v":0},"Other Existing Legal Protections"]
[null,"Application#",null,{"$f":"Part_I!J8","v":"(Application Number)"},null,null,null,null,null,null,null,null,null,3,{"$f":"E77","v":0},"Likelihood of Upland Alteration"]
[null,"Activity:",null,{"$f":"Part1_Data!E5","v":"Mitigation Assessment (Enhancement)"},null,null,null,null,null,null,null,null,null,4,{"$f":"E91","v":0},"Likelihood of Accessibility "]
[null,null,null,null,null,null,null,null,null,null,null,null,null,5,{"$f":"E105","v":0},"Habitat Scarcity"]
[null,null,null,null,null,null,null,null,null,null,null,null,null,6,{"$f":"E119","v":0},"Vulnerable Species"]
[null,null,null,null,null,null,null,null,null,null,null,null,null,7,{"$f":"E139","v":0},"Proximity to Areas of Significance"]
[]
[null,null,null,null,null,null,null,null,null,null,null,null,null,null,{"$f":"SUM(O7:O14)","v":0},"Preservation Adjustment Factor"]
[]
[]
[]
[null,null,null,"Instructions"]
[null,null,null,"Please respond to the below questions to complete calculation of theP vatAdjustment Factor for Uplands."]
[]
[]
[null,null,null,"Once complete, the Vulnerability Adjustment Factor will be shown above."]
[]
[]
[]
[null,null,null,"Upland Vulnerability"]
[]
[null,null,null,"Part I of this form indicates that this assessment area is an upland.  Depending on its geographic location and other factors, uplands may be subject to varying levels of legal protection and be vulnerable to exempt activities.  "]
[]
[]
[]
[]
[null,null,1,"Please indicate the upland's level of local, state, and federal regulatory protection by selecting the best corresponding option below. "]
[]
[null,null,null,null,"Selection",null,null,null,"Least Vulnerable"]
[null,null,null,null,"A",null,null,null,"A","(0.000)","The assessment area is an upland that is wholly subject to protection or  preservation by local, state, or federal regulations."]
[null,null,null,null,"(Category)"]
[null,null,null,null,null,null,null,null,"B","(0.300)","The assessment area is an upland that is partially subject to local, state, or federal preservation or protection."]
[null,null,null,null,null,null,null,null,null,null,"Examples:  The assessment area is located within a special protection area, such as a Riparian Habitat Protection Zone, is designated as federally protected Critical Habitat for fish and wildlife, is part of required buffer, or is subject to preservation or special protection measures as required by state or federal fish and wildlife regulations.  "]
[]
[]
[]
[]
[null,null,null,null,null,null,null,null,null,null,"Examples: Local wetland protection ordinances and upland buffer ordinances.  Only protections over the land area itself should be included in this consideration.  Species or organism specific protections, such as tree ordinances or wildlife protection ordinances, rules, or laws should not be included."]
[]
[]
[]
[null,null,null,null,{"$f":"LOOKUP(E37,DATA_1!M81:O83)","v":0},null,null,null,"C","(0.599)","The assessment area is an upland that is not subject to local, state, or federal protection or preservation."]
[]
[null,null,null,null,null,null,null,null,"Most Vulnerable"]
[]
[]
[null,null,2,"Please indicate the upland's Other Existing Legal Protections by selecting the best corresponding option below. "]
[]
[null,null,null,null,"Selection",null,null,null,"Least Vulnerable"]
[null,null,null,null,"A",null,null,null,"A","(0.000)","Any alteration of the land surface or vegetation is prohibited; the area is already protected by a conservation easement, deed restriction, or other protection equivalent to a conservation easement."]
[null,null,null,null,"(Category)"]
[]
[null,null,null,null,null,null,null,null,"B","(0.050)","Alteration for passive recreation purposes is permissible, but other activities are prohibited. "]
[]
[null,null,null,null,{"$f":"LOOKUP(E57,DATA_1!M100:O103)","v":0},null,null,null,"C","(0.100)","Restrictions are limited to the land surface, but allow for subsurface oil/gas or mineral extraction."]
[]
[null,null,null,null,null,null,null,null,"D","(0.200)","The assessment area is not subject to existing legal protection  from alteration. "]
[null,null,null,null,null,null,null,null,"Most Vulnerable"]
[]
[]
[null,null,3,"Please indicate the  Likelihood of Upland Alteration based on current and documented/proposed future land use by selecting the best corresponding option below."]
[]
[null,null,null,null,"Selection",null,null,null,"Land Alteration Unlikely"]
[null,null,null,null,"A",null,null,null,"A","(0.000)","Land alterations are legal and permissible; however, active land use trends surronding the assessment area are NOT consistent with those permissible within the assessment area. "]
[null,null,null,null,"(Category)"]
[]
[null,null,null,null,null,null,null,null,"B","(0.012)","Land alterations are legal and permissible AND active land use trends surronding the assessment area are similar to those permissible within the assessment area."]
[]
[]
[null,null,null,null,{"$f":"LOOKUP(E71,DATA_1!M96:O98)","v":0},null,null,null,"C","(0.025)","Land alterations are not restricted by Federal, State or Local regulatory protection and have already occurred in the area surronding the assessment area."]
[]
[null,null,null,null,null,null,null,null,"Land Alteration Likely"]
[]
[]
[null,null,4,"Please indicate the  Likelihood of Accessibility for permissible and legal upland alteration by selecting the best corresponding option below."]
[]
[null,null,null,null,"Selection",null,null,null,"Least Accessible"]
[null,null,null,null,"A",null,null,null,"A","(0.000)","The assessment area is located such that it is currently inaccessible OR construction of roads or corridors necessary to access the land would require authorization to impact wetlands or other surface waters."]
[null,null,null,null,"(Category)"]
[]
[null,null,null,null,null,null,null,null,"B","(0.012)","Roads or corridors necessary to alter the assessment area can be legally constructed without authorizations to impact wetlands or other surface waters; but, a permit may be required.  "]
[]
[]
[null,null,null,null,{"$f":"LOOKUP(E85,DATA_1!M96:O98)","v":0},null,null,null,"C","(0.025)","Roads or corridors necessary to access and alter the assessment area currently exist."]
[]
[null,null,null,null,null,null,null,null,"Most Accessible"]
[]
[]
[null,null,5,"Community Type Regional Scarcity, Rarity, and Vulnerability"]
[]
[null,null,null,"Selection",null,null,null,null,"Most Vulnerable"]
[null,null,null,null,"D",null,null,null,"A","(0.050)","The community type is regionally imperiled, critically imperiled, or exceedingly rare."]
[null,null,null,null,"(Category)"]
[null,null,null,null,null,null,null,null,"B","(0.030)","The community type is regionally very rare"]
[]
[null,null,null,null,"Selection",null,null,null,"C","(0.020)","The community type is regionally apparently secure"]
[]
[null,null,null,null,{"$f":"LOOKUP(E99,DATA_1!M100:N103)","v":0},null,null,null,"D","(0.000)","The community type is regionally demonstrably secure"]
[null,null,null,null,null,null,null,null,"Least Vulnerable"]
[]
[]
[null,null,6,"Support Provided to Vulnerable or at Risk Wetland Dependent Species."]
[]
[null,null,null,"Selection",null,null,null,null,"Most Vulnerable"]
[null,null,null,null,"D",null,null,null,"A","(0.050)","There is documented evidence that the  assessment area is being utilized by wetland dependent species that are designated as Endangered, Threatened, Imperiled, Species of Special Concern,  or other special protective designation."]
[null,null,null,null,"(Category)"]
[]
[null,null,null,null,null,null,null,null,"B","(0.030)","There is not documented evidence that the  assessment area is being utilized by wetland dependent species that are designated as Endangered, Threatened, Imperiled, Species of Special Concern,  or other special protective designation; however, use by such species is likely."]
[]
[null,null,null,null,"Selection"]
[]
[null,null,null,null,{"$f":"LOOKUP(E112,DATA_1!M100:N103)","v":0},null,null,null,"C","(0.020)","It is unknown if the assessment area is being utilized by wetland dependent species that are designated as Endangered, Threatened, Imperiled, Species of Special Concern,  or other special protective designation."]
[]
[]
[null,null,null,null,null,null,null,null,"D","(0.000)","There is not documented evidence that the  assessment area is being utilized by wetland dependent species that are designated as Endangered, Threatened, Imperiled, Species of Special Concern,  or other special protective designation and use by such species is unlikely or rare."]
[]
[]
[null,null,null,null,null,null,null,null,"Least Vulnerable"]
[]
[]
[null,null,7,"Proximity and Connectivity to Areas of National, State, or Regional Ecological Significance"]
[null,null,null,"Examples: National Marine Sanctuaries, National Seashores, National and State Parks, Forests, Refuges and Wildlife Management Areas, or other regionally important protected lands lands such as, those acquired or to be acquired through governmental or non-profit land acquisition programs for environmental conservation."]
[]
[]
[null,null,null,"Selection",null,null,null,null,"Most Connected"]
[null,null,null,null,"D",null,null,null,"A","(0.050)","Unobstructed connectivity to areas of significance."]
[null,null,null,null,"(Category)"]
[null,null,null,null,null,null,null,null,"B","(0.030)","Connectivity to areas of significance is minimally impeded by minor roads, agricultural operations, rural residences, or similar land uses."]
[]
[null,null,null,null,"Selection",null,null,null,"C","(0.020)","Connectivity to areas of significance is moderately impeded by highways, dense residential areas, commercial districts, or similar land uses."]
[]
[null,null,null,null,{"$f":"LOOKUP(E133,DATA_1!M100:N103)","v":0},null,null,null,"D","(0.000)","Connectivity to areas of significance is heavily impeded by highways, dense residential areas, commercial districts, or similar land uses."]
[null,null,null,null,null,null,null,null,"Least Connected"]
[]
[]
[]
[]
[null,null,"Please use the space below to provide additional detail or comments in support of scores or values indicated above."]
[]
[]
[]
[]
[]
[]
[]
[]
[]
[]
[]
[null,null,null,null,null,null,null,null,null,null,null,null,null,null,null,null,null,null,null,null,"DRAFT DOCUMENT"]

{"sheet":"WOSW_Preservation","index":10,"n_rows":138,"n_cols":22,"rows_kept":138,"cut":false,"hidden":true,"merged":[[36,10,37,21],[36,8,37,8],[60,3,61,20],[64,10,66,21],[64,9,66,9],[64,8,66,8],[102,9,104,9],[102,8,104,8],[99,9,100,9],[99,8,100,8],[92,9,93,9],[92,8,93,8],[78,3,78,7],[10,1,12,2],[49,10,49,21],[47,10,47,21],[51,10,52,21],[78,8,78,10],[39,10,39,21],[56,8,56,10],[35,8,35,10],[73,8,73,10],[63,8,63,10],[68,8,69,8],[6,15,6,20],[10,3,12,12],[32,3,33,21],[26,3,30,20],[4,13,5,13],[4,14,5,14],[4,15,5,20],[20,3,21,20],[14,13,14,15],[12,14,13,14],[12,15,13,20],[16,3,16,4],[17,3,18,20],[8,15,8,20],[7,15,7,20],[37,4,40,4],[58,2,58,21],[41,10,41,21],[36,9,37,9],[43,10,43,21],[54,10,55,21],[54,9,55,9],[54,8,55,8],[45,10,45,21],[51,9,52,9],[51,8,52,8],[95,10,97,21],[91,8,91,10],[68,9,69,9],[68,10,69,20],[71,10,72,20],[71,9,72,9],[71,8,72,8],[116,4,117,4],[10,15,10,20],[9,15,9,20],[1,21,1,22],[2,19,2,20],[2,21,2,22],[1,1,2,15],[3,1,3,13],[5,1,5,2],[5,3,5,12],[6,3,6,12],[9,1,9,2],[9,3,9,12],[91,3,91,7],[89,3,89,16],[93,4,95,4],[113,4,114,4],[1,19,1,20],[79,10,79,21],[81,10,81,21],[83,10,83,21],[85,10,85,21],[80,4,81,4],[83,4,84,4],[43,4,44,4],[24,3,24,16],[76,3,76,21],[86,8,86,10],[95,9,97,9],[95,8,97,8],[97,4,99,4],[109,3,110,21],[92,10,93,21],[99,10,100,21],[102,10,104,21],[137,20,137,21],[125,2,126,21],[118,10,118,21],[127,2,134,21],[116,10,116,21],[114,10,114,21],[112,10,112,21],[105,8,105,10],[108,3,108,21],[111,3,111,7],[111,8,111,10],[119,8,119,10]]}
[]
[null,"Preservation Assessment (Wetlands and Other Surface Waters)",null,null,null,null,null,null,null,null,null,null,null,null,null,null,null,null,null,"Project:",null,{"$f":"Part_I!D8","v":"(Project Name)"}]
[null,null,null,null,null,null,null,null,null,null,null,null,null,null,null,null,null,null,null,"Assessment Area:",null,{"$f":"Part_I!P8","v":"(Assement Area)"}]
[null,"Preservation Adjustment Factor (Section 62-345.500 F.A.C.)"]
[null,null,null,null,null,null,null,null,null,null,null,null,null,"Question","Selection","Description"]
[null,"Reference:",null,{"$f":"Part_I!L44","v":"(Type Here)"}]
[null,null,null,{"$f":"Part1_Data!J20","v":"Wetland or Other Surface Water"},null,null,null,null,null,null,null,null,null,1,{"$f":"E46","v":0},"Exempt Activities"]
[null,null,null,null,null,null,null,null,null,null,null,null,null,2,{"$f":"E72","v":0},"Likelihood of Alteration"]
[null,null,null,null,null,null,null,null,null,null,null,null,null,3,{"$f":"E86","v":0},"Habitat Scarcity"]
[null,"Application#",null,{"$f":"Part_I!J8","v":"(Application Number)"},null,null,null,null,null,null,null,null,null,4,{"$f":"E101","v":0},"Vulnerable Species"]
[null,"Activity:",null,{"$f":"Part1_Data!E5","v":"Mitigation Assessment (Enhancement)"},null,null,null,null,null,null,null,null,null,5,{"$f":"E119","v":0},"Proximity to Areas of Significance"]
[]
[null,null,null,null,null,null,null,null,null,null,null,null,null,null,{"$f":"SUM(O7:O11)","v":0},"Preservation Adjustment Factor"]
[]
[]
[]
[null,null,null,"Instructions"]
[null,null,null,"Please respond to the questions below to determine the Preservation Adjustment Factor."]
[]
[]
[null,null,null,"Once complete, the Preservation Adjustment Factor will be shown above."]
[]
[]
[]
[null,null,null,"State and Federal Regulatory Protection"]
[]
[null,null,null,"Part I of this form indicates that this assessment area is a wetland or other surface water.  Wetlands and other surface waters are generally subject to state and federal protections and are therefore presumed to have reduced vulnerability to future development or loss relative to uplands."]
[]
[]
[]
[]
[]
[null,null,1,"Please indicate the Wetland or Other Surface Water's level of vulnerability due to exempt activities by selecting the category most comparable to the community type and location proposed for Preservation."]
[]
[]
[null,null,null,null,"Selection",null,null,null,"Least Vulnerable"]
[null,null,null,null,"A",null,null,null,"A","(0.000)","It is a wetland or other surface water that is wholly protected or minimally vulnerable to exempt activities due to its type, location, or inaccessibility."]
[null,null,null,null,"(Category)"]
[]
[null,null,null,null,null,null,null,null,"B","(0.100)","It is a wetland or surface water community type neither subject to, or suitable for agriculture or silvaculture."]
[]
[null,null,null,null,null,null,null,null,"C","(0.200)","It consists of a mangrove forest located beyond the riparian edge."]
[]
[null,null,null,null,"Selection",null,null,null,"D","(0.300)","It is riparian to a navigable waterbody (mangrove or other type), or it is a submerged or flowing habitat."]
[]
[null,null,null,null,{"$f":"LOOKUP(E37,DATA_1!M81:N89)","v":0},null,null,null,"E","(0.400)","It is a wetland or surface water community type not located on a property with active agriculture or silvaculture."]
[]
[null,null,null,null,null,null,null,null,"F","(0.450)","It is a forested wetland community type subject to, or suitable for, silvaculture."]
[]
[null,null,null,null,null,null,null,null,"G","(0.500)","It is a wetland or other surface water located on a property that is designated for, but not currently subject to agriculture."]
[]
[null,null,null,null,null,null,null,null,"H","(0.550)","It is a wetland or other surface water located on a property with active agricultural operations, or It is a wetland or other surface water with an areal extent less than or equal to 0.5 acres."]
[]
[]
[null,null,null,null,null,null,null,null,"I","(0.599)","It is a wetland or other surface water type not comparable to those described described above that will almost certainly be subject to exempt activities within the next ten years.  "]
[]
[null,null,null,null,null,null,null,null,"Most Vulnerable"]
[]
[]
[]
[null,null,2,"Please indicate the  Likelihood of Wetland or Other Surface Water Alteration based on current and documented future surrounding land use by selecting the best corresponding option below."]
[]
[]
[null,null,null,null,"Selection",null,null,null,"Land Alteration Unlikely"]
[null,null,null,null,"A",null,null,null,"A","(0.000)","Active land use trends surrounding the assessment area are NOT consistent with those permissible or exempt within the assessment area, or access to undertake such activities would require authorization to impact wetlands or other surface waters."]
[null,null,null,null,"(Category)"]
[]
[]
[null,null,null,null,null,null,null,null,"B","(0.125)","Active land use trends surrounding the assessment area are similar to those permissible or exempt within the assessment area and site access would not require authorization to impact wetlands or other surface waters."]
[]
[]
[null,null,null,null,{"$f":"LOOKUP(E65,DATA_1!M91:N93)","v":0},null,null,null,"C","(0.250)","Land and surface water alterations have already occurred within the assessment area or on properties located in the surrounding area."]
[]
[null,null,null,null,null,null,null,null,"Land Alteration Likely"]
[]
[]
[null,null,3,"Community Type Regional Scarcity, Rarity, and Vulnerability"]
[]
[null,null,null,"Selection",null,null,null,null,"Most Vulnerable"]
[null,null,null,null,"D",null,null,null,"A","(0.050)","The community type is regionally imperiled, critically imperiled, or exceedingly rare."]
[null,null,null,null,"(Category)"]
[null,null,null,null,null,null,null,null,"B","(0.030)","The community type is regionally very rare"]
[]
[null,null,null,null,"Selection",null,null,null,"C","(0.020)","The community type is regionally apparently secure"]
[]
[null,null,null,null,{"$f":"LOOKUP(E80,DATA_1!M100:N103)","v":0},null,null,null,"D","(0.000)","The community type is regionally demonstrably secure"]
[null,null,null,null,null,null,null,null,"Least Vulnerable"]
[]
[]
[null,null,4,"Support Provided to Vulnerable or at Risk Wetland Dependent Species."]
[]
[null,null,null,"Selection",null,null,null,null,"Most Vulnerable"]
[null,null,null,null,"D",null,null,null,"A","(0.050)","There is documented evidence that the  assessment area is being utilized by wetland dependent species that are designated as Endangered, Threatened, Imperiled, Species of Special Concern,  or other special protective designation."]
[null,null,null,null,"(Category)"]
[]
[null,null,null,null,null,null,null,null,"B","(0.030)","There is not documented evidence that the  assessment area is being utilized by wetland dependent species that are designated as Endangered, Threatened, Imperiled, Species of Special Concern,  or other special protective designation; however, use by such species is likely."]
[]
[null,null,null,null,"Selection"]
[]
[null,null,null,null,null,null,null,null,"C","(0.020)","It is unknown if the assessment area is being utilized by wetland dependent species that are designated as Endangered, Threatened, Imperiled, Species of Special Concern,  or other special protective designation."]
[null,null,null,null,{"$f":"LOOKUP(E93,DATA_1!M100:N103)","v":0}]
[]
[null,null,null,null,null,null,null,null,"D","(0.000)","There is not documented evidence that the  assessment area is being utilized by wetland dependent species that are designated as Endangered, Threatened, Imperiled, Species of Special Concern,  or other special protective designation and use by such species is unlikely or rare."]
[]
[]
[null,null,null,null,null,null,null,null,"Least Vulnerable"]
[]
[]
[null,null,5,"Proximity and Connectivity to Areas of National, State, or Regional Ecological Significance"]
[null,null,null,"Examples: National Marine Sanctuaries, National Seashores, National and State Parks, Forests, Refuges and Wildlife Management Areas, or other regionally important protected lands lands, such as those acquired or to be acquired through governmental or non-profit land acquisition programs for environmental conservation."]
[]
[null,null,null,"Selection",null,null,null,null,"Most Connected"]
[null,null,null,null,"D",null,null,null,"A","(0.050)","Unobstructed connectivity to areas of significance."]
[null,null,null,null,"(Category)"]
[null,null,null,null,null,null,null,null,"B","(0.030)","Connectivity to areas of significance is minimally impeded by minor roads, agricultural operations, rural residences, or similar land uses."]
[]
[null,null,null,null,"Selection",null,null,null,"C","(0.020)","Connectivity to areas of significance is moderately impeded by highways, dense residential areas, commercial districts, or similar land uses."]
[]
[null,null,null,null,{"$f":"LOOKUP(E113,DATA_1!M100:N103)","v":0},null,null,null,"D","(0.000)","Connectivity to areas of significance is heavily impeded by highways, dense residential areas, commercial districts, or similar land uses."]
[null,null,null,null,null,null,null,null,"Least Connected"]
[]
[]
[]
[]
[]
[null,null,"Please use the space below to provide additional detail or comments in support of scores or values indicated above."]
[]
[null,null,"(Type Here)"]
[]
[]
[]
[]
[]
[]
[]
[]
[]
[null,null,null,null,null,null,null,null,null,null,null,null,null,null,null,null,null,null,null,null,"DRAFT DOCUMENT"]

{"sheet":"TimeLag_Risk","index":11,"n_rows":253,"n_cols":22,"rows_kept":253,"cut":false,"hidden":false,"merged":[[7,21,7,23],[252,21,252,23],[241,2,242,21],[243,2,250,24],[236,8,237,10],[228,6,229,6],[228,7,229,7],[228,9,229,23],[231,6,232,6],[231,7,232,7],[231,9,232,23],[237,2,237,3],[236,5,237,5],[236,6,237,7],[236,2,236,3],[230,4,231,4],[216,6,218,6],[216,9,218,23],[221,4,222,23],[225,6,226,6],[225,7,226,7],[225,9,226,23],[206,4,207,23],[210,6,211,6],[210,9,211,23],[213,6,214,6],[213,9,214,23],[180,6,181,6],[180,7,181,7],[180,9,181,23],[183,6,184,6],[183,7,184,7],[183,9,184,23],[169,6,170,6],[169,7,170,7],[169,9,170,23],[173,4,174,23],[177,6,178,6],[177,7,178,7],[177,9,178,23],[158,4,159,23],[162,6,163,6],[162,7,163,7],[162,9,163,23],[165,6,167,6],[165,7,167,7],[165,9,167,23],[150,6,152,6],[150,7,152,7],[150,9,152,23],[154,6,155,6],[154,7,155,7],[154,9,155,23],[124,4,125,23],[128,6,130,6],[128,7,130,7],[128,9,130,23],[142,4,143,23],[146,6,148,6],[146,7,148,7],[146,9,148,23],[132,6,133,6],[132,7,133,7],[132,9,133,23],[135,6,138,6],[135,7,138,7],[135,9,138,23],[120,6,121,6],[120,7,121,7],[120,9,121,23],[112,6,114,6],[112,7,114,7],[112,9,114,23],[116,6,118,6],[116,7,118,7],[116,9,118,23],[104,6,105,6],[104,7,105,7],[104,9,105,23],[59,7,60,7],[59,6,60,6],[63,4,65,23],[108,4,109,23],[94,4,95,23],[98,6,99,6],[98,7,99,7],[98,9,99,23],[101,6,102,6],[101,7,102,7],[101,9,102,23],[78,4,79,23],[82,9,83,23],[85,6,87,6],[85,7,87,7],[85,9,87,23],[89,9,90,23],[82,6,83,6],[82,7,83,7],[89,6,90,6],[89,7,90,7],[74,9,75,23],[56,7,57,7],[56,6,57,6],[71,6,72,6],[71,7,72,7],[68,6,69,6],[68,7,69,7],[56,9,57,23],[59,9,60,23],[1,18,1,23],[2,18,2,23],[10,14,10,17],[93,2,93,23],[53,9,54,23],[49,4,50,23],[53,7,54,7],[53,6,54,6],[8,2,8,3],[8,4,8,9],[9,2,10,3],[9,4,10,9],[5,2,5,3],[5,4,5,9],[6,4,6,9],[4,12,5,14],[4,15,5,16],[38,2,39,9],[12,2,13,9],[33,7,33,9],[32,7,32,9],[31,7,31,9],[30,7,30,9],[29,7,29,9],[8,15,9,16],[8,12,9,14],[41,3,41,4],[41,5,44,21],[46,5,46,21],[74,6,75,6],[74,7,75,7],[216,7,218,7],[213,7,214,7],[210,7,211,7],[187,4,189,23],[192,6,194,6],[192,7,194,7],[192,9,194,23],[215,4,216,4],[196,6,198,6],[196,7,198,7],[196,9,198,23],[200,6,203,6],[200,7,203,7],[200,9,203,23],[28,7,28,9],[68,9,69,23],[71,9,72,23],[1,2,2,14],[38,10,39,24],[3,2,3,11],[18,6,18,9],[15,5,15,22],[20,11,23,21],[17,6,17,9],[25,11,31,21],[16,13,17,21],[12,10,13,24],[27,7,27,9],[26,7,26,9],[25,7,25,9],[24,7,24,9],[23,7,23,9],[22,7,22,9],[21,7,21,9],[20,7,20,9],[19,7,19,9],[1,16,1,17],[2,16,2,17],[16,11,16,12],[35,7,35,9],[34,7,34,9]]}
[]
[null,null,"Time Lag and Risk Factor Determination",null,null,null,null,null,null,null,null,null,null,null,null,null,"Project:",null,{"$f":"Part_I!D8","v":"(Project Name)"}]
[null,null,null,null,null,null,null,null,null,null,null,null,null,null,null,null,"Assessment Area:",null,{"$f":"Part_I!P8","v":"(Assement Area)"}]
[null,null,"Time Lag (Section 62-345.500 F.A.C.) and  Risk Factor (Section 62-345.500 F.A.C.)"]
[null,null,null,null,null,null,null,null,null,null,null,null,"Time Lag Factor:",null,null,{"$f":"E22","v":1}]
[null,null,"Reference:",null,{"$f":"Part_I!L44","v":"(Type Here)"}]
[null,null,null,null,{"$f":"Part1_Data!J20","v":"Wetland or Other Surface Water"}]
[null,null,null,null,null,null,null,null,null,null,null,null,null,null,null,null,null,null,null,null,null,"DRAFT DOCUMENT"]
[null,null,"Application#",null,{"$f":"Part_I!J8","v":"(Application Number)"},null,null,null,null,null,null,null,"Risk Factor:",null,null,{"$f":"I237","v":1}]
[null,null,"Activity:",null,{"$f":"Part1_Data!E5","v":"Mitigation Assessment (Enhancement)"}]
[null,null,null,null,null,null,null,null,null,null,null,null,null,null,"(Calculation shown at bottom of page)"]
[]
[null,null,"Time Lag Factor Determination",null,null,null,null,null,null,null,"Section 62-345 (?) F.A.C."]
[]
[]
[]
[null,null,null,null,null,null,null,null,null,null,null,"INSTRUCTIONS:",null,"Select the best corresponding Time Lag Factor from using Table 1 and the dropdown box provided at left."]
[null,null,null,null,null,null,"Table 1"]
[null,null,null,null,null,null,"Time Lag Factor"]
[null,null,null,null,null,null,"Years","Factor"]
[null,null,null,null,"Selection",null,"< or = 1",1,null,null,null,"The “Year” column in Table 1 represents the number of years between the time the wetland impacts are anticipated to occur and the time when the mitigation is expected to fully offset the impacts, based on reasonable scientific judgment, proposed mitigation activities, and the site specific conditions."]
[null,null,null,null,1,null,2,1.03]
[null,null,null,null,null,null,3,1.07]
[null,null,null,null,null,null,4,1.1000000000000001]
[null,null,null,null,null,null,5,1.1399999999999999]
[null,null,null,null,null,null,"6-10",1.25,null,null,null,"If the assessment area is located within a mitigation bank or Regional Offsite Mitigation Area (ROMA), the \"Year\" column in Table 1 means the number of years between when that mitigation bank or Regional Offsite Mitigation Area receives its first credit release and the time when the site is anticipated to achieve the outcome that was scored in Part II.  There is no time lag if the mitigation bank meets the Part II outcome scores prior to the release of any credits "]
[null,null,null,null,null,null,"11-15",1.46]
[null,null,null,null,null,null,"16-20",1.68]
[null,null,null,null,null,null,"21-25",1.92]
[null,null,null,null,null,null,"26-30",2.1800000000000002]
[null,null,null,null,null,null,"31-35",2.4500000000000002]
[null,null,null,null,null,null,"36-40",2.73]
[null,null,null,null,null,null,"41-45",3.03]
[null,null,null,null,null,null,"46-50",3.34]
[null,null,null,null,null,null,"51-55",3.65]
[null,null,null,null,null,null,">55",3.91]
[]
[]
[null,null,"Risk Factor Determination",null,null,null,null,null,null,null,"Section 62-345 (?) F.A.C."]
[]
[]
[null,null,null,"INSTRUCTIONS:",null,"For each of the below Risk Factor considerations, select a value on the scale from one to three (1.000 - 3.000) that best corresponds to the provided examples and descriptions. If project-specific circumstances do not directly correspond to the provided examples and descriptions, half-point increments (0.5) may be used to produce a better match to project-specific criteria.  "]
[]
[]
[]
[]
[null,null,null,null,null,"Once completed, the final Risk Factor will be displayed at the top and bottom of this page."]
[]
[]
[null,null,1,null,"What is the potential for lands or waters within a one-half mile distance of the assessment area to be converted to a more intensive use or to cause unanticipated adverse secondary impacts to the assessment area?   Please also consider the probability of alterations occurring through exempt activities."]
[]
[]
[null,null,null,null,null,null,"Risk"]
[null,null,null,null,"Selection",null,"(Low)",1,null,"All lands and waters within a half-mile radius will be included in a conservation easement by the permittee, or are already preserved or protected as part of a conservation easement or publicly owned resource."]
[null,null,null,null,1]
[]
[null,null,null,null,null,null,"(Medium)",2,null,"Surrounding lands or waters are not wholly controlled or protected; but, potential sources of secondary impacts or exempt activities to these areas are unlikely based on review of dominant land and water uses beyond the one-half mile radius."]
[]
[]
[null,null,null,null,null,null,"(High)",3,null,"Surrounding lands or waters are not wholly controlled or protected and potential sources of secondary impacts or exempt activities to these areas have been identified."]
[]
[]
[]
[null,null,2,null,"What is the potential for hydrologic connectivity and exchange between the assessment area and downstream, upstream, or other hydrologically dependent areas of natural habitat to be altered, fractured, severed, or reduced?  Hydrologic connectivity and exchange should include consideration of water and other surface water support functions provided by uplands."]
[]
[]
[]
[null,null,null,null,null,null,"Risk"]
[null,null,null,null,"Selection",null,"(Low)",1,null,"Hydrologic connectivity is wholly protected by government or controlled by the applicant who is willing to accept permit condition on uses.  "]
[null,null,null,null,1]
[]
[null,null,null,null,null,null,"(Medium)",2,null,"Hydrologic connectivity is not wholly protected by the government or by the applicant;  but, sources of potential alteration have not been identified. "]
[]
[]
[null,null,null,null,null,null,"(High)",3,null,"Hydrologic connectivity is not wholly protected by the government or by the applicant, and sources of potential alteration have identified. "]
[]
[]
[]
[null,null,3,null,"Is the size or scale of the mitigation site sufficient to provide sufficient core habitat area for fish and wildlife?"]
[]
[]
[null,null,null,null,null,null,"Risk"]
[null,null,null,null,"Selection",null,"(Low)",1,null,"The assessment area is large, or part of a complex of preserved public and/ or private lands or waters that is large enough to withstand offsite habitat fragmentation or disturbance."]
[null,null,null,null,1]
[]
[null,null,null,null,null,null,"(Medium)",2,null,"The  assessment area is not large enough or part of a complex of preserved public and/ or private lands and waters sufficient to protect fish and wildlife from offsite habitat fragmentation; but, benefits to fish and wildlife would not be significantly affected by low levels of offsite fragmentation or disturbance."]
[]
[]
[]
[null,null,null,null,null,null,"(High)",3,null,"The assessment area is reliant on offsite resources to support onsite fish and wildlife; habitat fragmentation located offsite would likely reduce benefits provided to fish and wildlife within the assessment area."]
[]
[]
[]
[null,null,{"$f":"IF(Part1_Data!I20=2,\"***NOTE: Part I of this worksheet indicates that this is an upland assessment area; Water Environment related Risk Questions# 4 - 6 are not shown.\",\" \")","v":" "}]
[null,null,4,null,"Will the water environment within the assessment area rely upon artificial means or complex hydrology to be viable?"]
[]
[]
[null,null,null,null,null,null,"Risk"]
[null,null,null,null,"Selection",null,"(Low)",1,null,"The water environment will be controlled through entirely natural means. Water source is surface water gravity flow over natural areas or is tidally driven."]
[null,null,null,null,1]
[]
[null,null,null,null,null,null,"(Medium)",2,null,"Passive (gravity based) control structures are proposed, or modifications to existing passive structures are required to maintain water levels, exchange rates, and water energy.  A single or combination of sources is proposed."]
[]
[]
[null,null,null,null,null,null,"(High)",3,null,"Water supply is artificial or manipulated, such as with pumps, diversion and impoundment, irrigation flows.  Or, the water supply will be dependent on multiple  or complex sources (e.g., seepage slopes)."]
[]
[]
[]
[null,null,5,null,"Is the mitigation design supported by ground and surface water and topographic or bathymetric conditions, using  proven methodologies which are well documented with supporting hydrologic analyses commensurate with complexity?"]
[]
[]
[null,null,null,null,null,null,"Risk"]
[null,null,null,null,"Selection",null,"(Low)",1,null,"Hydrologic conditions are well documented to provide a reliable source of water supply to the assessment area, using methods  with demonstrated success at other sites. OR the mitigation action for this AA is preservation, OR no hydrologic alterations are proposed."]
[]
[null,null,null,null,1]
[]
[null,null,null,null,null,null,"(Medium)",2,null,"The proposed actions require soil or substrate amendments, vertical hydrologic barriers, or similar interventions to achieve planned hydrologic conditions, but are supported by sufficiently detailed hydrologic analyses using proven methods."]
[]
[]
[]
[null,null,null,null,null,null,"(High)",3,null,"Proposed interventions rely on undocumented soil, or topographic or bathymetric conditions, or interventions are supported by only limited hydrologic analyses.  Or, proposed interventions  are dependent on poorly demonstrated methods."]
[]
[]
[]
[null,null,6,null,"Is the contributing area to the assessment area under sufficient protection and control to provide a water environment (e.g. water quantity and quality) supportive the planned mitigation?"]
[]
[]
[null,null,null,null,null,null,"Risk"]
[null,null,null,null,"Selection",null,"(Low)",1,null,"The upslope contributing area necessary for the mitigation site is under sufficient control or protection to sustain the mitigation area; to include the ground and surface water sub-basins necessary to provide the needed water supply. If hydrology is tidal driven, the surrounding area necessary to ensure water quantity and quality is under sufficient control or protection."]
[]
[null,null,null,null,1]
[]
[null,null,null,null,null,null,"(Medium)",2,null,"The majority, but not all, of the upslope  contributing area needed for the mitigation site is under sufficient control or protection to sustain the mitigation area; there is some dependence on flows from lands or waters not under protection or control."]
[]
[]
[null,null,null,null,null,null,"(High)",3,null,"The mitigation site, together with other controlled or protected lands and waters, does not include the ground and surface water sub-basins or area necessary to provide the needed water supply.  Water supply to the assessment area is controlled by other entities and is uncertain.  If hydrology is tidal driven, the surrounding area necessary to ensure water quality is not under sufficient control or protection."]
[]
[]
[]
[]
[]
[]
[null,null,7,null,"What is the potential for infestation by invasive or exotic species within the assessment area?"]
[]
[]
[null,null,null,null,null,null,"Risk"]
[null,null,null,null,"Selection",null,"(Low)",1,null,"Field reconnaissance documents no invasives or exotics within the assessment area or on adjoined land or surrounding waters; however, adjoining lands or waters are included in a perpetual management plan that includes treatment/removal of invasive exotics. "]
[]
[null,null,null,null,1]
[]
[null,null,null,null,null,null,"(Medium)",2,null,"Field reconnaissance documents minimal invasives/exotics within the assessment area; but, it is unknown if sources are present on  adjoining lands or surrounding waters.  Adjoining lands or waters are included in a perpetual management plan that incorporates treatment/removal of invasives or exotics. "]
[]
[]
[]
[null,null,null,null,null,null,"(High)",3,null,"Sources of invasives or exotics have been documented within the assessment area and/or on adjoining land or surrounding waters that are not managed or controlled by the permittee or operating entity."]
[]
[]
[]
[null,null,8,null,"Is the mitigation design consistent with proven techniques for achieving the proposed native plant or submerged aquatic community? "]
[]
[]
[null,null,null,null,null,null,"Risk"]
[null,null,null,null,"Selection",null,"(Low)",1,null,"Planting, transplanting, grafting, and other techniques with demonstrated success at other sites will be implemented in this assessment area, OR the mitigation action for this assessment area is preservation, OR no hydrologic alterations are proposed."]
[null,null,null,null,1]
[]
[null,null,null,null,null,null,"(Medium)",2,null,"Planting, transplanting, grafting, and other proposed techniques that are supported by scientific literature  will be implemented in this assessment area; however, there is limited documentation of success at other sites.  Or natural recruitment is proposed in an area of known seed or propagule source. "]
[]
[]
[]
[null,null,null,null,null,null,"(High)",3,null,"The proposal includes unproven or experimental techniques, or relies on natural recruitment where a native seed or propagule  source is unknown."]
[]
[]
[]
[null,null,9,null,"Are soils, sediments, and substrates within the assessment area appropriate for the proposed plant or submerged community, including any proposed techniques for soil, sediment, or substrate amendment?"]
[]
[]
[null,null,null,null,null,null,"Risk"]
[null,null,null,null,"Selection",null,"(Low)",1,null,"The assessment area consists of soils, sediments, and substrates that are similar to those found in the native community type, and will not be altered, OR the mitigation action for this assessment area is preservation, OR no hydrologic alterations are proposed."]
[null,null,null,null,1]
[]
[null,null,null,null,null,null,"(Medium)",2,null,"The assessment area includes soils, sediments, and substrates that should support the proposed plant community, or the plan includes amendments or other techniques with documented success at other sites.  "]
[]
[]
[null,null,null,null,null,null,"(High)",3,null,"Unproven or experimental amendment techniques are proposed, or parent materials within the assessment area differ from those associated with the native natural community type and amendments are not proposed."]
[]
[]
[]
[null,null,10,null,"What degree of risk is associated with the complexity of proposed grading, earthworks, or sediment and substrate alterations relative to achieving targeted water levels, depths, or natural topographic or bathymetric variation and conditions?  Natural topographic variation on the land surface should also be considered for upland community types and need not be related to water level. "]
[]
[]
[]
[null,null,null,null,null,null,"Risk"]
[null,null,null,null,"Selection",null,"(Low)",1,null,"The assessment area includes a level of natural topographic or bathymetric variation comparable to that found in the native community type; grading, earthworks, or sediment and substrate alterations are not required or proposed."]
[]
[null,null,null,null,1]
[]
[null,null,null,null,null,null,"(Medium)",2,null,"The assessment area does not have a level of natural topographic or bathymetric variation comparable to that found in the native community type; however, proposed actions include soil, sediment, or substrate amendments, and/or  earthworks, or grading supported by demonstrated successes at similar sites."]
[]
[]
[]
[null,null,null,null,null,null,"(High)",3,null,"The assessment area does not have a level of natural topographic or bathymetric variation comparable to that found in the native community type and soil, sediment, or substrate amendments, and/or  earthworks or grading are not proposed.  Or, proposed actions include soil, sediment, or substrate amendments, and/or  earthworks or grading; but, proposed methods are not supported by demonstrated successes at similar sites."]
[]
[]
[]
[]
[]
[null,null,11,null,"Is the proposed maintenance and long-term management plan sufficient to achieve and perpetually maintain ecological processes within the assessment area?"]
[]
[]
[null,null,null,null,null,null,"Risk"]
[null,null,null,null,"Selection",null,"(Low)",1,null,"Proven techniques (e.g., fire, mechanical, herbicides) are proposed with documented success at other sites, or all necessary actions to sustain the habitat type are otherwise included in the plan. "]
[null,null,null,null,1]
[]
[null,null,null,null,null,null,"(Medium)",2,null,"Targeted community types or site-specific conditions are not suited to conventional techniques, or the long term management plan provides some, but not all actions necessary to fully facilitate continued development of the natural community."]
[null,null,null,null,"Score"]
[null,null,null,null,{"$f":"2*E212","v":2}]
[null,null,null,null,null,null,"(High)",3,null,"Cutting edge mitigation actions with undefined maintenance requirements are proposed.  Or, the proposed long-term management plan is insufficient to ensure permanent protection from exotic, invasive, or nuisance species, or the proposed actions are inadequate to support continued development of the natural community."]
[null,null,null,null,"(2 x Selection)"]
[]
[]
[]
[null,null,12,null,"What level of protection is provided by the preservation instrument proposed for this assessment area?"]
[]
[]
[null,null,null,null,null,null,"Risk"]
[null,null,null,null,"Selection",null,"(Low)",1,null,"Standard Conservation Easement, Restrictive Covenant, or other instrument determined to be fully sufficient for permanent protection."]
[null,null,null,null,1]
[]
[null,null,null,null,null,null,"(Medium)",2,null,"Passive Recreational, Riparian, Local Government, Deed Restriction, or similar instrument proposed; however, broader protections, such as those offered by a Conservation Easement, would better reduce risk."]
[null,null,null,null,"Score"]
[null,null,null,null,{"$f":"2*E227","v":2}]
[null,null,null,null,null,null,"(High)",3,null,"The proposed preservation instrument is insufficient to ensure permanent protection of the assessment area."]
[null,null,null,null,"(2 x Selection)"]
[]
[]
[]
[null,null,"Sum:",null,{"$f":"IF(Part1_Data!I20=1,SUM(TimeLag_Risk!E231,TimeLag_Risk!E216,TimeLag_Risk!E195,TimeLag_Risk!E179,TimeLag_Risk!E164,TimeLag_Risk!E149,TimeLag_Risk!E131,TimeLag_Risk!E115,TimeLag_Risk!E100,TimeLag_Risk!E84,TimeLag_Risk!E70,TimeLag_Risk!E55),IF(Part1_Data!I20=2,SUM(TimeLag_Risk!E231,TimeLag_Risk!E216,TimeLag_Risk!E195,TimeLag_Risk!E179,TimeLag_Risk!E164,TimeLag_Risk!E149,TimeLag_Risk!E84,TimeLag_Risk!E70,TimeLag_Risk!E55),\"?\"))","v":14},null,"Risk:",null,{"$f":"(E237/E238)*3","v":1}]
[null,null,"Max Possible:",null,{"$f":"IF(Part1_Data!I20=1,42,IF(Part1_Data!I20=2,33,\"?\"))","v":42}]
[]
[]
[]
[null,null,"Please use the space below to provide additional detail or comments in support of scores or values indicated above."]
[]
[]
[]
[]
[]
[]
[]
[]
[]
[]
[null,null,null,null,null,null,null,null,null,null,null,null,null,null,null,null,null,null,null,null,null,"DRAFT DOCUMENT"]

{"sheet":"Summary","index":12,"n_rows":40,"n_cols":16,"rows_kept":40,"cut":false,"hidden":false,"merged":[[39,2,46,17],[37,2,38,17],[1,15,1,17],[2,13,2,14],[2,15,2,17],[3,2,3,10],[5,2,5,3],[5,4,5,9],[6,4,6,9],[1,2,2,10],[1,13,1,14],[15,5,15,8],[13,5,13,8],[21,7,21,8],[8,2,8,3],[8,4,8,9],[9,2,10,3],[9,4,10,9],[26,3,26,8],[24,6,24,8],[17,5,17,8],[32,6,32,8],[33,3,33,8],[35,5,35,8],[27,4,27,8],[30,7,30,8],[29,7,29,8]]}
[]
[null,null,"UMAM Summary",null,null,null,null,null,null,null,null,null,null,"Project:",null,{"$f":"Part_I!D8","v":"(Project Name)"}]
[null,null,null,null,null,null,null,null,null,null,null,null,null,"Assessment Area:",null,{"$f":"Part_I!P8","v":"(Assement Area)"}]
[null,null,"Terrestrial Vegetative Habitat (Section 62-345.(?) F.A.C.)"]
[]
[null,null,"Reference:",null,{"$f":"Part_I!L44","v":"(Type Here)"}]
[null,null,null,null,{"$f":"Part1_Data!J20","v":"Wetland or Other Surface Water"}]
[]
[null,null,"Application#",null,{"$f":"Part_I!J8","v":"(Application Number)"}]
[null,null,"Activity:",null,{"$f":"Part1_Data!E5","v":"Mitigation Assessment (Enhancement)"}]
[]
[]
[null,null,null,null,null,null,null,null,null,"Current Condition",null,{"$f":"IF(Part1_Data!D5<=2,\"with Impact\",IF(Part1_Data!D5>2,\"with Mitigation\",\"?\"))","v":"with Mitigation"}]
[null,null,null,null,null,"Location and Landscape Support",null,null,null,{"$f":"DATA_1!W78","v":10},null,{"$f":"DATA_1!X78","v":10}]
[]
[null,null,null,null,null,"Water Environment",null,null,null,{"$f":"DATA_1!W79","v":10},null,{"$f":"DATA_1!X79","v":10}]
[]
[null,null,null,null,null,"Community Structure",null,null,null,{"$f":"DATA_1!W80","v":10},null,{"$f":"DATA_1!X80","v":10}]
[]
[]
[]
[null,null,null,null,null,null,null,{"$f":"Standard!R11","v":"(LLS+WE+CS)/30)"},null,{"$f":"DATA_1!W81","v":1},null,{"$f":"DATA_1!X81","v":1}]
[]
[]
[null,null,null,null,null,null,"Delta:",null,null,{"$f":"DATA_1!W82","v":0}]
[]
[null,null,null,{"$f":"IF(Part1_Data!D5>=6,\"Preservation Adjustment Factor:\", \" \")","v":" "},null,null,null,null,null,{"$f":"IF(AND(Part1_Data!D5>=6,Part1_Data!I20=1),WOSW_Preservation!O13,IF(AND(Part1_Data!D5>=6,Part1_Data!I20=2),Upland_Preservation!O15,\" \"))","v":" "}]
[null,null,null,null,{"$f":"IF(Part1_Data!D5>=6,\"Preservation Adjusted Value:\",\" \")","v":" "},null,null,null,null,{"$f":"IF(Part1_Data!D5>=6,J25*J27,\" \")","v":" "}]
[]
[null,null,null,null,null,null,null,{"$f":"IF(Part1_Data!D5>2,\"Time Lag:\",IF(Part1_Data!D5<=2,\" \",\"?\"))","v":"Time Lag:"},null,{"$f":"IF(Part1_Data!D5>2,TimeLag_Risk!P5,IF(Part1_Data!D5<=2,\" \",\"?\"))","v":1}]
[null,null,null,null,null,null,null,{"$f":"IF(Part1_Data!D5>2,\"Risk Factor:\",IF(Part1_Data!D5<=2,\" \",\"?\"))","v":"Risk Factor:"},null,{"$f":"IF(Part1_Data!D5>2,TimeLag_Risk!P9,IF(Part1_Data!D5<=2,\" \",\"?\"))","v":1}]
[]
[null,null,null,null,null,null,{"$f":"IF(Part1_Data!D5<=2,\"Relative Functional Loss:\",IF(Part1_Data!D5>2,\"Relative Functional Gain:\",\" \"))","v":"Relative Functional Gain:"},null,null,{"$f":"IF(OR(Part1_Data!D5=3,Part1_Data!D5=4,Part1_Data!D5=5),(Summary!J25/(Summary!J30*Summary!J31)),IF(Part1_Data!D5<=2,Summary!J25,IF(Part1_Data!D5>=6,(J28/(J30*J31)),\"?\")))","v":0}]
[null,null,null,"Areal Extent of Assessment Area (acres):",null,null,null,null,null,{"$f":"Part_I!K22","v":100}]
[]
[null,null,null,null,null,{"$f":"IF(Part1_Data!C17=\"Yes\",\"Credits\",IF(Part1_Data!D5<=2,\"Functional Loss:\",IF(Part1_Data!D5>2,\"Functional Gain:\",\"?\")))","v":"Functional Gain:"},null,null,null,{"$f":"J33*J34","v":0}]
[]
[]
[]
[null,null,"NOTE: Additional Features to be added to this page; advanced printing options, etc…"]